Service Area,Service Division,Expense Type,Expense Code,Detailed Expense Type,Payment Date,Transaction Number,Amount Exc VAT,Supplier Name
Regeneration Economy and Growth,Culture Sport and Tourism,Supplies and Services,384199,Miscellaneous Expenses,01/08/2023,4164146-1362,"2,500.00",FX PRODUCTIONS LTD.
Children and Young Peoples Services,Head of Education and Skills,Transport,230006,Contract Hire,01/08/2023,4164059-136,605.00,REDACTED - PAYMENT TO INDIVIDUAL
Regeneration Economy and Growth,Business Durham,Supplies and Services,338066,Services,01/08/2023,4164083-1084,"2,235.00",REDACTED - PAYMENT TO INDIVIDUAL
Resources BK0010,Legal & Democratic Services,Supplies and Services,338101,Services,01/08/2023,4164115-CAB/003/2023JC,"1,500.00",REDACTED - PAYMENT TO INDIVIDUAL
Adult and Health Services,Head of Adults,Supplies and Services,338066,Services,01/08/2023,4164117-TAMTES157990/301120/500159,526.80,REDACTED - PAYMENT TO INDIVIDUAL
Resources BK0010,Legal & Democratic Services,Supplies and Services,338105,Services,01/08/2023,4164118-JRB032023JC,924.30,REDACTED - PAYMENT TO INDIVIDUAL
Children and Young Peoples Services,Head of Early Help Inclusion & Vulnerable Children.,Supplies and Services,384199,Miscellaneous Expenses,01/08/2023,4164119-SERVICESJUNE2023,"2,760.00",REDACTED - PAYMENT TO INDIVIDUAL
Children and Young Peoples Services,Head of Education and Skills,Transport,230006,Contract Hire,01/08/2023,4164181-HC012,610.00,REDACTED - PAYMENT TO INDIVIDUAL
Regeneration Economy and Growth,Culture Sport and Tourism,Third Party Payments,430131,Rendered by Private Contractors,01/08/2023,4164196-2023019,549.00,REDACTED - PAYMENT TO INDIVIDUAL
Children and Young Peoples Services,Head of Early Help Inclusion & Vulnerable Children.,Supplies and Services,304259,Equipment and Materials,01/08/2023,4164205-3731,550.00,REDACTED - PAYMENT TO INDIVIDUAL
Neighbourhoods and Climate Change,Highways,Third Party Payments,430127,Rendered by Private Contractors,01/08/2023,4164232-16SHORTFALL,"2,595.00",REDACTED - PAYMENT TO INDIVIDUAL
Dedicated Schools Grant BG0015,Dedicated Schools Grant CG0050,Central Support and Other Recharges,615208,Support Services,01/08/2023,4164220-RES-07-2023-388,"17,915.77",NEW COLLEGE DURHAM ACADEMIES TRUST.
Regeneration Economy and Growth,Culture Sport and Tourism,Supplies and Services,338047,Services,01/08/2023,4164285-2061112,820.42,WALT DISNEY COMPANY LTD.
Regeneration Economy and Growth,Planning & Housing,Third Party Payments,430100,Rendered by Private Contractors,01/08/2023,4164052-0137881A,595.00,ADDISONS CHARTERED SURVEYORS.
Children and Young Peoples Services,Head of Education and Skills,Transfer Payments,510051,School Children,01/08/2023,4164054-AWPU-07-2023-110,"1,741.58",ADVANCE LEARNING PARTNERSHIP.
Children and Young Peoples Services,Head of Education and Skills,Transfer Payments,510051,School Children,01/08/2023,4164055-AWPU-07-2023-113,588.37,ADVANCE LEARNING PARTNERSHIP.
Children and Young Peoples Services,Head of Education and Skills,Transfer Payments,510051,School Children,01/08/2023,4164056-AWPU-07-2023-101,"1,082.60",ADVANCE LEARNING PARTNERSHIP.
Children and Young Peoples Services,Head of Education and Skills,Transfer Payments,510051,School Children,01/08/2023,4164056-AWPU-07-2023-109,"1,976.93",ADVANCE LEARNING PARTNERSHIP.
Children and Young Peoples Services,Head of Childrens Social Care,Supplies and Services,338044,Services,01/08/2023,4164057-ACS103318,"2,303.00",ADVANCED CHILD CARE ASSESSMENTS LTD.
Regeneration Economy and Growth,Culture Sport and Tourism,Supplies and Services,312013,Newspapers books and periodicals E312,01/08/2023,4164063-6907357,898.94,ASKEWS & HOLTS LIBRARY SERVICES LTD.
Regeneration Economy and Growth,Culture Sport and Tourism,Supplies and Services,312013,Newspapers books and periodicals E312,01/08/2023,4164063-6910959,727.05,ASKEWS & HOLTS LIBRARY SERVICES LTD.
Neighbourhoods and Climate Change,Environmental Services,Transport,210057,Repair and Maintenance of Vehicles,01/08/2023,4164067-35248606,936.60,BELL TRUCK SALES LTD T/A BELL TRUCK & VAN.
Neighbourhoods and Climate Change,Environmental Services,Transport,210057,Repair and Maintenance of Vehicles,01/08/2023,4164067-35249112,944.34,BELL TRUCK SALES LTD T/A BELL TRUCK & VAN.
Neighbourhoods and Climate Change,Environmental Services,Transport,210057,Repair and Maintenance of Vehicles,01/08/2023,4164067-35249560,538.38,BELL TRUCK SALES LTD T/A BELL TRUCK & VAN.
Neighbourhoods and Climate Change,Environmental Services,Transport,210057,Repair and Maintenance of Vehicles,01/08/2023,4164068-35248088,613.80,BELL TRUCK SALES LTD T/A BELL TRUCK & VAN.
Neighbourhoods and Climate Change,Environmental Services,Transport,210057,Repair and Maintenance of Vehicles,01/08/2023,4164068-35248406,562.20,BELL TRUCK SALES LTD T/A BELL TRUCK & VAN.
Neighbourhoods and Climate Change,Environmental Services,Transport,210057,Repair and Maintenance of Vehicles,01/08/2023,4164069-045280-WI,900.00,BENELLA AUTO ELECTRICAL SERVICES LTD T/A BENELLA COMMERCIAL.
Regeneration Economy and Growth,Culture Sport and Tourism,Supplies and Services,324117,Provisions E324,01/08/2023,4164071-22224612,540.39,BIDFOOD.
Regeneration Economy and Growth,Culture Sport and Tourism,Supplies and Services,324117,Provisions E324,01/08/2023,4164071-22602528,563.83,BIDFOOD.
Children and Young Peoples Services,Head of Education and Skills,Transfer Payments,510051,School Children,01/08/2023,4164073-AWPU-07-2023-103,"1,012.00",BISHOP HOGARTH CATHOLIC EDUCATION TRUST.
Children and Young Peoples Services,Head of Education and Skills,Transfer Payments,510051,School Children,01/08/2023,4164073-AWPU-07-2023-104,800.18,BISHOP HOGARTH CATHOLIC EDUCATION TRUST.
Children and Young Peoples Services,Head of Education and Skills,Transport,230035,Contract Hire,01/08/2023,4164075-INV03048,"1,176.00",BLUELINE SOUTH INCORPORATING NAVIGATION TAXIS T/A BLUELINE TAXIS.
Neighbourhoods and Climate Change,Highways,Supplies and Services,304221,Equipment and Materials,01/08/2023,4164077-21349538,"1,437.83",BREEDON TRADING LTD.
Neighbourhoods and Climate Change,Highways,Supplies and Services,304221,Equipment and Materials,01/08/2023,4164077-21349540,"1,006.38",BREEDON TRADING LTD.
Neighbourhoods and Climate Change,Highways,Supplies and Services,304221,Equipment and Materials,01/08/2023,4164077-21349543,"1,040.15",BREEDON TRADING LTD.
Neighbourhoods and Climate Change,Highways,Supplies and Services,304221,Equipment and Materials,01/08/2023,4164077-21349544,"1,479.50",BREEDON TRADING LTD.
Regeneration Economy and Growth,Corporate Property and Land,Third Party Payments,430100,Rendered by Private Contractors,01/08/2023,4164092-776,"5,176.62",CEILINGS DIRECT LTD.
Children and Young Peoples Services,Head of Education and Skills,Transport,230006,Contract Hire,01/08/2023,4164094-F125JULY2023,504.00,CHAPMAN TRAVEL.
Regeneration Economy and Growth,Culture Sport and Tourism,Supplies and Services,304259,Equipment and Materials,01/08/2023,4164095-INV/2023/1987,532.50,CINEMANEXT UK T/A TECHNICAL LAMP SUPPLIES UK LTD (TLS).
Regeneration Economy and Growth,Culture Sport and Tourism,Supplies and Services,384199,Miscellaneous Expenses,01/08/2023,4164100-UOTR5113513,"19,456.80",CONVERA UK FINANCIAL LTD.
Resources BK0010,Digital Services,Stock A926,926900,Stock in hand-Inventory system,01/08/2023,4164109-7402930774,"4,680.00",DELL COMPUTER CORPORATION LTD.
Resources BK0010,Digital Services,Stock A926,926900,Stock in hand-Inventory system,01/08/2023,4164109-7402930826,525.00,DELL COMPUTER CORPORATION LTD.
Children and Young Peoples Services,Head of Education and Skills,Transfer Payments,510051,School Children,01/08/2023,4164110-AWPU-07-2023-087,564.84,DENE ACADEMY.
Neighbourhoods and Climate Change,Environmental Services,Transport,210057,Repair and Maintenance of Vehicles,01/08/2023,4164111-96443975,"1,176.62",DENNIS EAGLE LTD T/A TERBERG MATEC (UK) LTD.
Neighbourhoods and Climate Change,Environmental Services,Transport,210057,Repair and Maintenance of Vehicles,01/08/2023,4164112-DE11602446,619.62,DENNIS EAGLE LTD.
Regeneration Economy and Growth,Culture Sport and Tourism,Supplies and Services,304259,Equipment and Materials,01/08/2023,4164114-8777,"2,920.00",DMK LEISURE LTD.
Regeneration Economy and Growth,Culture Sport and Tourism,Supplies and Services,384700,Miscellaneous Expenses,01/08/2023,4164120-NEI-HCL-07-2023-006,"10,000.00",DS MEDIA T/A EVENTS OF THE NORTH.
Regeneration Economy and Growth,Transport and Contracted Services,Third Party Payments,430100,Rendered by Private Contractors,01/08/2023,4164122-1635,"1,100.00",EAST DURHAM TAXIS.
Regeneration Economy and Growth,Corporate Property and Land,Supplies and Services,304221,Equipment and Materials,01/08/2023,4164123-6706558,"1,084.00",EASTERN SHIRES PURCHASING ORGANISATION (ESPO).
Neighbourhoods and Climate Change,Environmental Services,Transport,210057,Repair and Maintenance of Vehicles,01/08/2023,4164124-S212703,"2,211.24",ECON ENGINEERING LTD.
Regeneration Economy and Growth,Culture Sport and Tourism,Supplies and Services,338027,Services,01/08/2023,4164125-2557,"7,000.00",ECONOMIC RESEARCH SERVICES LTD T/A ERS RESEARCH & CONSULTANCY.
Dedicated Schools Grant BG0015,Dedicated Schools Grant CG0050,Central Support and Other Recharges,615208,Support Services,01/08/2023,4164127-RES-07-2023-392,"5,201.35",EDEN LEARNING TRUST T/A FERRYHILL BUSINESS & ENTERPRISE COLLEGE.
Children and Young Peoples Services,Head of Education and Skills,Transfer Payments,510051,School Children,01/08/2023,4164128-AWPU-07-2023-088,941.39,EDEN LEARNING TRUST T/A TANFIELD SCHOOL.
Children and Young Peoples Services,Head of Education and Skills,Transfer Payments,510051,School Children,01/08/2023,4164128-AWPU-07-2023-089,"1,506.23",EDEN LEARNING TRUST T/A TANFIELD SCHOOL.
Children and Young Peoples Services,Head of Education and Skills,Transfer Payments,510051,School Children,01/08/2023,4164129-AWPU-07-2023-094,"3,618.78",EDEN LEARNING TRUST T/A WOODHAM ACADEMY.
Children and Young Peoples Services,Head of Education and Skills,Transfer Payments,510051,School Children,01/08/2023,4164129-AWPU-07-2023-107,663.09,EDEN LEARNING TRUST T/A WOODHAM ACADEMY.
Children and Young Peoples Services,Head of Education and Skills,Transfer Payments,510051,School Children,01/08/2023,4164129-AWPU-07-2023-108,941.39,EDEN LEARNING TRUST T/A WOODHAM ACADEMY.
Dedicated Schools Grant BG0015,Dedicated Schools Grant CG0050,Central Support and Other Recharges,615208,Support Services,01/08/2023,4164129-RES-07-2023-391,"1,011.37",EDEN LEARNING TRUST T/A WOODHAM ACADEMY.
Children and Young Peoples Services,Head of Education and Skills,Supplies and Services,338035,Services,01/08/2023,4164134-EPASI006021,500.00,EPA PLUS (A TRADING DIVISION OF NCFE).
Regeneration Economy and Growth,Corporate Property and Land,Third Party Payments,430100,Rendered by Private Contractors,01/08/2023,4164145-502499,"1,556.86",FT LEISURE LTD.
Resources BK0010,HR & Employee Services,Supplies and Services,338221,Services,01/08/2023,4164156-SF-154656,"1,904.43",HEALTH ASSURED LTD.
Resources BK0010,HR & Employee Services,Supplies and Services,338221,Services,01/08/2023,4164156-SF-154657,"1,904.43",HEALTH ASSURED LTD.
Neighbourhoods and Climate Change,Environmental Services,Transport,210057,Repair and Maintenance of Vehicles,01/08/2023,4164158-1447293919,548.90,HILTI (GB) LTD.
Adult and Health Services,Head of Adults,Supplies and Services,338365,Services,01/08/2023,4164159-RES-07-2023-377,"15,209.45",HOME GROUP LTD.
Adult and Health Services,Public Health CC0450,Third Party Payments,460803,Contract Payments,01/08/2023,4164164-SI-HK-001220,"5,000.00",HUMANKIND CHARITY.
Regeneration Economy and Growth,Corporate Property and Land,Third Party Payments,430100,Rendered by Private Contractors,01/08/2023,4164167-14119,760.00,INGLEFORD SCAFFOLDING LTD.
Neighbourhoods and Climate Change,Highways,Third Party Payments,430100,Rendered by Private Contractors,01/08/2023,4164170-27935,"13,533.54",JACK COUPE & SONS LTD T/A COUPE LINE.
Neighbourhoods and Climate Change,Highways,Stock A926,926900,Stock in hand-Inventory system,01/08/2023,4164174-11486,595.90,JG UNIFORMS.
Adult and Health Services,Head of Adults,Third Party Payments,472101,Purchase of Care,01/08/2023,4164180-RES-07-2023-385,"2,000.00",KELLY PARK LTD..
Children and Young Peoples Services,Head of Education and Skills,Transfer Payments,510051,School Children,01/08/2023,4164183-AWPU-07-2023-099,800.18,KING JAMES I ACADEMY.
Regeneration Economy and Growth,Corporate Property and Land,Third Party Payments,430100,Rendered by Private Contractors,01/08/2023,4164184-7781810,"7,480.96",KONE PLC.
Children and Young Peoples Services,Head of Education and Skills,Transport,230007,Contract Hire,01/08/2023,4164192-INV07/2023-06,"1,946.25",MARK & JOHN CHISHOLM T/A (CHEVRON).
Children and Young Peoples Services,Head of Education and Skills,Transport,230008,Contract Hire,01/08/2023,4164192-INV07/2023-08,"2,450.55",MARK & JOHN CHISHOLM T/A (CHEVRON).
Children and Young Peoples Services,Head of Education and Skills,Transport,230008,Contract Hire,01/08/2023,4164192-INV07/2023-14,"2,957.08",MARK & JOHN CHISHOLM T/A (CHEVRON).
Children and Young Peoples Services,Head of Education and Skills,Transport,230007,Contract Hire,01/08/2023,4164192-INV07/2023-34,"1,171.20",MARK & JOHN CHISHOLM T/A (CHEVRON).
Children and Young Peoples Services,Head of Education and Skills,Transport,230007,Contract Hire,01/08/2023,4164192-INV07/2023-35,"1,170.00",MARK & JOHN CHISHOLM T/A (CHEVRON).
Regeneration Economy and Growth,Corporate Property and Land,Third Party Payments,430100,Rendered by Private Contractors,01/08/2023,4164218-44473,"49,100.00",NE & C WINDOWS & DOORS LTD.
Children and Young Peoples Services,Head of Education and Skills,Transfer Payments,510051,School Children,01/08/2023,4164222-AWPU-07-2023-085,706.05,NORTH DURHAM ACADEMY.
Children and Young Peoples Services,Head of Education and Skills,Transfer Payments,510051,School Children,01/08/2023,4164223-AWPU-07-2023-096,"3,593.83",NORTH EAST LEARNING TRUST (NELT).
Regeneration Economy and Growth,Corporate Property and Land,Construction work A908,908105,Construction work,01/08/2023,4164226-NEI-EXP-07-2023-050,957.00,NORTHERN GAS NETWORKS LTD.
Regeneration Economy and Growth,Corporate Property and Land,Construction work A908,908105,Construction work,01/08/2023,4164226-NEI-EXP-07-2023-53,957.00,NORTHERN GAS NETWORKS LTD.
Regeneration Economy and Growth,Culture Sport and Tourism,Supplies and Services,338047,Services,01/08/2023,4164233-R2318242,"1,214.25",PARAMOUNT PICTURES UK.
Adult and Health Services,Head of Adults,Supplies and Services,342051,Computers and Communications,01/08/2023,4164236-0000018163,"1,100.00",PERMANENT FUTURES LTD.
Adult and Health Services,Head of Adults,Supplies and Services,342051,Computers and Communications,01/08/2023,4164236-0000019378,550.00,PERMANENT FUTURES LTD.
Neighbourhoods and Climate Change,Highways,Supplies and Services,384899,Miscellaneous Expenses,01/08/2023,4164239-RES-07-2023-297,682.50,PITTINGTON PARISH COUNCIL.
Resources BK0010,Transactional & Customer Services,Supplies and Services,384999,Miscellaneous Expenses,01/08/2023,4164240-INV89131-DURHAMCOUNTYCOUNCIL-0623,"5,554.74",PREPAID FINANCIAL SERVICES LTD.
Children and Young Peoples Services,Head of Education and Skills,Transport,230006,Contract Hire,01/08/2023,4164242-SI-02740,"1,679.36",PTL TAXIS LTD.
Children and Young Peoples Services,Head of Education and Skills,Transport,230008,Contract Hire,01/08/2023,4164242-SI-2730,"4,000.00",PTL TAXIS LTD.
Children and Young Peoples Services,Head of Education and Skills,Transport,230010,Contract Hire,01/08/2023,4164242-SI-2731,"2,896.72",PTL TAXIS LTD.
Children and Young Peoples Services,Head of Education and Skills,Transport,230006,Contract Hire,01/08/2023,4164242-SI-2732,"4,211.36",PTL TAXIS LTD.
Children and Young Peoples Services,Head of Education and Skills,Transport,230006,Contract Hire,01/08/2023,4164242-SI-2733,"3,200.00",PTL TAXIS LTD.
Children and Young Peoples Services,Head of Education and Skills,Transport,230006,Contract Hire,01/08/2023,4164242-SI-2735,"3,633.96",PTL TAXIS LTD.
Children and Young Peoples Services,Head of Education and Skills,Transport,230010,Contract Hire,01/08/2023,4164242-SI-2736,"1,440.00",PTL TAXIS LTD.
Children and Young Peoples Services,Head of Education and Skills,Transport,230034,Contract Hire,01/08/2023,4164242-SI-2737,"4,800.00",PTL TAXIS LTD.
Children and Young Peoples Services,Head of Education and Skills,Transport,230008,Contract Hire,01/08/2023,4164242-SI-2739,"1,080.00",PTL TAXIS LTD.
Children and Young Peoples Services,Head of Education and Skills,Transport,230006,Contract Hire,01/08/2023,4164242-SI-2741,"3,473.24",PTL TAXIS LTD.
Children and Young Peoples Services,Head of Education and Skills,Transport,230006,Contract Hire,01/08/2023,4164242-SI-2742,"5,630.00",PTL TAXIS LTD.
Adult and Health Services,Head of Adults,Transport,230005,Contract Hire,01/08/2023,4164242-SI-2743,"1,128.00",PTL TAXIS LTD.
Neighbourhoods and Climate Change,Environmental Services,Transport,210057,Repair and Maintenance of Vehicles,01/08/2023,4164243-1441273,731.15,QUICKCO.
Neighbourhoods and Climate Change,Environmental Services,Supplies and Services,342053,Computers and Communications,01/08/2023,4164246-NEI-EXP-07-2023-052,"20,000.00",RECYCLING OF USED PLASTICS LTD T/A RECOUP.
Regeneration Economy and Growth,Business Durham,Construction work A908,908105,Construction work,01/08/2023,4164249-24010008,"32,571.43",ROBERTSON CAPITAL PROJECTS.
Resources BK0010,Transactional & Customer Services,Supplies and Services,340001,Postages E340,01/08/2023,4164250-9067890702,"17,301.04",ROYAL MAIL GROUP PLC.
Neighbourhoods and Climate Change,Highways,Supplies and Services,384899,Miscellaneous Expenses,01/08/2023,4164258-RES-07-2023-298,697.50,SHERBURN VILLAGE PARISH COUNCIL.
Neighbourhoods and Climate Change,Highways,Supplies and Services,384899,Miscellaneous Expenses,01/08/2023,4164259-RES-07-2023-299,"1,200.00",SHILDON TOWN COUNCIL.
Resources BK0010,Legal & Democratic Services,Supplies and Services,338042,Services,01/08/2023,4164280-303269/INVJCT203,710.00,TRINITY CHAMBERS.
Resources BK0010,Legal & Democratic Services,Supplies and Services,338042,Services,01/08/2023,4164280-303886/INVEM75,"4,335.00",TRINITY CHAMBERS.
Resources BK0010,Legal & Democratic Services,Supplies and Services,338042,Services,01/08/2023,4164280-306177/INVLS223,665.00,TRINITY CHAMBERS.
Resources BK0010,Legal & Democratic Services,Supplies and Services,338042,Services,01/08/2023,4164281-301677/INVSAW82,970.00,TRINITY CHAMBERS.
Resources BK0010,Legal & Democratic Services,Supplies and Services,338042,Services,01/08/2023,4164281-302122/INVTOP119,720.00,TRINITY CHAMBERS.
Resources BK0010,Legal & Democratic Services,Supplies and Services,338042,Services,01/08/2023,4164281-302155/INVRSH146,"41,280.00",TRINITY CHAMBERS.
Neighbourhoods and Climate Change,Environmental Services,Supplies and Services,338078,Services,01/08/2023,4164284-INV-58909,"2,644.75",VISTECH SERVICES LTD.
Neighbourhoods and Climate Change,Environmental Services,Supplies and Services,338078,Services,01/08/2023,4164284-INV-58911,"1,028.10",VISTECH SERVICES LTD.
Neighbourhoods and Climate Change,Environmental Services,Supplies and Services,338078,Services,01/08/2023,4164284-INV-58912,"2,473.40",VISTECH SERVICES LTD.
Neighbourhoods and Climate Change,Environmental Services,Supplies and Services,338078,Services,01/08/2023,4164284-INV-58913,"3,218.40",VISTECH SERVICES LTD.
Neighbourhoods and Climate Change,Environmental Services,Transport,215005,Running Costs of Vehicles,01/08/2023,4164290-1195863,"1,386.88",YOUR NRG LTD.
Regeneration Economy and Growth,Culture Sport and Tourism,Supplies and Services,338047,Services,02/08/2023,4165610-DCC-3,"6,000.00",REDACTED - PAYMENT TO INDIVIDUAL
Adult and Health Services,Head of Adults,Third Party Payments,478101,Purchase of Care,02/08/2023,4165215-I-23-9798748,"4,407.48",REDACTED - PAYMENT TO INDIVIDUAL
Neighbourhoods and Climate Change,Environmental Services,Supplies and Services,304999,Equipment and Materials,02/08/2023,4165590-0000185357,"1,029.60",BLEEP (UK) PLC T/A GLOBAL PAYMENTS.
Adult and Health Services,Head of Adults,Third Party Payments,470101,Purchase of Care,02/08/2023,4164542-I-23-9799108,"2,862.56",REDACTED - PAYMENT TO INDIVIDUAL
Adult and Health Services,Head of Adults,Third Party Payments,473101,Purchase of Care,02/08/2023,4165181-I-23-9798504,"28,354.52",REDACTED - PAYMENT TO INDIVIDUAL
Adult and Health Services,Head of Adults,Third Party Payments,470101,Purchase of Care,02/08/2023,4165181-I-23-9798827,"22,768.04",REDACTED - PAYMENT TO INDIVIDUAL
Adult and Health Services,Head of Adults,Third Party Payments,478101,Purchase of Care,02/08/2023,4165214-I-23-9798720,"4,240.88",REDACTED - PAYMENT TO INDIVIDUAL
Adult and Health Services,Head of Adults,Third Party Payments,470101,Purchase of Care,02/08/2023,4165223-I-23-9799035,"2,600.00",REDACTED - PAYMENT TO INDIVIDUAL
Adult and Health Services,Head of Adults,Third Party Payments,470101,Purchase of Care,02/08/2023,4165362-I-23-9798879,"9,373.00",REDACTED - PAYMENT TO INDIVIDUAL
Adult and Health Services,Head of Adults,Third Party Payments,470101,Purchase of Care,02/08/2023,4165363-I-23-9799017,"67,846.88",REDACTED - PAYMENT TO INDIVIDUAL
Regeneration Economy and Growth,Culture Sport and Tourism,Supplies and Services,304259,Equipment and Materials,02/08/2023,4165697-4100842848,700.00,REDACTED - PAYMENT TO INDIVIDUAL
Neighbourhoods and Climate Change,Community Protection,Supplies and Services,338045,Services,02/08/2023,4165730-111924,"1,050.00",REDACTED - PAYMENT TO INDIVIDUAL
Neighbourhoods and Climate Change,Environmental Services,Supplies and Services,384199,Miscellaneous Expenses,02/08/2023,318918-RES-07-2023-367,"1,000.00",EAST DURHAM DIVERS.
Adult and Health Services,Head of Adults,Third Party Payments,472101,Purchase of Care,02/08/2023,4164681-I-23-9798584,"61,354.00",CLASSIC RESOURCESUK LTD.
Adult and Health Services,Head of Adults,Third Party Payments,478101,Purchase of Care,02/08/2023,4164749-I-23-9798693,"3,176.00",RARE ROCKETS NE LTD T/A DEAF EMPOWERING NETWORK.
Adult and Health Services,Head of Adults,Third Party Payments,472101,Purchase of Care,02/08/2023,4164771-I-23-9798730,520.00,E2E HOMECARE LTD.
Children and Young Peoples Services,Head of Childrens Social Care,Third Party Payments,425021,Rendered by Voluntary Organisations,02/08/2023,4164818-PIG_169291,"18,000.15",EVOLVE RESIDENTIAL LTD.
Adult and Health Services,Head of Adults,Third Party Payments,472101,Purchase of Care,02/08/2023,4164881-I-21-1308863,801.85,GUINNESS CARE.
Adult and Health Services,Head of Adults,Third Party Payments,472101,Purchase of Care,02/08/2023,4164881-I-23-9866136,924.30,GUINNESS CARE.
Adult and Health Services,Head of Adults,Third Party Payments,472101,Purchase of Care,02/08/2023,4164925-I-23-9842333,"1,300.00",HMW CARE LTD T/A BLUEBIRD CARE STOCKTON & HARTLEPOOL.
Children and Young Peoples Services,Head of Childrens Social Care,Third Party Payments,425040,Rendered by Voluntary Organisations,02/08/2023,4165414-PIG_169986,"2,520.00",SILVER LINING FOSTERING AGENCY.
Adult and Health Services,Head of Adults,Third Party Payments,470101,Purchase of Care,02/08/2023,4165472-I-23-9798835,"50,834.04",SWANTON CARE & COMMUNITY LTD T/A THE GROVE.
Children and Young Peoples Services,Head of Education and Skills,Supplies and Services,384199,Miscellaneous Expenses,02/08/2023,4165630-2498,"1,500.00",RARE ROCKETS NE LTD T/A DEAF EMPOWERING NETWORK.
Dedicated Schools Grant BG0015,Dedicated Schools Grant CG0050,Central Support and Other Recharges,615208,Support Services,02/08/2023,4165743-RES-07-2023-389,"16,615.44",NEW COLLEGE DURHAM ACADEMIES TRUST.
Children and Young Peoples Services,Head of Childrens Social Care,Third Party Payments,440038,Other third party payments E440,02/08/2023,4164293-PIG_168601,"6,272.00",123 CARE & ACCOMMODATION LTD.
Children and Young Peoples Services,Head of Childrens Social Care,Third Party Payments,486020,Service level agreements E486,02/08/2023,4164294-PIG_169348,"6,412.75",4TRACK CARE LTD.
Adult and Health Services,Head of Adults,Third Party Payments,470101,Purchase of Care,02/08/2023,4164295-I-23-9798818,"105,589.43",A CHARLES THOMAS (CARE) LTD.
Children and Young Peoples Services,Head of Childrens Social Care,Third Party Payments,425021,Rendered by Voluntary Organisations,02/08/2023,4164296-PIG_169283,"52,793.00",A WILDERNESS WAY LTD.
Children and Young Peoples Services,Head of Childrens Social Care,Third Party Payments,425021,Rendered by Voluntary Organisations,02/08/2023,4164296-PIG_169284,"4,114.59",A WILDERNESS WAY LTD.
Children and Young Peoples Services,Head of Childrens Social Care,Third Party Payments,425021,Rendered by Voluntary Organisations,02/08/2023,4164296-PIG_170005,"15,766.65",A WILDERNESS WAY LTD.
Children and Young Peoples Services,Head of Childrens Social Care,Third Party Payments,425040,Rendered by Voluntary Organisations,02/08/2023,4164297-PIG_169322,"15,340.80",A1 FOSTER CARE.
Adult and Health Services,Head of Adults,Third Party Payments,478101,Purchase of Care,02/08/2023,4164302-I-23-9798506,"20,478.24",ACCEPT CARE LTD.
Adult and Health Services,Head of Adults,Third Party Payments,478101,Purchase of Care,02/08/2023,4164302-I-23-9798508,"28,806.12",ACCEPT CARE LTD.
Adult and Health Services,Head of Adults,Third Party Payments,478101,Purchase of Care,02/08/2023,4164302-I-23-9798514,"39,663.56",ACCEPT CARE LTD.
Adult and Health Services,Head of Adults,Third Party Payments,478101,Purchase of Care,02/08/2023,4164302-I-23-9798515,"12,983.04",ACCEPT CARE LTD.
Adult and Health Services,Head of Adults,Third Party Payments,478101,Purchase of Care,02/08/2023,4164302-I-23-9798563,"38,460.52",ACCEPT CARE LTD.
Adult and Health Services,Head of Adults,Third Party Payments,478101,Purchase of Care,02/08/2023,4164302-I-23-9798604,"40,423.84",ACCEPT CARE LTD.
Adult and Health Services,Head of Adults,Third Party Payments,478101,Purchase of Care,02/08/2023,4164302-I-23-9798606,"25,195.96",ACCEPT CARE LTD.
Adult and Health Services,Head of Adults,Third Party Payments,473101,Purchase of Care,02/08/2023,4164302-I-23-9798766,"6,452.84",ACCEPT CARE LTD.
Dedicated Schools Grant BG0015,DSG High Needs Block,Third Party Payments,425005,Rendered by Voluntary Organisations,02/08/2023,4164490-PIG_169292,"4,785.64",ACORN CARE & EDUCATION LTD.
Children and Young Peoples Services,Head of Childrens Social Care,Third Party Payments,425040,Rendered by Voluntary Organisations,02/08/2023,4164491-PIG_169354,"27,869.96",ACORN CARE (NE) LTD.
Children and Young Peoples Services,Head of Childrens Social Care,Third Party Payments,425021,Rendered by Voluntary Organisations,02/08/2023,4164492-PIG_169285,"15,000.00",ACORN CARE (UK) LTD T/A ACORN RESIDENTIAL SERVICES.
Adult and Health Services,Head of Adults,Third Party Payments,470101,Purchase of Care,02/08/2023,4164493-I-23-9798836,"50,600.40",ACTION FOR CARE LTD.
Adult and Health Services,Head of Adults,Third Party Payments,474101,Purchase of Care,02/08/2023,4164501-I-23-9798858,"125,579.78",AKARI CARE LTD.
Adult and Health Services,Head of Adults,Third Party Payments,470101,Purchase of Care,02/08/2023,4164502-I-23-9798887,"2,778.04",AKARI CARE LTD.
Adult and Health Services,Head of Adults,Third Party Payments,470101,Purchase of Care,02/08/2023,4164503-I-23-9799081,"113,513.29",AKARI CARE LTD.
Dedicated Schools Grant BG0015,DSG High Needs Block,Third Party Payments,425005,Rendered by Voluntary Organisations,02/08/2023,4164508-PIG_169244,"10,152.24",ALD GROUP LTD.
Children and Young Peoples Services,Head of Childrens Social Care,Third Party Payments,425021,Rendered by Voluntary Organisations,02/08/2023,4164513-PIG_168653,"33,456.00",ALEXANDERS HOUSE.
Adult and Health Services,Head of Adults,Third Party Payments,470101,Purchase of Care,02/08/2023,4164523-I-23-9798863,"153,622.14",ALLIANCE CARE (TRENDLEWOOD) LTD.
Adult and Health Services,Head of Adults,Third Party Payments,472101,Purchase of Care,02/08/2023,4164524-I-23-9573110,"6,720.00",ALLIED HEALTH-SERVICES LTD T/A ALLIED HEALTHCARE.
Adult and Health Services,Head of Adults,Third Party Payments,472101,Purchase of Care,02/08/2023,4164524-I-23-9798746,"6,720.00",ALLIED HEALTH-SERVICES LTD T/A ALLIED HEALTHCARE.
Children and Young Peoples Services,Head of Childrens Social Care,Third Party Payments,425021,Rendered by Voluntary Organisations,02/08/2023,4164526-PIG_169286,"22,708.00",AMBERLEIGH CARE LTD.
Adult and Health Services,Head of Adults,Third Party Payments,470101,Purchase of Care,02/08/2023,4164531-I-23-9799007,"13,184.00",ANCHOR CAREHOMES LTD.
Adult and Health Services,Commissioning inc Supporting People,Third Party Payments,441001,Supporting People E441,02/08/2023,4164532-4449971,"2,582.20",ANCHOR HANOVER GROUP.
Adult and Health Services,Head of Adults,Third Party Payments,470101,Purchase of Care,02/08/2023,4164533-I-23-9798962,"66,284.37",ANCHOR HANOVER GROUP.
Adult and Health Services,Head of Adults,Third Party Payments,470101,Purchase of Care,02/08/2023,4164534-I-23-9799102,"8,961.00",ANCHOR TRUST.
Adult and Health Services,Head of Adults,Third Party Payments,472101,Purchase of Care,02/08/2023,4164552-I-23-9798503,864.50,APM CLEANING & REPAIR LTD.
Children and Young Peoples Services,Head of Childrens Social Care,Third Party Payments,425023,Rendered by Voluntary Organisations,02/08/2023,4164553-PIG_169994,"19,768.00",APPLETREE TREATMENT CENTRE LTD.
Adult and Health Services,Head of Adults,Third Party Payments,472101,Purchase of Care,02/08/2023,4164554-I-23-9798721,"7,670.00",ARCHIE CARE LTD T/A HOME INSTEAD SENIOR CARE DURHAM.
Adult and Health Services,Head of Adults,Third Party Payments,470101,Purchase of Care,02/08/2023,4164555-I-23-9573384,"44,546.86",ASCOT CARE NORTH EAST LTD..
Adult and Health Services,Head of Adults,Third Party Payments,470101,Purchase of Care,02/08/2023,4164555-I-23-9799027,"59,635.09",ASCOT CARE NORTH EAST LTD..
Adult and Health Services,Head of Adults,Third Party Payments,474101,Purchase of Care,02/08/2023,4164556-I-23-9798852,"11,941.47",ASCOT CARE NORTH EAST LTD..
Adult and Health Services,Head of Adults,Third Party Payments,470101,Purchase of Care,02/08/2023,4164557-I-23-9798971,"2,848.00",ASHES CARE GROUP LTD T/A TEESDALE LODGE NURSING HOME.
Adult and Health Services,Head of Adults,Third Party Payments,470101,Purchase of Care,02/08/2023,4164560-I-23-9799031,"1,324.72",ASPIRE CARE GROUP T/A GRASMERE LODGE.
Adult and Health Services,Head of Adults,Third Party Payments,470101,Purchase of Care,02/08/2023,4164561-I-23-9798510,"1,061.60",ASPIRE CARE GROUP.
Adult and Health Services,Head of Adults,Third Party Payments,470101,Purchase of Care,02/08/2023,4164561-I-23-9798848,"18,200.72",ASPIRE CARE GROUP.
Adult and Health Services,Head of Adults,Third Party Payments,470101,Purchase of Care,02/08/2023,4164562-I-23-9798607,530.80,ASPIRE CARE GROUP.
Adult and Health Services,Head of Adults,Third Party Payments,470101,Purchase of Care,02/08/2023,4164562-I-23-9798933,"9,060.20",ASPIRE CARE GROUP.
Adult and Health Services,Head of Adults,Third Party Payments,470101,Purchase of Care,02/08/2023,4164563-I-23-9798998,"31,026.03",ASPIRE CARE GROUP.
Adult and Health Services,Head of Adults,Third Party Payments,470101,Purchase of Care,02/08/2023,4164564-I-23-9798840,"7,783.92",ASPIRE HEALTHCARE LTD.
Adult and Health Services,Head of Adults,Third Party Payments,478101,Purchase of Care,02/08/2023,4164565-I-23-9798591,"4,118.40",ASPIRE HEALTHCARE LTD.
Adult and Health Services,Head of Adults,Third Party Payments,474101,Purchase of Care,02/08/2023,4164567-I-23-9798981,"3,378.20",ATLAS CARE HOMES LTD.
Adult and Health Services,Head of Adults,Third Party Payments,470101,Purchase of Care,02/08/2023,4164571-I-23-9799006,"2,612.00",AUGUSTE COMMUNITIES CARE HOME.
Adult and Health Services,Head of Adults,Third Party Payments,478101,Purchase of Care,02/08/2023,4164572-I-23-9798526,"12,418.20",AUTISM CARE UK (4) LTD.
Adult and Health Services,Head of Adults,Third Party Payments,478101,Purchase of Care,02/08/2023,4164572-I-23-9798703,"14,935.00",AUTISM CARE UK (4) LTD.
Adult and Health Services,Head of Adults,Third Party Payments,478101,Purchase of Care,02/08/2023,4164572-I-23-9798783,"15,146.40",AUTISM CARE UK (4) LTD.
Adult and Health Services,Head of Adults,Third Party Payments,478101,Purchase of Care,02/08/2023,4164572-I-23-9798789,"19,487.76",AUTISM CARE UK (4) LTD.
Adult and Health Services,Head of Adults,Third Party Payments,470101,Purchase of Care,02/08/2023,4164572-I-23-9798926,"20,155.36",AUTISM CARE UK (4) LTD.
Adult and Health Services,Head of Adults,Third Party Payments,470101,Purchase of Care,02/08/2023,4164573-I-23-9799110,"1,700.00",AUTUMN HOUSE CARE LTD.
Adult and Health Services,Head of Adults,Third Party Payments,470101,Purchase of Care,02/08/2023,4164574-I-23-9799008,"2,747.16",AVERY HEALTH CARE LTD T/A HIGHCLIFFE CARE HOME.
Children and Young Peoples Services,Head of Childrens Social Care,Third Party Payments,425040,Rendered by Voluntary Organisations,02/08/2023,4164575-PIG_167333,917.00,BANYA FAMILY PLACEMENT AGENCY LTD.
Children and Young Peoples Services,Head of Childrens Social Care,Third Party Payments,425040,Rendered by Voluntary Organisations,02/08/2023,4164575-PIG_169388,"16,468.80",BANYA FAMILY PLACEMENT AGENCY LTD.
Adult and Health Services,Head of Adults,Third Party Payments,470101,Purchase of Care,02/08/2023,4164577-I-23-9798980,"7,778.16",BARCHESTER HEALTHCARE HOMES LTD.
Adult and Health Services,Head of Adults,Third Party Payments,470101,Purchase of Care,02/08/2023,4164578-I-23-9798932,"13,350.00",BARCHESTER HEALTHCARE HOMES LTD.
Adult and Health Services,Head of Adults,Third Party Payments,470101,Purchase of Care,02/08/2023,4164579-I-23-9798951,"52,839.14",BARCHESTER HEALTHCARE HOMES LTD.
Adult and Health Services,Head of Adults,Third Party Payments,474101,Purchase of Care,02/08/2023,4164580-I-23-9798959,"32,485.72",BARCHESTER HEALTHCARE HOMES LTD.
Adult and Health Services,Head of Adults,Third Party Payments,474101,Purchase of Care,02/08/2023,4164581-I-23-9799023,"98,630.54",BARCHESTER HEALTHCARE HOMES LTD.
Adult and Health Services,Head of Adults,Third Party Payments,470101,Purchase of Care,02/08/2023,4164582-I-23-9798941,"4,741.44",BARCHESTER HEALTHCARE HOMES LTD.
Adult and Health Services,Head of Adults,Third Party Payments,474101,Purchase of Care,02/08/2023,4164583-I-23-9798978,"1,900.00",BARCHESTER HEALTHCARE HOMES LTD.
Adult and Health Services,Head of Adults,Third Party Payments,470101,Purchase of Care,02/08/2023,4164584-I-23-9798968,"4,400.00",BARCHESTER HEALTHCARE HOMES LTD.
Children and Young Peoples Services,Head of Childrens Social Care,Third Party Payments,425040,Rendered by Voluntary Organisations,02/08/2023,4164586-PIG_168621,"6,861.84",BARNARDO SERVICES LTD.
Children and Young Peoples Services,Head of Childrens Social Care,Third Party Payments,425040,Rendered by Voluntary Organisations,02/08/2023,4164587-PIG_168620,"3,357.84",BARNARDOS BELIEVE IN CHILDREN.
Children and Young Peoples Services,Head of Childrens Social Care,Third Party Payments,425021,Rendered by Voluntary Organisations,02/08/2023,4164589-PIG_168655,"65,294.40",BDT CARE SOLUTIONS LTD.
Children and Young Peoples Services,Head of Childrens Social Care,Third Party Payments,425021,Rendered by Voluntary Organisations,02/08/2023,4164589-PIG_168656,"52,399.46",BDT CARE SOLUTIONS LTD.
Adult and Health Services,Head of Adults,Third Party Payments,470101,Purchase of Care,02/08/2023,4164590-I-23-9798905,"42,217.19",BEAMISH RESIDENTIAL CARE HOME LTD.
Adult and Health Services,Head of Adults,Third Party Payments,478101,Purchase of Care,02/08/2023,4164591-I-23-9798567,"20,901.47",BEECHFIELD CARE & SUPPORT LTD.
Adult and Health Services,Head of Adults,Third Party Payments,470101,Purchase of Care,02/08/2023,4164594-I-23-9799056,"19,913.92",BENTON CARE SERVICES LTD.
Children and Young Peoples Services,Head of Childrens Social Care,Third Party Payments,425040,Rendered by Voluntary Organisations,02/08/2023,4164597-PIG_169389,"4,472.70",BETA NORTH LTD T/A EVOLVE FOSTERING.
Adult and Health Services,Head of Adults,Third Party Payments,472101,Purchase of Care,02/08/2023,4164602-I-23-9798549,"21,498.22",BLOSSOM HOME CARE.
Children and Young Peoples Services,Head of Childrens Social Care,Third Party Payments,425021,Rendered by Voluntary Organisations,02/08/2023,4164603-PIG_168657,"65,346.16",BLOSSOM SC LTD .
Adult and Health Services,Head of Adults,Third Party Payments,470101,Purchase of Care,02/08/2023,4164604-I-23-9798804,"7,323.66",BONDCARE WILLINGTON LTD.
Adult and Health Services,Head of Adults,Third Party Payments,470101,Purchase of Care,02/08/2023,4164604-I-23-9799098,"115,104.22",BONDCARE WILLINGTON LTD.
Adult and Health Services,Head of Adults,Third Party Payments,470101,Purchase of Care,02/08/2023,4164605-I-23-9798601,"2,122.80",BONDCARE WILLINGTON LTD.
Adult and Health Services,Head of Adults,Third Party Payments,470101,Purchase of Care,02/08/2023,4164605-I-23-9798936,"77,664.62",BONDCARE WILLINGTON LTD.
Adult and Health Services,Head of Adults,Third Party Payments,478101,Purchase of Care,02/08/2023,4164606-I-23-9798636,"34,440.28",BONDCARE WILLINGTON LTD.
Adult and Health Services,Head of Adults,Third Party Payments,478101,Purchase of Care,02/08/2023,4164606-I-23-9798784,"58,858.54",BONDCARE WILLINGTON LTD.
Adult and Health Services,Head of Adults,Third Party Payments,470101,Purchase of Care,02/08/2023,4164607-I-23-9798682,636.84,BONDCARE WILLINGTON LTD.
Adult and Health Services,Head of Adults,Third Party Payments,474101,Purchase of Care,02/08/2023,4164607-I-23-9798984,"97,651.99",BONDCARE WILLINGTON LTD.
Adult and Health Services,Head of Adults,Third Party Payments,470101,Purchase of Care,02/08/2023,4164608-I-23-9798856,"6,476.53",BOWDEN DERRA PARK LTD.
Adult and Health Services,Head of Adults,Third Party Payments,474101,Purchase of Care,02/08/2023,4164611-I-23-9573254,823.75,BRIARDENE PRIVATE RESIDENTIAL & NURSING HOME.
Adult and Health Services,Head of Adults,Third Party Payments,474101,Purchase of Care,02/08/2023,4164611-I-23-9798897,"3,240.56",BRIARDENE PRIVATE RESIDENTIAL & NURSING HOME.
Adult and Health Services,Head of Adults,Third Party Payments,473101,Purchase of Care,02/08/2023,4164612-I-23-9798513,"3,475.98",BRIDGE CREATIVE ENTERPRISE CIC.
Children and Young Peoples Services,Head of Childrens Social Care,Third Party Payments,425040,Rendered by Voluntary Organisations,02/08/2023,4164613-PIG_168622,"3,400.00",BRIDGING GAPS LTD T/A BRIDGING GAPS FOSTERING AGENCY.
Children and Young Peoples Services,Head of Childrens Social Care,Third Party Payments,425021,Rendered by Voluntary Organisations,02/08/2023,4164614-PIG_169288,"29,720.00",BRIGHT FUTURES CARE LTD.
Children and Young Peoples Services,Head of Childrens Social Care,Third Party Payments,425023,Rendered by Voluntary Organisations,02/08/2023,4164614-PIG_169293,"4,357.68",BRIGHT FUTURES CARE LTD.
Adult and Health Services,Head of Adults,Third Party Payments,470101,Purchase of Care,02/08/2023,4164616-I-23-9799119,"58,025.50",BROOMHOUSE CARE LTD.
Adult and Health Services,Head of Adults,Third Party Payments,473101,Purchase of Care,02/08/2023,4164617-I-23-9798724,"1,847.56",BULLION COMMUNITY RESOURCE CENTRE.
Adult and Health Services,Head of Adults,Third Party Payments,470101,Purchase of Care,02/08/2023,4164618-I-23-9798896,"3,404.32",BURN BRAE LODGE.
Children and Young Peoples Services,Head of Childrens Social Care,Third Party Payments,425020,Rendered by Voluntary Organisations,02/08/2023,4164619-PIG_169985,"24,276.00",BUTTERWICK LTD..
Adult and Health Services,Head of Adults,Third Party Payments,478101,Purchase of Care,02/08/2023,4164620-I-23-9798509,"76,080.00",BYKARE SOLUTIONS LTD.
Dedicated Schools Grant BG0015,DSG High Needs Block,Third Party Payments,440080,Other third party payments E440,02/08/2023,4164623-PIG_169294,"11,922.30",CAMBIAN CHILDCARE LTD T/A HARTLEPOOL SCHOOL.
Dedicated Schools Grant BG0015,DSG High Needs Block,Third Party Payments,425005,Rendered by Voluntary Organisations,02/08/2023,4164623-PIG_169295,"3,488.28",CAMBIAN CHILDCARE LTD T/A HARTLEPOOL SCHOOL.
Children and Young Peoples Services,Head of Childrens Social Care,Third Party Payments,425021,Rendered by Voluntary Organisations,02/08/2023,4164624-PIG_169202,"18,900.00",CAMBIAN CHILDCARE LTD.
Children and Young Peoples Services,Head of Childrens Social Care,Third Party Payments,425021,Rendered by Voluntary Organisations,02/08/2023,4164624-PIG_169240,"45,800.00",CAMBIAN CHILDCARE LTD.
Children and Young Peoples Services,Head of Childrens Social Care,Third Party Payments,425021,Rendered by Voluntary Organisations,02/08/2023,4164625-PIG_168725,"27,400.00",CAMBIAN CHILDCARE LTD.
Adult and Health Services,Head of Adults,Third Party Payments,470101,Purchase of Care,02/08/2023,4164628-I-23-9798952,"140,975.91",CARE UK COMMUNITY PARTNERSHIPS LTD.
Adult and Health Services,Head of Adults,Third Party Payments,470101,Purchase of Care,02/08/2023,4164629-I-23-9799020,"60,291.45",CARE UK COMMUNITY PARTNERSHIPS LTD.
Adult and Health Services,Head of Adults,Third Party Payments,470101,Purchase of Care,02/08/2023,4164630-I-23-9573349,"48,728.30",CARE UK COMMUNITY PARTNERSHIPS LTD.
Adult and Health Services,Head of Adults,Third Party Payments,470101,Purchase of Care,02/08/2023,4164630-I-23-9798991,"42,202.23",CARE UK COMMUNITY PARTNERSHIPS LTD.
Adult and Health Services,Head of Adults,Third Party Payments,470101,Purchase of Care,02/08/2023,4164631-I-23-9798987,"4,331.72",CARE UK COMMUNITY PARTNERSHIPS LTD.
Adult and Health Services,Head of Adults,Third Party Payments,470101,Purchase of Care,02/08/2023,4164632-I-23-9798954,"11,256.43",CARE UK COMMUNITY PARTNERSHIPS LTD.
Adult and Health Services,Head of Adults,Third Party Payments,470101,Purchase of Care,02/08/2023,4164633-I-23-9799106,"7,011.84",CARE UK COMMUNITY PARTNERSHIPS LTD.
Adult and Health Services,Head of Adults,Third Party Payments,472101,Purchase of Care,02/08/2023,4164634-I-23-9798643,"32,214.47",CARE VANTAGE LTD.
Adult and Health Services,Head of Adults,Third Party Payments,474101,Purchase of Care,02/08/2023,4164635-I-23-9798878,"5,713.72",CARELINE LIFESTYLES (UK) LTD.
Adult and Health Services,Head of Adults,Third Party Payments,474101,Purchase of Care,02/08/2023,4164636-I-23-9798913,"12,661.28",CARELINE LIFESTYLES (UK) LTD.
Adult and Health Services,Head of Adults,Third Party Payments,470101,Purchase of Care,02/08/2023,4164637-I-23-9798931,"3,860.84",CARELINE LIFESTYLES (UK) LTD.
Adult and Health Services,Head of Adults,Third Party Payments,470101,Purchase of Care,02/08/2023,4164638-I-23-9799041,"12,016.36",CARELINE LIFESTYLES (UK) LTD.
Adult and Health Services,Head of Adults,Third Party Payments,474101,Purchase of Care,02/08/2023,4164639-I-23-9798946,"10,117.44",CARELINE LIFESTYLES.
Adult and Health Services,Head of Adults,Third Party Payments,474101,Purchase of Care,02/08/2023,4164640-I-23-9799100,"58,588.65",CAREWELL (HEALTH CARE) LTD.
Adult and Health Services,Head of Adults,Third Party Payments,472101,Purchase of Care,02/08/2023,4164647-I-23-9798556,"31,902.05",CASTLE CARE TEESDALE LTD.
Adult and Health Services,Head of Adults,Third Party Payments,478101,Purchase of Care,02/08/2023,4164648-I-23-9573095,"61,600.00",CASTLE VIEW GROUP TRAINING.
Adult and Health Services,Head of Adults,Third Party Payments,478101,Purchase of Care,02/08/2023,4164648-I-23-9798731,"62,840.00",CASTLE VIEW GROUP TRAINING.
Adult and Health Services,Head of Adults,Third Party Payments,474101,Purchase of Care,02/08/2023,4164651-I-23-9799073,"3,400.00",CEDAR CARE HOMES LTD.
Adult and Health Services,Head of Adults,Third Party Payments,470101,Purchase of Care,02/08/2023,4164652-I-23-9799047,"3,199.12",CEDAR HOUSE SUNDERLAND LTD.
Adult and Health Services,Head of Adults,Third Party Payments,472101,Purchase of Care,02/08/2023,4164653-I-23-9798495,"1,960.00",CEL HOMECARE LTD.
Children and Young Peoples Services,Head of Childrens Social Care,Third Party Payments,425040,Rendered by Voluntary Organisations,02/08/2023,4164654-PIG_169321,"20,476.04",CHANGING FUTURES FOSTERING.
Adult and Health Services,Head of Adults,Third Party Payments,473101,Purchase of Care,02/08/2023,4164656-I-23-9798520,"4,096.71",CHARITY REGISTERED AS ONE TO ONE.
Adult and Health Services,Head of Adults,Third Party Payments,470101,Purchase of Care,02/08/2023,4164683-I-23-9798869,"9,428.64",COLEG ELIDYR CAMPHILL COMMUNITIES.
Adult and Health Services,Head of Adults,Third Party Payments,472101,Purchase of Care,02/08/2023,4164687-I-23-9798681,"104,560.11",COMFORT CALL LTD.
Adult and Health Services,Head of Adults,Third Party Payments,478101,Purchase of Care,02/08/2023,4164688-I-22-5968330-1/8/23,"1,205.24",COMMUNITY INTEGRATED CARE LTD.
Adult and Health Services,Head of Adults,Third Party Payments,478101,Purchase of Care,02/08/2023,4164688-I-23-9798613,"31,789.04",COMMUNITY INTEGRATED CARE LTD.
Adult and Health Services,Head of Adults,Third Party Payments,478101,Purchase of Care,02/08/2023,4164688-I-23-9798614,"28,268.80",COMMUNITY INTEGRATED CARE LTD.
Adult and Health Services,Head of Adults,Third Party Payments,478101,Purchase of Care,02/08/2023,4164688-I-23-9798699,"23,425.92",COMMUNITY INTEGRATED CARE LTD.
Adult and Health Services,Head of Adults,Third Party Payments,478101,Purchase of Care,02/08/2023,4164688-I-23-9798710,"23,108.96",COMMUNITY INTEGRATED CARE LTD.
Adult and Health Services,Head of Adults,Third Party Payments,478101,Purchase of Care,02/08/2023,4164688-I-23-9798711,"19,257.67",COMMUNITY INTEGRATED CARE LTD.
Adult and Health Services,Head of Adults,Third Party Payments,478101,Purchase of Care,02/08/2023,4164688-I-23-9798712,"27,199.48",COMMUNITY INTEGRATED CARE LTD.
Adult and Health Services,Head of Adults,Third Party Payments,478101,Purchase of Care,02/08/2023,4164688-I-23-9798778,"29,000.16",COMMUNITY INTEGRATED CARE LTD.
Children and Young Peoples Services,Head of Childrens Social Care,Third Party Payments,425040,Rendered by Voluntary Organisations,02/08/2023,4164689-PIG_169355,"28,833.87",COMPASS FOSTERING SOUTH LTD.
Children and Young Peoples Services,Head of Childrens Social Care,Third Party Payments,425040,Rendered by Voluntary Organisations,02/08/2023,4164689-PIG_169394,971.54,COMPASS FOSTERING SOUTH LTD.
Adult and Health Services,Head of Adults,Third Party Payments,478101,Purchase of Care,02/08/2023,4164690-I-23-9798651,"8,073.60",COMPASSIONATE CARE & SUPPORT LTD.
Adult and Health Services,Head of Adults,Third Party Payments,470101,Purchase of Care,02/08/2023,4164691-I-23-9799048,"2,747.16",CONAGS CARE LTD.
Adult and Health Services,Head of Adults,Third Party Payments,472101,Purchase of Care,02/08/2023,4164692-I-23-9798496,540.00,CONFIDENCE CARE & SUPPORT LTD.
Adult and Health Services,Head of Adults,Third Party Payments,470101,Purchase of Care,02/08/2023,4164694-I-23-9799111,"10,817.07",CONSENSUS SUPPORT SERVICES LTD.
Adult and Health Services,Head of Adults,Third Party Payments,470101,Purchase of Care,02/08/2023,4164695-I-23-9799033,"67,756.82",COUNTRYWIDE CARE HOMES (2) LTD.
Adult and Health Services,Head of Adults,Third Party Payments,470101,Purchase of Care,02/08/2023,4164696-I-23-9799097,"74,283.21",COUNTRYWIDE CARE HOMES (2) LTD.
Adult and Health Services,Head of Adults,Third Party Payments,470101,Purchase of Care,02/08/2023,4164697-I-23-9798904,"10,327.72",COUNTRYWIDE CARE HOMES (2) LTD.
Adult and Health Services,Head of Adults,Third Party Payments,470101,Purchase of Care,02/08/2023,4164698-I-23-9798884,"114,083.83",COUNTRYWIDE CARE HOMES (2) LTD.
Adult and Health Services,Head of Adults,Third Party Payments,470101,Purchase of Care,02/08/2023,4164699-I-23-9799028,"3,141.84",COUNTRYWIDE CARE HOMES (2) LTD.
Adult and Health Services,Head of Adults,Third Party Payments,474101,Purchase of Care,02/08/2023,4164703-I-23-9799092,"51,571.47",CRAIGARRAN LTD.
Adult and Health Services,Head of Adults,Third Party Payments,470101,Purchase of Care,02/08/2023,4164704-I-23-9798846,"4,300.58",CRAMLINGTON HOUSE LTD.
Adult and Health Services,Head of Adults,Third Party Payments,472101,Purchase of Care,02/08/2023,4164705-I-23-9798619,"1,058.40",CREATIVE SUPPORT LTD.
Adult and Health Services,Head of Adults,Third Party Payments,478101,Purchase of Care,02/08/2023,4164705-I-23-9798708,"11,550.68",CREATIVE SUPPORT LTD.
Adult and Health Services,Head of Adults,Third Party Payments,478101,Purchase of Care,02/08/2023,4164705-I-23-9798786,"35,160.04",CREATIVE SUPPORT LTD.
Adult and Health Services,Head of Adults,Third Party Payments,478101,Purchase of Care,02/08/2023,4164705-I-23-9798792,"18,633.00",CREATIVE SUPPORT LTD.
Adult and Health Services,Head of Adults,Third Party Payments,472101,Purchase of Care,02/08/2023,4164706-I-23-9798685,"84,090.38",CRESCENT HOMECARE LTD.
Adult and Health Services,Head of Adults,Third Party Payments,470101,Purchase of Care,02/08/2023,4164707-I-23-9798874,"86,847.13",CROFT HOUSE (CARE) LTD.
Adult and Health Services,Head of Adults,Third Party Payments,474101,Purchase of Care,02/08/2023,4164708-I-23-9798813,"3,298.00",CROWN CARE IV LTD T/A BALMORAL COURT.
Adult and Health Services,Head of Adults,Third Party Payments,474101,Purchase of Care,02/08/2023,4164709-I-23-9799051,"3,321.00",CROWN CARE IV LTD.
Adult and Health Services,Head of Adults,Third Party Payments,474101,Purchase of Care,02/08/2023,4164710-I-23-9798916,"217,609.32",CROWN CARE VI LTD.
Adult and Health Services,Head of Adults,Third Party Payments,470101,Purchase of Care,02/08/2023,4164711-I-23-9798955,"35,892.36",CYGNET OE LTD.
Adult and Health Services,Head of Adults,Third Party Payments,470101,Purchase of Care,02/08/2023,4164712-I-23-9573357,"28,126.92",CYGNET OE LTD.
Adult and Health Services,Head of Adults,Third Party Payments,470101,Purchase of Care,02/08/2023,4164712-I-23-9798999,"28,126.92",CYGNET OE LTD.
Adult and Health Services,Head of Adults,Third Party Payments,470101,Purchase of Care,02/08/2023,4164714-I-23-9798861,"77,571.70",D3 CARE LTD.
Adult and Health Services,Head of Adults,Third Party Payments,472101,Purchase of Care,02/08/2023,4164715-I-23-9798646,"459,597.26",DALE CARE LTD.
Adult and Health Services,Head of Adults,Third Party Payments,478101,Purchase of Care,02/08/2023,4164748-I-23-9798502,"7,356.12",DEACONSTAR LTD.
Adult and Health Services,Head of Adults,Third Party Payments,478101,Purchase of Care,02/08/2023,4164748-I-23-9798644,"11,413.08",DEACONSTAR LTD.
Adult and Health Services,Head of Adults,Third Party Payments,478101,Purchase of Care,02/08/2023,4164748-I-23-9798695,"31,581.42",DEACONSTAR LTD.
Adult and Health Services,Head of Adults,Third Party Payments,473101,Purchase of Care,02/08/2023,4164748-I-23-9798740,"15,899.70",DEACONSTAR LTD.
Adult and Health Services,Head of Adults,Third Party Payments,478101,Purchase of Care,02/08/2023,4164748-I-23-9798803,"12,647.85",DEACONSTAR LTD.
Adult and Health Services,Head of Adults,Third Party Payments,470101,Purchase of Care,02/08/2023,4164753-I-23-9798920,"44,575.36",DEVONSHIRE HOUSE CARE LTD.
Adult and Health Services,Head of Adults,Third Party Payments,470101,Purchase of Care,02/08/2023,4164754-I-23-9798986,"131,019.28",DIPTON CARE HOME LTD.
Adult and Health Services,Head of Adults,Third Party Payments,473101,Purchase of Care,02/08/2023,4164755-I-23-9798590,"9,723.28",DIRECT STEPS.
Children and Young Peoples Services,Head of Childrens Social Care,Third Party Payments,425040,Rendered by Voluntary Organisations,02/08/2023,4164756-PIG_169384,"2,503.96",DIVERSE CARE UK LTD.
Adult and Health Services,Head of Adults,Third Party Payments,470101,Purchase of Care,02/08/2023,4164762-I-23-9573363,"1,840.68",DOVE CARE LTD.
Adult and Health Services,Head of Adults,Third Party Payments,470101,Purchase of Care,02/08/2023,4164762-I-23-9799005,"1,840.68",DOVE CARE LTD.
Adult and Health Services,Commissioning inc Supporting People,Third Party Payments,441001,Supporting People E441,02/08/2023,4164763-4448771,"25,437.16",DURHAM ACTION ON SINGLE HOUSING LTD.
Adult and Health Services,Head of Adults,Third Party Payments,473101,Purchase of Care,02/08/2023,4164764-I-23-9798483,"3,631.21",DURHAM ALLIANCE FOR COMMUNITY CARE.
Adult and Health Services,Head of Adults,Third Party Payments,473101,Purchase of Care,02/08/2023,4164764-I-23-9798742,"5,669.43",DURHAM ALLIANCE FOR COMMUNITY CARE.
Adult and Health Services,Head of Adults,Third Party Payments,473101,Purchase of Care,02/08/2023,4164764-I-23-9798743,"3,230.57",DURHAM ALLIANCE FOR COMMUNITY CARE.
Adult and Health Services,Head of Adults,Third Party Payments,473101,Purchase of Care,02/08/2023,4164764-I-23-9798744,"2,730.70",DURHAM ALLIANCE FOR COMMUNITY CARE.
Adult and Health Services,Head of Adults,Third Party Payments,473101,Purchase of Care,02/08/2023,4164764-I-23-9798797,956.52,DURHAM ALLIANCE FOR COMMUNITY CARE.
Adult and Health Services,Head of Adults,Third Party Payments,470101,Purchase of Care,02/08/2023,4164765-I-23-9798942,"57,424.30",DURHAM CARELINE LTD.
Adult and Health Services,Head of Adults,Third Party Payments,474101,Purchase of Care,02/08/2023,4164766-I-23-9799029,"93,537.91",DURHAM CARELINE LTD.
Adult and Health Services,Head of Adults,Third Party Payments,474101,Purchase of Care,02/08/2023,4164767-I-23-9799104,"128,998.97",DURHAM CARELINE LTD.
Adult and Health Services,Head of Adults,Third Party Payments,474101,Purchase of Care,02/08/2023,4164768-I-23-9799120,"2,772.00",DURHAM TEES CARE LTD.
Children and Young Peoples Services,Head of Childrens Social Care,Third Party Payments,425021,Rendered by Voluntary Organisations,02/08/2023,4164769-PIG_169241,"37,200.00",DUTY OF CARE LTD.
Children and Young Peoples Services,Head of Childrens Social Care,Third Party Payments,425021,Rendered by Voluntary Organisations,02/08/2023,4164769-PIG_169242,"34,400.00",DUTY OF CARE LTD.
Adult and Health Services,Head of Adults,Third Party Payments,474101,Purchase of Care,02/08/2023,4164772-I-23-9799019,"2,625.48",EAST CHESHIRE HOUSING CONSORTIUM LTD.
Adult and Health Services,Head of Adults,Third Party Payments,474101,Purchase of Care,02/08/2023,4164773-I-23-9798906,"5,996.57",EAST CLEVELAND M S HOME.
Adult and Health Services,Head of Adults,Third Party Payments,473101,Purchase of Care,02/08/2023,4164774-I-23-9798552,"2,625.08",EAST DURHAM COLLEGE.
Adult and Health Services,Commissioning inc Supporting People,Third Party Payments,441001,Supporting People E441,02/08/2023,4164775-4448939,"5,498.48",EAST DURHAM COMMUNITY INITIATIVES LTD.
Adult and Health Services,Head of Adults,Third Party Payments,473101,Purchase of Care,02/08/2023,4164776-I-23-9798472,"26,495.05",EBONEY HOME CARE LTD.
Adult and Health Services,Head of Adults,Third Party Payments,472101,Purchase of Care,02/08/2023,4164776-I-23-9798683,"17,553.91",EBONEY HOME CARE LTD.
Adult and Health Services,Head of Adults,Third Party Payments,470101,Purchase of Care,02/08/2023,4164778-I-23-9799063,"10,181.22",EDUCATION & SERVICES FOR PEOPLE WITH AUTISM LTD (ESPA).
Adult and Health Services,Head of Adults,Third Party Payments,470101,Purchase of Care,02/08/2023,4164779-I-23-9798872,"10,014.24",EDUCATION & SERVICES FOR PEOPLE WITH AUTISM LTD (ESPA).
Adult and Health Services,Head of Adults,Third Party Payments,470101,Purchase of Care,02/08/2023,4164780-I-23-9799009,"10,200.24",EDUCATION & SERVICES FOR PEOPLE WITH AUTISM LTD (ESPA).
Adult and Health Services,Head of Adults,Third Party Payments,470101,Purchase of Care,02/08/2023,4164781-I-23-9798907,"6,489.84",EDUCATION & SERVICES FOR PEOPLE WITH AUTISM LTD (ESPA).
Adult and Health Services,Head of Adults,Third Party Payments,470101,Purchase of Care,02/08/2023,4164781-I-23-9798985,"5,374.92",EDUCATION & SERVICES FOR PEOPLE WITH AUTISM LTD (ESPA).
Children and Young Peoples Services,Head of Childrens Social Care,Third Party Payments,425021,Rendered by Voluntary Organisations,02/08/2023,4164784-PIG_170001,"31,000.00",EJ CHILDCARE SERVICES LTD.
Adult and Health Services,Head of Adults,Third Party Payments,478101,Purchase of Care,02/08/2023,4164785-I-23-9798640,"33,000.48",ELAN CARE WHITETHORN LTD.
Adult and Health Services,Head of Adults,Third Party Payments,470101,Purchase of Care,02/08/2023,4164786-I-23-9798947,"61,540.46",ELBA CARE LTD.
Adult and Health Services,Head of Adults,Third Party Payments,472101,Purchase of Care,02/08/2023,4164788-I-23-9798807,"21,213.54",ELITE HOMECARE SERVICE LTD.
Adult and Health Services,Head of Adults,Third Party Payments,470101,Purchase of Care,02/08/2023,4164794-I-23-9799095,"6,017.60",ELLERSHAW HOUSE LTD.
Adult and Health Services,Head of Adults,Third Party Payments,470101,Purchase of Care,02/08/2023,4164795-I-23-9798880,"3,594.40",ELPHA LODGE RESIDENTIAL CARE HOME  LTD.
Adult and Health Services,Head of Adults,Third Party Payments,478101,Purchase of Care,02/08/2023,4164797-I-23-9798647,"348,516.45",EMBRACING CARE.
Adult and Health Services,Head of Adults,Third Party Payments,478101,Purchase of Care,02/08/2023,4164797-I-23-9798688,"7,459.96",EMBRACING CARE.
Adult and Health Services,Head of Adults,Third Party Payments,478101,Purchase of Care,02/08/2023,4164797-I-23-9798738,"20,767.92",EMBRACING CARE.
Adult and Health Services,Head of Adults,Third Party Payments,478101,Purchase of Care,02/08/2023,4164798-I-23-9798479,"54,701.12",EMBRACING CARE.
Adult and Health Services,Head of Adults,Third Party Payments,470101,Purchase of Care,02/08/2023,4164803-I-23-9798881,"8,529.76",ENCOMPASS CARE ORGANISATION UK.
Adult and Health Services,Head of Adults,Third Party Payments,473101,Purchase of Care,02/08/2023,4164804-I-23-9798466,"7,451.84",ENDEAVOUR WOODCRAFTS CIC.
Children and Young Peoples Services,Head of Childrens Social Care,Third Party Payments,425021,Rendered by Voluntary Organisations,02/08/2023,4164805-PIG_169245,"64,599.82",ENHANCED YOUNG PERSONS` CARE LTD.
Children and Young Peoples Services,Head of Childrens Social Care,Third Party Payments,425021,Rendered by Voluntary Organisations,02/08/2023,4164805-PIG_169998,"7,071.30",ENHANCED YOUNG PERSONS` CARE LTD.
Children and Young Peoples Services,Head of Childrens Social Care,Third Party Payments,425021,Rendered by Voluntary Organisations,02/08/2023,4164809-PIG_169246,"18,750.00",ESLAND NORTH LTD T/A HEATHER LODGE RESIDENTIAL HOME.
Dedicated Schools Grant BG0015,DSG High Needs Block,Third Party Payments,425005,Rendered by Voluntary Organisations,02/08/2023,4164809-PIG_169306,"21,785.97",ESLAND NORTH LTD T/A HEATHER LODGE RESIDENTIAL HOME.
Adult and Health Services,Head of Adults,Third Party Payments,470101,Purchase of Care,02/08/2023,4164810-I-23-9799057,"84,771.97",ESSENTIAL CARE & SUPPORT LTD.
Adult and Health Services,Head of Adults,Third Party Payments,478101,Purchase of Care,02/08/2023,4164811-I-23-9798499,"10,537.38",ESSENTIAL CARE & SUPPORT LTD.
Adult and Health Services,Head of Adults,Third Party Payments,478101,Purchase of Care,02/08/2023,4164811-I-23-9798525,"30,575.48",ESSENTIAL CARE & SUPPORT LTD.
Adult and Health Services,Head of Adults,Third Party Payments,478101,Purchase of Care,02/08/2023,4164811-I-23-9798574,"14,594.54",ESSENTIAL CARE & SUPPORT LTD.
Adult and Health Services,Head of Adults,Third Party Payments,478101,Purchase of Care,02/08/2023,4164811-I-23-9798576,"43,173.95",ESSENTIAL CARE & SUPPORT LTD.
Adult and Health Services,Head of Adults,Third Party Payments,478101,Purchase of Care,02/08/2023,4164811-I-23-9798626,"110,049.55",ESSENTIAL CARE & SUPPORT LTD.
Adult and Health Services,Head of Adults,Third Party Payments,478101,Purchase of Care,02/08/2023,4164811-I-23-9798679,"27,435.24",ESSENTIAL CARE & SUPPORT LTD.
Adult and Health Services,Head of Adults,Third Party Payments,478101,Purchase of Care,02/08/2023,4164811-I-23-9798698,"9,869.16",ESSENTIAL CARE & SUPPORT LTD.
Adult and Health Services,Head of Adults,Third Party Payments,478101,Purchase of Care,02/08/2023,4164811-I-23-9798756,"51,700.72",ESSENTIAL CARE & SUPPORT LTD.
Adult and Health Services,Head of Adults,Third Party Payments,478101,Purchase of Care,02/08/2023,4164811-I-23-9798782,"22,780.92",ESSENTIAL CARE & SUPPORT LTD.
Adult and Health Services,Head of Adults,Third Party Payments,478101,Purchase of Care,02/08/2023,4164811-I-23-9798791,"19,859.68",ESSENTIAL CARE & SUPPORT LTD.
Adult and Health Services,Head of Adults,Third Party Payments,473101,Purchase of Care,02/08/2023,4164815-I-23-9798581,"29,456.18",ETHICARE (DURHAM) LTD.
Adult and Health Services,Head of Adults,Third Party Payments,472101,Purchase of Care,02/08/2023,4164815-I-23-9798629,"7,554.62",ETHICARE (DURHAM) LTD.
Adult and Health Services,Head of Adults,Third Party Payments,478101,Purchase of Care,02/08/2023,4164815-I-23-9798639,"7,191.44",ETHICARE (DURHAM) LTD.
Adult and Health Services,Head of Adults,Third Party Payments,478101,Purchase of Care,02/08/2023,4164815-I-23-9798667,"10,319.92",ETHICARE (DURHAM) LTD.
Adult and Health Services,Head of Adults,Third Party Payments,474101,Purchase of Care,02/08/2023,4164819-I-23-9798957,"31,833.56",EXEMPLAR LTD T/A WYKEWOOD CARE HOME.
Children and Young Peoples Services,Head of Childrens Social Care,Third Party Payments,425021,Rendered by Voluntary Organisations,02/08/2023,4164820-PIG_169247,"38,009.88",FAIRFIELD RESIDENTIAL LTD T/A FAIRFIELD HOUSE & FAIRFIELD SCHOOL.
Children and Young Peoples Services,Head of Childrens Social Care,Third Party Payments,425040,Rendered by Voluntary Organisations,02/08/2023,4164825-PIG_168623,"9,520.64",FIRST FOR FOSTERING LTD.
Adult and Health Services,Head of Adults,Third Party Payments,473101,Purchase of Care,02/08/2023,4164826-I-23-9798768,"11,449.34",FIVE ACRES COMMUNITY GARDEN LTD.
Children and Young Peoples Services,Head of Childrens Social Care,Third Party Payments,425040,Rendered by Voluntary Organisations,02/08/2023,4164827-PIG_169385,"5,003.04",FIVE RIVERS CHILD CARE LTD.
Adult and Health Services,Head of Adults,Third Party Payments,478101,Purchase of Care,02/08/2023,4164828-I-23-9798610,"22,831.20",FLEXIBLE SUPPORT OPTIONS LTD.
Children and Young Peoples Services,Head of Childrens Social Care,Third Party Payments,425021,Rendered by Voluntary Organisations,02/08/2023,4164829-PIG_169248,"13,769.10",FOOTSTEPS CARE LTD.
Children and Young Peoples Services,Head of Childrens Social Care,Third Party Payments,440038,Other third party payments E440,02/08/2023,4164830-PIG_168648,"31,733.20",FOREVER CARE LTD.
Children and Young Peoples Services,Head of Childrens Social Care,Third Party Payments,425021,Rendered by Voluntary Organisations,02/08/2023,4164830-PIG_169249,"71,968.00",FOREVER CARE LTD.
Children and Young Peoples Services,Head of Childrens Social Care,Third Party Payments,425021,Rendered by Voluntary Organisations,02/08/2023,4164830-PIG_169250,"35,984.00",FOREVER CARE LTD.
Children and Young Peoples Services,Head of Childrens Social Care,Third Party Payments,425021,Rendered by Voluntary Organisations,02/08/2023,4164830-PIG_169251,"35,984.00",FOREVER CARE LTD.
Children and Young Peoples Services,Head of Childrens Social Care,Third Party Payments,425040,Rendered by Voluntary Organisations,02/08/2023,4164831-PIG_168624,"64,868.96",FOSTER CARE ASSOCIATES LTD.
Children and Young Peoples Services,Head of Childrens Social Care,Third Party Payments,425040,Rendered by Voluntary Organisations,02/08/2023,4164831-PIG_169988,"17,446.49",FOSTER CARE ASSOCIATES LTD.
Children and Young Peoples Services,Head of Childrens Social Care,Third Party Payments,425040,Rendered by Voluntary Organisations,02/08/2023,4164832-PIG_169383,"19,286.10",FOSTER CARE SOLUTIONS LTD.
Children and Young Peoples Services,Head of Childrens Social Care,Third Party Payments,425040,Rendered by Voluntary Organisations,02/08/2023,4164832-PIG_169393,"21,202.00",FOSTER CARE SOLUTIONS LTD.
Children and Young Peoples Services,Head of Childrens Social Care,Third Party Payments,425040,Rendered by Voluntary Organisations,02/08/2023,4164833-PIG_168625,"35,780.68",FOSTER CARES LTD.
Children and Young Peoples Services,Head of Childrens Social Care,Third Party Payments,425040,Rendered by Voluntary Organisations,02/08/2023,4164834-PIG_169356,"3,588.00",FOSTERING INNOVATIONS LTD.
Children and Young Peoples Services,Head of Childrens Social Care,Third Party Payments,425040,Rendered by Voluntary Organisations,02/08/2023,4164835-PIG_169311,"7,937.08",FOSTERING PEOPLE LTD.
Children and Young Peoples Services,Head of Childrens Social Care,Third Party Payments,425040,Rendered by Voluntary Organisations,02/08/2023,4164835-PIG_169357,"20,309.88",FOSTERING PEOPLE LTD.
Children and Young Peoples Services,Head of Childrens Social Care,Third Party Payments,425040,Rendered by Voluntary Organisations,02/08/2023,4164836-PIG_168626,"11,527.04",FOSTERING TOGETHER.
Adult and Health Services,Commissioning inc Supporting People,Third Party Payments,442002,Supporting People E442,02/08/2023,4164837-4449032,"22,025.88",FOUNDATION.
Adult and Health Services,Head of Adults,Third Party Payments,470101,Purchase of Care,02/08/2023,4164839-I-23-9798830,"92,749.89",FOUR SEASONS HOMES NO 1 LTD.
Children and Young Peoples Services,Head of Childrens Social Care,Third Party Payments,425040,Rendered by Voluntary Organisations,02/08/2023,4164844-PIG_168627,"7,663.60",FUTURES FOR CHILDREN LTD.
Adult and Health Services,Head of Adults,Third Party Payments,470101,Purchase of Care,02/08/2023,4164848-I-23-9798839,"62,826.07",GAINFORD CARE HOMES LTD.
Adult and Health Services,Head of Adults,Third Party Payments,474101,Purchase of Care,02/08/2023,4164848-I-23-9799101,"74,875.31",GAINFORD CARE HOMES LTD.
Adult and Health Services,Head of Adults,Third Party Payments,470101,Purchase of Care,02/08/2023,4164849-I-23-9799001,"45,272.14",GAINFORD CARE HOMES LTD.
Adult and Health Services,Head of Adults,Third Party Payments,470101,Purchase of Care,02/08/2023,4164850-I-23-9798915,"103,774.63",GAINFORD CARE HOMES LTD.
Adult and Health Services,Head of Adults,Third Party Payments,474101,Purchase of Care,02/08/2023,4164851-I-23-9798988,"106,711.35",GAINFORD CARE HOMES LTD.
Adult and Health Services,Head of Adults,Third Party Payments,474101,Purchase of Care,02/08/2023,4164852-I-23-9798911,"28,092.40",GAINFORD CARE HOMES LTD.
Adult and Health Services,Head of Adults,Third Party Payments,474101,Purchase of Care,02/08/2023,4164853-I-23-9798949,"141,247.55",GAINFORD CARE HOMES LTD.
Adult and Health Services,Head of Adults,Third Party Payments,470101,Purchase of Care,02/08/2023,4164854-I-23-9799079,"3,000.00",GALANOS HOUSE CARE HOME.
Adult and Health Services,Head of Adults,Third Party Payments,473101,Purchase of Care,02/08/2023,4164855-I-23-9798654,"51,005.48",GAPPS DAY SERVICES LTD.
Adult and Health Services,Head of Adults,Third Party Payments,473101,Purchase of Care,02/08/2023,4164862-I-23-9798550,"1,092.96",GATESHEAD COUNCIL.
Children and Young Peoples Services,Head of Childrens Social Care,Third Party Payments,425020,Rendered by Voluntary Organisations,02/08/2023,4164863-PIG_169386,"9,188.00",GATESHEAD COUNCIL.
Adult and Health Services,Head of Adults,Third Party Payments,470101,Purchase of Care,02/08/2023,4164876-I-23-9798849,"2,952.00",GREATHAM HOSPITAL BROTHER HOUSE.
Adult and Health Services,Head of Adults,Third Party Payments,470101,Purchase of Care,02/08/2023,4164877-I-23-9799087,"2,490.88",GREEN CARE HOMES LTD.
Children and Young Peoples Services,Head of Childrens Social Care,Third Party Payments,425021,Rendered by Voluntary Organisations,02/08/2023,4164878-PIG_169252,"50,400.00",GREENLEAF HOUSE CO LTD.
Adult and Health Services,Head of Adults,Third Party Payments,473101,Purchase of Care,02/08/2023,4164880-I-23-9798485,"10,945.20",GROWING TOGETHER DURHAM LTD.
Adult and Health Services,Head of Adults,Third Party Payments,470101,Purchase of Care,02/08/2023,4164882-I-23-9799013,"12,424.44",HADRIAN HEALTHCARE (WHICKHAM) LTD.
Children and Young Peoples Services,Head of Childrens Social Care,Third Party Payments,425021,Rendered by Voluntary Organisations,02/08/2023,4164883-PIG_170004,"12,315.34",HAMPSHIRE COUNTY COUNCIL.
Children and Young Peoples Services,Head of Childrens Social Care,Third Party Payments,440038,Other third party payments E440,02/08/2023,4164884-PIG_168642,"3,930.00",HANDCRAFTED PROJECTS.
Children and Young Peoples Services,Head of Childrens Social Care,Third Party Payments,440038,Other third party payments E440,02/08/2023,4164884-PIG_168643,"3,930.00",HANDCRAFTED PROJECTS.
Children and Young Peoples Services,Head of Childrens Social Care,Third Party Payments,440038,Other third party payments E440,02/08/2023,4164884-PIG_168644,"3,930.00",HANDCRAFTED PROJECTS.
Adult and Health Services,Commissioning inc Supporting People,Third Party Payments,441001,Supporting People E441,02/08/2023,4164887-4449863,"25,440.16",HARBOUR SUPPORT SERVICES.
Adult and Health Services,Head of Adults,Third Party Payments,473101,Purchase of Care,02/08/2023,4164892-I-23-9798471,"12,617.32",HASWELL & DISTRICT MENCAP SOCIETY.
Adult and Health Services,Head of Adults,Third Party Payments,470101,Purchase of Care,02/08/2023,4164894-I-23-9798996,"118,867.78",HC-ONE BEAMISH LTD.
Adult and Health Services,Head of Adults,Third Party Payments,470101,Purchase of Care,02/08/2023,4164895-I-23-9799085,"1,311.42",HC-ONE BEAMISH LTD.
Adult and Health Services,Head of Adults,Third Party Payments,470101,Purchase of Care,02/08/2023,4164896-I-23-9798823,"90,412.58",HC-ONE BEAMISH LTD.
Adult and Health Services,Head of Adults,Third Party Payments,470101,Purchase of Care,02/08/2023,4164897-I-23-9798820,"3,057.48",HC-ONE BEAMISH LTD.
Adult and Health Services,Head of Adults,Third Party Payments,470101,Purchase of Care,02/08/2023,4164898-I-23-9799062,"80,015.95",HC-ONE BEAMISH LTD.
Adult and Health Services,Head of Adults,Third Party Payments,470101,Purchase of Care,02/08/2023,4164899-I-23-9798922,"133,740.38",HC-ONE BEAMISH LTD.
Adult and Health Services,Head of Adults,Third Party Payments,470101,Purchase of Care,02/08/2023,4164900-I-23-9798843,"119,034.90",HC-ONE BEAMISH LTD.
Adult and Health Services,Head of Adults,Third Party Payments,474101,Purchase of Care,02/08/2023,4164901-I-23-9798990,"83,458.04",HC-ONE LTD.
Adult and Health Services,Head of Adults,Third Party Payments,470101,Purchase of Care,02/08/2023,4164902-I-23-9798953,"86,333.68",HC-ONE LTD.
Adult and Health Services,Head of Adults,Third Party Payments,470101,Purchase of Care,02/08/2023,4164903-I-23-9799076,"84,486.06",HC-ONE LTD.
Adult and Health Services,Head of Adults,Third Party Payments,470101,Purchase of Care,02/08/2023,4164904-I-23-9798975,"2,807.96",HC-ONE LTD.
Adult and Health Services,Head of Adults,Third Party Payments,470101,Purchase of Care,02/08/2023,4164905-I-23-9798983,"68,794.65",HC-ONE LTD.
Adult and Health Services,Head of Adults,Third Party Payments,470101,Purchase of Care,02/08/2023,4164906-I-23-9798929,"87,142.64",HC-ONE LTD.
Adult and Health Services,Head of Adults,Third Party Payments,470101,Purchase of Care,02/08/2023,4164907-I-23-9799096,"124,578.82",HC-ONE LTD.
Adult and Health Services,Head of Adults,Third Party Payments,470101,Purchase of Care,02/08/2023,4164908-I-23-9799015,"43,678.59",HC-ONE LTD.
Adult and Health Services,Head of Adults,Third Party Payments,470101,Purchase of Care,02/08/2023,4164909-I-23-9798993,"101,664.36",HC-ONE LTD.
Adult and Health Services,Head of Adults,Third Party Payments,470101,Purchase of Care,02/08/2023,4164910-I-23-9573322,"2,356.00",HC-ONE T/A PRIORY GARDENS.
Adult and Health Services,Head of Adults,Third Party Payments,470101,Purchase of Care,02/08/2023,4164910-I-23-9798966,"2,356.00",HC-ONE T/A PRIORY GARDENS.
Adult and Health Services,Head of Adults,Third Party Payments,474101,Purchase of Care,02/08/2023,4164911-I-23-9798851,"3,963.24",HEALTHCARE HOMES GROUP LTD T/A PARK HOUSE CARE HOME.
Adult and Health Services,Head of Adults,Third Party Payments,470101,Purchase of Care,02/08/2023,4164912-I-23-9799030,"9,004.00",HEALTHCARE IRELAND GROUP LTD T/A BOHILL BUNGALOWS.
Adult and Health Services,Head of Adults,Third Party Payments,474101,Purchase of Care,02/08/2023,4164916-I-23-9573300,"1,234.40",HENDON PIF LTD T/A ASHWOOD COURT CARE HOME.
Adult and Health Services,Head of Adults,Third Party Payments,474101,Purchase of Care,02/08/2023,4164916-I-23-9798943,"1,234.40",HENDON PIF LTD T/A ASHWOOD COURT CARE HOME.
Children and Young Peoples Services,Head of Childrens Social Care,Third Party Payments,425021,Rendered by Voluntary Organisations,02/08/2023,4164917-PIG_169253,"13,518.00",HENNESSY LIVING GROUP LTD.
Children and Young Peoples Services,Head of Childrens Social Care,Third Party Payments,425021,Rendered by Voluntary Organisations,02/08/2023,4164917-PIG_169254,"42,127.20",HENNESSY LIVING GROUP LTD.
Children and Young Peoples Services,Head of Childrens Social Care,Third Party Payments,425021,Rendered by Voluntary Organisations,02/08/2023,4164917-PIG_169255,"13,301.80",HENNESSY LIVING GROUP LTD.
Adult and Health Services,Head of Adults,Third Party Payments,470101,Purchase of Care,02/08/2023,4164920-I-23-9799084,"5,520.00",HIGHGATE CARE SERVICES LTD.
Adult and Health Services,Head of Adults,Third Party Payments,478101,Purchase of Care,02/08/2023,4164921-I-23-9798468,"13,129.20",HIGHLEA CARE LTD.
Adult and Health Services,Head of Adults,Third Party Payments,472101,Purchase of Care,02/08/2023,4164922-I-23-9798473,"1,457.12",HIGHLEA CARE LTD.
Adult and Health Services,Head of Adults,Third Party Payments,478101,Purchase of Care,02/08/2023,4164922-I-23-9798474,"1,256.20",HIGHLEA CARE LTD.
Adult and Health Services,Head of Adults,Third Party Payments,478101,Purchase of Care,02/08/2023,4164922-I-23-9798476,"8,769.28",HIGHLEA CARE LTD.
Adult and Health Services,Head of Adults,Third Party Payments,478101,Purchase of Care,02/08/2023,4164922-I-23-9798482,"6,350.40",HIGHLEA CARE LTD.
Adult and Health Services,Head of Adults,Third Party Payments,478101,Purchase of Care,02/08/2023,4164922-I-23-9798527,"9,483.28",HIGHLEA CARE LTD.
Adult and Health Services,Head of Adults,Third Party Payments,478101,Purchase of Care,02/08/2023,4164922-I-23-9798528,"18,593.33",HIGHLEA CARE LTD.
Adult and Health Services,Head of Adults,Third Party Payments,478101,Purchase of Care,02/08/2023,4164922-I-23-9798582,"18,516.38",HIGHLEA CARE LTD.
Adult and Health Services,Head of Adults,Third Party Payments,478101,Purchase of Care,02/08/2023,4164922-I-23-9798657,"72,806.50",HIGHLEA CARE LTD.
Adult and Health Services,Head of Adults,Third Party Payments,478101,Purchase of Care,02/08/2023,4164922-I-23-9798676,"8,678.88",HIGHLEA CARE LTD.
Adult and Health Services,Head of Adults,Third Party Payments,478101,Purchase of Care,02/08/2023,4164922-I-23-9798704,"16,163.36",HIGHLEA CARE LTD.
Adult and Health Services,Head of Adults,Third Party Payments,478101,Purchase of Care,02/08/2023,4164922-I-23-9798705,"18,994.31",HIGHLEA CARE LTD.
Adult and Health Services,Head of Adults,Third Party Payments,478101,Purchase of Care,02/08/2023,4164922-I-23-9798763,"1,411.20",HIGHLEA CARE LTD.
Adult and Health Services,Head of Adults,Third Party Payments,478101,Purchase of Care,02/08/2023,4164922-I-23-9798785,"17,543.64",HIGHLEA CARE LTD.
Adult and Health Services,Head of Adults,Third Party Payments,478101,Purchase of Care,02/08/2023,4164922-I-23-9798800,"4,445.28",HIGHLEA CARE LTD.
Adult and Health Services,Head of Adults,Third Party Payments,473101,Purchase of Care,02/08/2023,4164924-I-23-9798649,511.44,HILL CARE 3 LTD.
Adult and Health Services,Head of Adults,Third Party Payments,470102,Purchase of Care,02/08/2023,4164924-I-23-9798963,"84,507.56",HILL CARE 3 LTD.
Adult and Health Services,Head of Adults,Third Party Payments,470101,Purchase of Care,02/08/2023,4164926-I-23-9799116,"3,308.12",HOLLY HOUSE LTD.
Children and Young Peoples Services,Head of Childrens Social Care,Third Party Payments,440038,Other third party payments E440,02/08/2023,4164927-PIG_168645,"6,029.36",HOME GROUP LTD FORMERLY STONHAM HOUSING ASSOCIATION LTD.
Adult and Health Services,Commissioning inc Supporting People,Third Party Payments,441001,Supporting People E441,02/08/2023,4164928-3933350,"355,640.24",HOME GROUP LTD FORMERLY STONHAM HOUSING ASSOCIATION LTD.
Adult and Health Services,Head of Adults,Third Party Payments,473101,Purchase of Care,02/08/2023,4164929-I-23-9798760,"1,876.29",HOME GROUP LTD.
Adult and Health Services,Head of Adults,Third Party Payments,472101,Purchase of Care,02/08/2023,4164930-I-23-9798559,"1,013.04",HOME GROUP LTD.
Adult and Health Services,Head of Adults,Third Party Payments,473101,Purchase of Care,02/08/2023,4164931-I-23-9798664,"2,080.00",HOME ON THE RANGE LTD.
Adult and Health Services,Head of Adults,Third Party Payments,470101,Purchase of Care,02/08/2023,4164932-I-23-9798866,"7,654.44",HOMES TOGETHER LTD.
Adult and Health Services,Head of Adults,Third Party Payments,472101,Purchase of Care,02/08/2023,4164933-I-23-9798603,"34,169.41",HOUSING 21.
Adult and Health Services,Commissioning inc Supporting People,Third Party Payments,442002,Supporting People E442,02/08/2023,4164934-4449160,"33,646.32",HUMANKIND CHARITY.
Adult and Health Services,Public Health CC0450,Third Party Payments,460803,Contract Payments,02/08/2023,4164934-SI-HK-001202,"374,752.00",HUMANKIND CHARITY.
Dedicated Schools Grant BG0015,DSG High Needs Block,Third Party Payments,425005,Rendered by Voluntary Organisations,02/08/2023,4164936-PIG_169298,"73,922.84",HURWORTH HOUSE PRIORY.
Adult and Health Services,Head of Adults,Third Party Payments,470101,Purchase of Care,02/08/2023,4164941-I-23-9799118,"42,864.24",IDEAL CARE (NORTH) LTD.
Children and Young Peoples Services,Head of Childrens Social Care,Third Party Payments,425021,Rendered by Voluntary Organisations,02/08/2023,4164942-PIG_169256,"27,199.60",IMPACT CHILDCARE & EDUCATION LTD.
Adult and Health Services,Head of Adults,Third Party Payments,473101,Purchase of Care,02/08/2023,4164943-I-23-9798637,"5,087.56",INCLUDE `IN` AUTISM.
Adult and Health Services,Head of Adults,Third Party Payments,474101,Purchase of Care,02/08/2023,4164944-I-23-9798814,"7,775.96",INDIGO CARE SERVICES LTD.
Adult and Health Services,Head of Adults,Third Party Payments,472101,Purchase of Care,02/08/2023,4164945-I-23-9798729,"7,865.32",INFINITE HOMECARE LTD.
Children and Young Peoples Services,Head of Childrens Social Care,Third Party Payments,486020,Service level agreements E486,02/08/2023,4164946-PIG_169349,"1,915.84",INTEGRATING CHILDREN.
Adult and Health Services,Head of Adults,Third Party Payments,470101,Purchase of Care,02/08/2023,4164947-I-23-9798850,"10,400.00",INTERACT CARE LTD.
Adult and Health Services,Head of Adults,Third Party Payments,470101,Purchase of Care,02/08/2023,4164948-I-23-9798888,"35,467.60",INTERACT CARE LTD.
Children and Young Peoples Services,Head of Childrens Social Care,Third Party Payments,425021,Rendered by Voluntary Organisations,02/08/2023,4164949-PIG_169997,"17,636.20",INVESTED CHILDCARE LTD.
Children and Young Peoples Services,Head of Childrens Social Care,Third Party Payments,425021,Rendered by Voluntary Organisations,02/08/2023,4164950-PIG_169257,"27,216.00",INVESTING IN CHILDREN CIC.
Adult and Health Services,Head of Adults,Third Party Payments,478101,Purchase of Care,02/08/2023,4164993-I-23-9798562,"5,000.00",JIGSAW RECOVERY PROJECT CIC.
Children and Young Peoples Services,Head of Childrens Social Care,Third Party Payments,425021,Rendered by Voluntary Organisations,02/08/2023,4165019-PIG_169258,"15,200.00",JOSH`S PLACE.
Adult and Health Services,Head of Adults,Third Party Payments,473101,Purchase of Care,02/08/2023,4165020-I-23-9572879,"16,393.39",JOURNEY ENTERPRISES LTD.
Adult and Health Services,Head of Adults,Third Party Payments,473101,Purchase of Care,02/08/2023,4165020-I-23-9798517,"18,339.61",JOURNEY ENTERPRISES LTD.
Adult and Health Services,Head of Adults,Third Party Payments,470101,Purchase of Care,02/08/2023,4165040-I-23-9798964,"2,424.00",KEB HOUSE RESIDENTIAL HOME.
Adult and Health Services,Head of Adults,Third Party Payments,472101,Purchase of Care,02/08/2023,4165043-I-23-9094481-1/8/23,"2,203.92",KELLY PARK LTD..
Adult and Health Services,Head of Adults,Third Party Payments,472101,Purchase of Care,02/08/2023,4165043-I-23-9798684,"222,546.49",KELLY PARK LTD..
Children and Young Peoples Services,Head of Childrens Social Care,Third Party Payments,425021,Rendered by Voluntary Organisations,02/08/2023,4165047-PIG_169362,"18,200.00",KEYS GROUP T/A ALLIANCE CARE AND EDUCATION LTD.
Children and Young Peoples Services,Head of Childrens Social Care,Third Party Payments,425021,Rendered by Voluntary Organisations,02/08/2023,4165047-PIG_169363,"17,917.20",KEYS GROUP T/A ALLIANCE CARE AND EDUCATION LTD.
Adult and Health Services,Head of Adults,Third Party Payments,470101,Purchase of Care,02/08/2023,4165049-I-23-9798910,"66,389.26",KINGSWAY CARE HOME LTD.
Children and Young Peoples Services,Head of Childrens Social Care,Third Party Payments,425021,Rendered by Voluntary Organisations,02/08/2023,4165051-PIG_169259,"14,520.60",KITES CHILDRENS SERVICES LTD.
Adult and Health Services,Head of Adults,Third Party Payments,470101,Purchase of Care,02/08/2023,4165054-I-23-9798912,"57,202.46",LAMBTON HOUSE LTD.
Adult and Health Services,Head of Adults,Third Party Payments,470101,Purchase of Care,02/08/2023,4165055-I-23-9798828,"65,338.88",LANGLEY HOUSE CARE HOME LTD.
Children and Young Peoples Services,Head of Childrens Social Care,Third Party Payments,486020,Service level agreements E486,02/08/2023,4165063-PIG_169378,"12,290.32",LEADER RECRUITMENT GROUP LTD T/A LEADER EDUCATION LTD.
Adult and Health Services,Head of Adults,Third Party Payments,474101,Purchase of Care,02/08/2023,4165064-I-23-9799026,"91,944.80",LEAZES HALL CARE HOME LTD.
Adult and Health Services,Head of Adults,Third Party Payments,470101,Purchase of Care,02/08/2023,4165067-I-23-9798815,"18,613.66",LENORE CARE LTD.
Adult and Health Services,Head of Adults,Third Party Payments,474101,Purchase of Care,02/08/2023,4165068-I-23-9799018,"81,808.28",LEONARD CHESHIRE DISABILITY.
Adult and Health Services,Head of Adults,Third Party Payments,470101,Purchase of Care,02/08/2023,4165073-I-23-9799107,"30,812.84",LIFESTYLE (ABBEY CARE) LTD.
Adult and Health Services,Head of Adults,Third Party Payments,470101,Purchase of Care,02/08/2023,4165074-I-23-9798882,"9,889.12",LIFEWAYS COMMUNITY CARE LTD.
Adult and Health Services,Head of Adults,Third Party Payments,473101,Purchase of Care,02/08/2023,4165079-I-23-9798641,"10,994.66",LION MOUTH COMMUNITY INTEREST COMPANY.
Adult and Health Services,Head of Adults,Third Party Payments,470101,Purchase of Care,02/08/2023,4165084-I-21-1476365,785.73,LITTLEDALE HALL THERAPEUTIC COMMUNITY LTD.
Adult and Health Services,Head of Adults,Third Party Payments,470101,Purchase of Care,02/08/2023,4165084-I-23-9798901,"5,800.00",LITTLEDALE HALL THERAPEUTIC COMMUNITY LTD.
Adult and Health Services,Head of Adults,Third Party Payments,470101,Purchase of Care,02/08/2023,4165085-I-23-9799054,"4,010.52",LIVING AMBITIONS T/A WHITWOOD GRANGE.
Adult and Health Services,Head of Adults,Third Party Payments,470101,Purchase of Care,02/08/2023,4165086-I-23-9798924,"2,480.00",LONGWOOD LODGE CARE LTD.
Adult and Health Services,Head of Adults,Third Party Payments,470101,Purchase of Care,02/08/2023,4165098-I-23-9798865,"10,506.35",MALHOTRA CARE HOMES LTD.
Adult and Health Services,Head of Adults,Third Party Payments,474101,Purchase of Care,02/08/2023,4165099-I-23-9798873,"168,249.07",MALHOTRA CARE HOMES LTD.
Adult and Health Services,Head of Adults,Third Party Payments,474101,Purchase of Care,02/08/2023,4165100-I-23-9799078,"11,288.12",MALHOTRA CARE HOMES LTD.
Adult and Health Services,Head of Adults,Third Party Payments,470101,Purchase of Care,02/08/2023,4165107-I-23-9798824,"68,960.88",MARIA MALLABAND CARE GROUP LTD.
Adult and Health Services,Head of Adults,Third Party Payments,470101,Purchase of Care,02/08/2023,4165113-I-23-9798994,"84,537.99",MARIPOSA CARE GROUP LTD.
Adult and Health Services,Head of Adults,Third Party Payments,470101,Purchase of Care,02/08/2023,4165114-I-23-9798930,"5,356.56",MARIPOSA CARE GROUP LTD.
Adult and Health Services,Head of Adults,Third Party Payments,470101,Purchase of Care,02/08/2023,4165115-I-23-9799099,"123,314.32",MARIPOSA CARE LTD.
Adult and Health Services,Head of Adults,Third Party Payments,474101,Purchase of Care,02/08/2023,4165126-I-23-9799022,"17,762.54",MARTON CARE HOMES LTD T/A ELIZABETH FLEMING CARE HOME.
Adult and Health Services,Head of Adults,Third Party Payments,470101,Purchase of Care,02/08/2023,4165127-I-23-9798826,"14,338.57",MARTON CARE HOMES LTD T/A GROSVENOR PARK CARE HOME.
Adult and Health Services,Head of Adults,Third Party Payments,470101,Purchase of Care,02/08/2023,4165128-I-23-9798822,"89,858.06",MARTON CARE HOMES LTD T/A LANGLEY PARK CARE HOME.
Adult and Health Services,Head of Adults,Third Party Payments,474101,Purchase of Care,02/08/2023,4165129-I-23-9799067,"96,039.81",MARTON CARE HOMES LTD T/A ST HELENS CARE HOME.
Adult and Health Services,Head of Adults,Third Party Payments,470101,Purchase of Care,02/08/2023,4165130-I-23-9798854,"3,060.00",MARTON CARE HOMES LTD T/A WESTVIEW LODGE CARE HOME.
Adult and Health Services,Head of Adults,Third Party Payments,470101,Purchase of Care,02/08/2023,4165145-I-23-9798995,"23,666.00",MEADOW VIEW.
Adult and Health Services,Head of Adults,Third Party Payments,478101,Purchase of Care,02/08/2023,4165146-I-23-9798618,"21,082.42",MEARS EXTRA CARE LTD.
Adult and Health Services,Head of Adults,Third Party Payments,474101,Purchase of Care,02/08/2023,4165153-I-23-9799052,"2,111.16",MEMORY LANE CARE HOMES LTD.
Adult and Health Services,Head of Adults,Third Party Payments,478101,Purchase of Care,02/08/2023,4165154-I-23-9798523,"3,528.00",MENCAP.
Adult and Health Services,Head of Adults,Third Party Payments,472101,Purchase of Care,02/08/2023,4165154-I-23-9798611,"8,840.00",MENCAP.
Adult and Health Services,Head of Adults,Third Party Payments,478101,Purchase of Care,02/08/2023,4165154-I-23-9798779,"11,567.48",MENCAP.
Adult and Health Services,Head of Adults,Third Party Payments,470101,Purchase of Care,02/08/2023,4165155-I-23-9798857,"2,736.00",MERIDIAN HEALTHCARE LTD.
Adult and Health Services,Head of Adults,Third Party Payments,470101,Purchase of Care,02/08/2023,4165156-I-23-9798817,"41,350.98",MERRYWELL CARE (BELMONT GRANGE) LTD.
Adult and Health Services,Head of Adults,Third Party Payments,470101,Purchase of Care,02/08/2023,4165157-I-23-9798841,"22,145.97",METHODIST HOMES.
Adult and Health Services,Head of Adults,Third Party Payments,472101,Purchase of Care,02/08/2023,4165166-I-23-9798805,"19,950.94",MIDDLETON CARE LTD.
Adult and Health Services,Head of Adults,Third Party Payments,472101,Purchase of Care,02/08/2023,4165172-I-23-9798732,"22,654.33",MMAB CONSULTING LTD.
Adult and Health Services,Head of Adults,Third Party Payments,470101,Purchase of Care,02/08/2023,4165175-I-23-9798747,"37,686.20",MOONRISE 24HR RECRUITMENT LTD.
Adult and Health Services,Head of Adults,Third Party Payments,478151,Purchase of Care,02/08/2023,4165176-48,"1,800.00",MOORLANDS HOLDINGS (NE) LTD.
Adult and Health Services,Head of Adults,Third Party Payments,470101,Purchase of Care,02/08/2023,4165176-I-23-9799034,"25,238.64",MOORLANDS HOLDINGS (NE) LTD.
Adult and Health Services,Head of Adults,Third Party Payments,473101,Purchase of Care,02/08/2023,4165177-I-23-9798484,"2,786.80",MOVEABLE FEASTS ARTS.
Children and Young Peoples Services,Head of Childrens Social Care,Third Party Payments,440038,Other third party payments E440,02/08/2023,4165178-PIG_169316,"12,458.25",MOVING ON (DURHAM) LTD.
Adult and Health Services,Commissioning inc Supporting People,Third Party Payments,442002,Supporting People E442,02/08/2023,4165179-4449509,"2,627.68",MOVING ON HOUSING.
Children and Young Peoples Services,Head of Childrens Social Care,Third Party Payments,440039,Other third party payments E440,02/08/2023,4165180-PIG_169987,"191,678.59",MOVING UP CARE LTD.
Adult and Health Services,Head of Adults,Third Party Payments,478101,Purchase of Care,02/08/2023,4165225-I-23-9798537,984.96,MVP SUPPORT.
Adult and Health Services,Head of Adults,Third Party Payments,478101,Purchase of Care,02/08/2023,4165226-I-23-9798588,"68,057.54",MY HOMECARE ASSISTANCE LTD T/A MY HOMECARE.
Adult and Health Services,Head of Adults,Third Party Payments,478101,Purchase of Care,02/08/2023,4165226-I-23-9798770,"25,937.28",MY HOMECARE ASSISTANCE LTD T/A MY HOMECARE.
Adult and Health Services,Head of Adults,Third Party Payments,478101,Purchase of Care,02/08/2023,4165226-I-23-9798810,"147,918.30",MY HOMECARE ASSISTANCE LTD T/A MY HOMECARE.
Children and Young Peoples Services,Head of Childrens Social Care,Third Party Payments,440062,Other third party payments E440,02/08/2023,4165226-PIG_169996,"1,070.00",MY HOMECARE ASSISTANCE LTD T/A MY HOMECARE.
Adult and Health Services,Head of Adults,Third Party Payments,472101,Purchase of Care,02/08/2023,4165227-I-23-9798706,"10,386.29",MYCHOICE HOMECARE LTD.
Children and Young Peoples Services,Head of Childrens Social Care,Third Party Payments,425021,Rendered by Voluntary Organisations,02/08/2023,4165234-PIG_170003,"52,440.00",NESTLINGS CARE LTD T/A WOODHALL HOUSE.
Adult and Health Services,Head of Adults,Third Party Payments,473101,Purchase of Care,02/08/2023,4165235-I-23-9798493,"2,043.79",NEUROACTIVE UK.
Adult and Health Services,Head of Adults,Third Party Payments,473101,Purchase of Care,02/08/2023,4165237-I-23-9798793,"16,005.88",NEW STEPS CARE IN THE COMMUNITY LLP.
Adult and Health Services,Head of Adults,Third Party Payments,472101,Purchase of Care,02/08/2023,4165239-I-23-9798638,"28,513.49",NEW VISION CARE SERVICES LTD.
Adult and Health Services,Head of Adults,Third Party Payments,470101,Purchase of Care,02/08/2023,4165240-I-23-9798831,"18,038.28",NEWLIFE CARE SERVICES LTD.
Adult and Health Services,Head of Adults,Third Party Payments,472101,Purchase of Care,02/08/2023,4165243-I-23-9798796,"2,240.00",NIGHTINGALES COMMUNITY CARE LTD.
Adult and Health Services,Head of Adults,Third Party Payments,472101,Purchase of Care,02/08/2023,4165245-I-23-9798500,"46,246.10",NORTH EAST AUTISM SOCIETY.
Children and Young Peoples Services,Head of Childrens Social Care,Third Party Payments,486020,Service level agreements E486,02/08/2023,4165245-PIG_169381,"2,602.48",NORTH EAST AUTISM SOCIETY.
Children and Young Peoples Services,Head of Childrens Social Care,Third Party Payments,425020,Rendered by Voluntary Organisations,02/08/2023,4165245-PIG_169387,"21,546.00",NORTH EAST AUTISM SOCIETY.
Adult and Health Services,Head of Adults,Third Party Payments,470101,Purchase of Care,02/08/2023,4165246-I-23-9798928,"115,046.46",NORTH EAST AUTISM SOCIETY.
Adult and Health Services,Head of Adults,Third Party Payments,470101,Purchase of Care,02/08/2023,4165247-I-23-9799003,"4,967.16",NORTH EAST AUTISM SOCIETY.
Children and Young Peoples Services,Head of Childrens Social Care,Third Party Payments,425021,Rendered by Voluntary Organisations,02/08/2023,4165247-PIG_169260,"31,253.84",NORTH EAST AUTISM SOCIETY.
Children and Young Peoples Services,Head of Childrens Social Care,Third Party Payments,425023,Rendered by Voluntary Organisations,02/08/2023,4165247-PIG_169296,"18,014.19",NORTH EAST AUTISM SOCIETY.
Dedicated Schools Grant BG0015,DSG High Needs Block,Third Party Payments,425005,Rendered by Voluntary Organisations,02/08/2023,4165247-PIG_169297,"30,787.24",NORTH EAST AUTISM SOCIETY.
Dedicated Schools Grant BG0015,DSG High Needs Block,Third Party Payments,425005,Rendered by Voluntary Organisations,02/08/2023,4165247-PIG_169303,"64,264.16",NORTH EAST AUTISM SOCIETY.
Adult and Health Services,Head of Adults,Third Party Payments,478101,Purchase of Care,02/08/2023,4165248-I-23-9798478,"33,139.92",NORTH EAST AUTISM SOCIETY.
Adult and Health Services,Head of Adults,Third Party Payments,473101,Purchase of Care,02/08/2023,4165248-I-23-9798529,"56,092.35",NORTH EAST AUTISM SOCIETY.
Adult and Health Services,Head of Adults,Third Party Payments,478101,Purchase of Care,02/08/2023,4165248-I-23-9798580,"13,831.56",NORTH EAST AUTISM SOCIETY.
Adult and Health Services,Head of Adults,Third Party Payments,478101,Purchase of Care,02/08/2023,4165248-I-23-9798702,"15,525.00",NORTH EAST AUTISM SOCIETY.
Adult and Health Services,Head of Adults,Third Party Payments,473101,Purchase of Care,02/08/2023,4165248-I-23-9798715,"2,783.44",NORTH EAST AUTISM SOCIETY.
Adult and Health Services,Head of Adults,Third Party Payments,478101,Purchase of Care,02/08/2023,4165248-I-23-9798787,"62,662.95",NORTH EAST AUTISM SOCIETY.
Adult and Health Services,Head of Adults,Third Party Payments,470101,Purchase of Care,02/08/2023,4165248-I-23-9798974,"7,063.80",NORTH EAST AUTISM SOCIETY.
Adult and Health Services,Head of Adults,Third Party Payments,470101,Purchase of Care,02/08/2023,4165249-I-23-9798834,"17,386.40",NORTH EAST AUTISM SOCIETY.
Adult and Health Services,Head of Adults,Third Party Payments,470101,Purchase of Care,02/08/2023,4165250-I-23-9798935,"5,541.16",NORTH EAST AUTISM SOCIETY.
Adult and Health Services,Head of Adults,Third Party Payments,472101,Purchase of Care,02/08/2023,4165252-I-23-9798554,610.24,NORTH EAST BEFRIENDING SERVICE CIC.
Adult and Health Services,Head of Adults,Third Party Payments,472101,Purchase of Care,02/08/2023,4165253-I-23-9798692,959.49,NORTH TYNESIDE COUNCIL.
Adult and Health Services,Head of Adults,Third Party Payments,478101,Purchase of Care,02/08/2023,4165254-I-23-9798713,"1,672.40",NORTHERN LIFE CARE LTD T/A UBU.
Adult and Health Services,Head of Adults,Third Party Payments,474101,Purchase of Care,02/08/2023,4165255-I-23-9798969,"3,562.56",NORTHLEA COURT.
Adult and Health Services,Head of Adults,Third Party Payments,470101,Purchase of Care,02/08/2023,4165256-I-23-9799072,"7,820.76",NORWOOD.
Children and Young Peoples Services,Head of Childrens Social Care,Third Party Payments,425021,Rendered by Voluntary Organisations,02/08/2023,4165257-PIG_169261,"81,553.48",NUEVAVIDA NE LTD.
Adult and Health Services,Head of Adults,Third Party Payments,478101,Purchase of Care,02/08/2023,4165259-I-23-9798469,"3,617.08",OAKLEA TRUST.
Adult and Health Services,Head of Adults,Third Party Payments,478101,Purchase of Care,02/08/2023,4165259-I-23-9798524,"19,968.48",OAKLEA TRUST.
Adult and Health Services,Head of Adults,Third Party Payments,478101,Purchase of Care,02/08/2023,4165259-I-23-9798531,"34,248.28",OAKLEA TRUST.
Adult and Health Services,Head of Adults,Third Party Payments,478101,Purchase of Care,02/08/2023,4165259-I-23-9798532,"10,068.52",OAKLEA TRUST.
Adult and Health Services,Head of Adults,Third Party Payments,478101,Purchase of Care,02/08/2023,4165259-I-23-9798568,"18,249.28",OAKLEA TRUST.
Adult and Health Services,Head of Adults,Third Party Payments,478101,Purchase of Care,02/08/2023,4165259-I-23-9798570,"21,618.04",OAKLEA TRUST.
Adult and Health Services,Head of Adults,Third Party Payments,478101,Purchase of Care,02/08/2023,4165259-I-23-9798571,"16,069.72",OAKLEA TRUST.
Adult and Health Services,Head of Adults,Third Party Payments,478101,Purchase of Care,02/08/2023,4165259-I-23-9798655,"10,134.88",OAKLEA TRUST.
Adult and Health Services,Head of Adults,Third Party Payments,478101,Purchase of Care,02/08/2023,4165259-I-23-9798656,"4,908.68",OAKLEA TRUST.
Adult and Health Services,Head of Adults,Third Party Payments,478101,Purchase of Care,02/08/2023,4165259-I-23-9798700,"28,626.48",OAKLEA TRUST.
Adult and Health Services,Head of Adults,Third Party Payments,478101,Purchase of Care,02/08/2023,4165259-I-23-9798701,"32,669.20",OAKLEA TRUST.
Adult and Health Services,Head of Adults,Third Party Payments,478101,Purchase of Care,02/08/2023,4165259-I-23-9798714,"28,301.32",OAKLEA TRUST.
Adult and Health Services,Head of Adults,Third Party Payments,478101,Purchase of Care,02/08/2023,4165259-I-23-9798736,"19,766.60",OAKLEA TRUST.
Adult and Health Services,Head of Adults,Third Party Payments,478101,Purchase of Care,02/08/2023,4165259-I-23-9798737,"10,840.48",OAKLEA TRUST.
Adult and Health Services,Head of Adults,Third Party Payments,478101,Purchase of Care,02/08/2023,4165259-I-23-9798780,"30,738.40",OAKLEA TRUST.
Adult and Health Services,Head of Adults,Third Party Payments,473101,Purchase of Care,02/08/2023,4165260-I-23-9798555,"5,397.62",OBJECT QUEST LTD.
Adult and Health Services,Head of Adults,Third Party Payments,474101,Purchase of Care,02/08/2023,4165260-I-23-9798859,"56,827.64",OBJECT QUEST LTD.
Children and Young Peoples Services,Head of Childrens Social Care,Third Party Payments,425021,Rendered by Voluntary Organisations,02/08/2023,4165261-PIG_169262,"36,000.00",OLIVE GROVE LEARNING LTD.
Adult and Health Services,Head of Adults,Third Party Payments,478101,Purchase of Care,02/08/2023,4165263-I-23-9798569,"6,071.04",OLIVE STONE SUPPORT.
Adult and Health Services,Head of Adults,Third Party Payments,478101,Purchase of Care,02/08/2023,4165263-I-23-9798665,"18,350.08",OLIVE STONE SUPPORT.
Children and Young Peoples Services,Head of Childrens Social Care,Third Party Payments,425040,Rendered by Voluntary Organisations,02/08/2023,4165267-PIG_169320,"33,222.44",ORCHARD CARE (NORTH EAST) LTD.
Adult and Health Services,Head of Adults,Third Party Payments,472101,Purchase of Care,02/08/2023,4165268-I-23-9798689,"113,322.47",ORCHARD HOME CARE SERVICES LTD.
Children and Young Peoples Services,Head of Childrens Social Care,Third Party Payments,440062,Other third party payments E440,02/08/2023,4165268-PIG_169350,"2,740.00",ORCHARD HOME CARE SERVICES LTD.
Adult and Health Services,Head of Adults,Third Party Payments,470101,Purchase of Care,02/08/2023,4165269-I-23-9798726,903.70,OSWALD HOUSE CARE HOME LTD.
Adult and Health Services,Head of Adults,Third Party Payments,470101,Purchase of Care,02/08/2023,4165269-I-23-9799025,"9,060.00",OSWALD HOUSE CARE HOME LTD.
Adult and Health Services,Head of Adults,Third Party Payments,470101,Purchase of Care,02/08/2023,4165270-I-23-9798833,"9,060.00",OSWALD HOUSE CARE HOME LTD.
Adult and Health Services,Head of Adults,Third Party Payments,470101,Purchase of Care,02/08/2023,4165271-I-23-9798557,722.96,OSWALD HOUSE CARE HOME LTD.
Adult and Health Services,Head of Adults,Third Party Payments,470101,Purchase of Care,02/08/2023,4165271-I-23-9798877,"9,060.00",OSWALD HOUSE CARE HOME LTD.
Adult and Health Services,Head of Adults,Third Party Payments,470101,Purchase of Care,02/08/2023,4165272-I-23-9798650,"2,891.84",OSWALD HOUSE CARE HOME LTD.
Adult and Health Services,Head of Adults,Third Party Payments,470101,Purchase of Care,02/08/2023,4165272-I-23-9798960,"21,040.52",OSWALD HOUSE CARE HOME LTD.
Adult and Health Services,Head of Adults,Third Party Payments,470101,Purchase of Care,02/08/2023,4165273-I-23-9798892,"6,040.00",OSWALD HOUSE CARE HOME LTD.
Children and Young Peoples Services,Head of Childrens Social Care,Third Party Payments,425021,Rendered by Voluntary Organisations,02/08/2023,4165274-PIG_169289,"26,000.00",OUTBOUND CARE LTD.
Children and Young Peoples Services,Head of Childrens Social Care,Third Party Payments,425040,Rendered by Voluntary Organisations,02/08/2023,4165275-PIG_169319,"24,636.95",OUTSET FOSTERING AGENCY LTD.
Children and Young Peoples Services,Head of Childrens Social Care,Third Party Payments,425021,Rendered by Voluntary Organisations,02/08/2023,4165276-PIG_169263,"14,800.00",PADDOCK HOUSE LTD.
Adult and Health Services,Head of Adults,Third Party Payments,470101,Purchase of Care,02/08/2023,4165278-I-23-9799066,"42,312.99",PARAMOUNT CARE (GATESHEAD) LTD.
Children and Young Peoples Services,Head of Childrens Social Care,Third Party Payments,425021,Rendered by Voluntary Organisations,02/08/2023,4165279-PIG_169264,"18,000.00",PARK BLUE HOMES LTD.
Adult and Health Services,Head of Adults,Third Party Payments,470101,Purchase of Care,02/08/2023,4165280-I-23-9799089,"76,761.91",PATHWAYS CARE GROUP LTD.
Adult and Health Services,Head of Adults,Third Party Payments,470101,Purchase of Care,02/08/2023,4165302-I-23-9798940,"3,133.20",PEARLCARE (KENDAL) LTD T/A GILLING REANE CARE HOME.
Children and Young Peoples Services,Head of Childrens Social Care,Third Party Payments,425021,Rendered by Voluntary Organisations,02/08/2023,4165303-PIG_169266,"14,143.40",PEARTREE PROJECTS LTD.
Children and Young Peoples Services,Head of Childrens Social Care,Third Party Payments,425021,Rendered by Voluntary Organisations,02/08/2023,4165303-PIG_169267,"31,472.88",PEARTREE PROJECTS LTD.
Children and Young Peoples Services,Head of Childrens Social Care,Third Party Payments,425021,Rendered by Voluntary Organisations,02/08/2023,4165303-PIG_169268,"12,392.46",PEARTREE PROJECTS LTD.
Children and Young Peoples Services,Head of Childrens Social Care,Third Party Payments,425021,Rendered by Voluntary Organisations,02/08/2023,4165303-PIG_169269,"12,251.70",PEARTREE PROJECTS LTD.
Children and Young Peoples Services,Head of Childrens Social Care,Third Party Payments,425021,Rendered by Voluntary Organisations,02/08/2023,4165304-PIG_169265,"27,280.00",PEBBLES CARE LTD.
Adult and Health Services,Head of Adults,Third Party Payments,473101,Purchase of Care,02/08/2023,4165305-I-23-9798707,"3,909.44",PERCY HEDLEY FOUNDATION.
Dedicated Schools Grant BG0015,DSG High Needs Block,Third Party Payments,440080,Other third party payments E440,02/08/2023,4165305-PIG_169307,"85,249.16",PERCY HEDLEY FOUNDATION.
Adult and Health Services,Head of Adults,Third Party Payments,472101,Purchase of Care,02/08/2023,4165306-I-21-1914270-1/8/23,699.60,PERFECT CARE LTD.
Adult and Health Services,Head of Adults,Third Party Payments,472101,Purchase of Care,02/08/2023,4165306-I-23-9798767,"170,365.45",PERFECT CARE LTD.
Adult and Health Services,Head of Adults,Third Party Payments,473101,Purchase of Care,02/08/2023,4165310-I-23-9798716,"3,048.48",PHOENIX DAY CENTRE CIC.
Adult and Health Services,Head of Adults,Third Party Payments,470101,Purchase of Care,02/08/2023,4165311-I-23-9798979,"13,885.72",PHOENIX FUTURES.
Adult and Health Services,Head of Adults,Third Party Payments,473101,Purchase of Care,02/08/2023,4165312-I-23-9798776,"8,523.97",PIONEERING CARE PARTNERSHIP.
Adult and Health Services,Head of Adults,Third Party Payments,470101,Purchase of Care,02/08/2023,4165313-I-23-9798948,"13,894.20",POPULAR CARE LTD..
Adult and Health Services,Head of Adults,Third Party Payments,474101,Purchase of Care,02/08/2023,4165313-I-23-9799024,"105,340.86",POPULAR CARE LTD..
Adult and Health Services,Head of Adults,Third Party Payments,473101,Purchase of Care,02/08/2023,4165315-I-23-9798598,"1,318.00",POSITIVE CARE & SUPPORT LTD.
Adult and Health Services,Head of Adults,Third Party Payments,478101,Purchase of Care,02/08/2023,4165316-I-23-9798535,"16,457.28",POSITIVE INDIVIDUAL PROACTIVE SUPPORT LTD.
Adult and Health Services,Head of Adults,Third Party Payments,478101,Purchase of Care,02/08/2023,4165316-I-23-9798539,"12,453.56",POSITIVE INDIVIDUAL PROACTIVE SUPPORT LTD.
Adult and Health Services,Head of Adults,Third Party Payments,478101,Purchase of Care,02/08/2023,4165316-I-23-9798668,"42,895.08",POSITIVE INDIVIDUAL PROACTIVE SUPPORT LTD.
Adult and Health Services,Head of Adults,Third Party Payments,478101,Purchase of Care,02/08/2023,4165316-I-23-9798761,"2,229.76",POSITIVE INDIVIDUAL PROACTIVE SUPPORT LTD.
Adult and Health Services,Head of Adults,Third Party Payments,472101,Purchase of Care,02/08/2023,4165317-I-23-9798798,"15,093.09",POSSIBILITES NE LTD.
Adult and Health Services,Head of Adults,Third Party Payments,470101,Purchase of Care,02/08/2023,4165318-I-23-9798909,"2,728.84",POTENSIAL LTD T/A POTENS.
Adult and Health Services,Head of Adults,Third Party Payments,478101,Purchase of Care,02/08/2023,4165319-I-23-9798669,"21,565.12",POTENSIAL LTD T/A POTENS.
Adult and Health Services,Head of Adults,Third Party Payments,478101,Purchase of Care,02/08/2023,4165320-I-23-9798759,"20,885.76",POTENSIAL LTD T/A POTENS.
Adult and Health Services,Head of Adults,Third Party Payments,474101,Purchase of Care,02/08/2023,4165321-I-23-9798992,"141,289.36",PREMIER CARE HOMES LTD.
Adult and Health Services,Head of Adults,Third Party Payments,470101,Purchase of Care,02/08/2023,4165322-I-23-9799094,"43,719.77",PREMIER CARE HOMES LTD.
Adult and Health Services,Head of Adults,Third Party Payments,472101,Purchase of Care,02/08/2023,4165323-I-23-9798561,"118,201.67",PREMIER COMMUNITY CARE LTD.
Adult and Health Services,Head of Adults,Third Party Payments,470101,Purchase of Care,02/08/2023,4165324-I-23-9799070,"3,000.88",PREMIER NURSING HOMES T/A BRIARWOOD CARE HOME.
Adult and Health Services,Head of Adults,Third Party Payments,470101,Purchase of Care,02/08/2023,4165327-I-23-9799075,"3,240.56",PRESTWICK CARE T/A BELLE VUE HOUSE CARE HOME.
Adult and Health Services,Head of Adults,Third Party Payments,470101,Purchase of Care,02/08/2023,4165328-I-23-9799043,"1,166.40",PRIME LIFE LTD T/A WESTERLANDS CARE HOME.
Adult and Health Services,Head of Adults,Third Party Payments,470101,Purchase of Care,02/08/2023,4165329-I-23-9798938,"3,199.12",PRIMROSE CARE HOME HETTON LTD.
Children and Young Peoples Services,Head of Childrens Social Care,Third Party Payments,425021,Rendered by Voluntary Organisations,02/08/2023,4165330-PIG_169270,"26,128.52",PRIORY GROUP T/A THE PRIORY HIGHBANK CENTRE.
Adult and Health Services,Head of Adults,Third Party Payments,474101,Purchase of Care,02/08/2023,4165333-I-23-9799068,"18,871.21",QUALIA CARE LTD T/A WASHINGTON LODGE.
Adult and Health Services,Head of Adults,Third Party Payments,472101,Purchase of Care,02/08/2023,4165334-I-23-9798809,532.00,QUALITY & CARE SOLUTIONS LTD.
Children and Young Peoples Services,Head of Childrens Social Care,Third Party Payments,425021,Rendered by Voluntary Organisations,02/08/2023,4165335-PIG_169271,"26,250.00",QUALITY PROTECTS CHILDREN LTD.
Adult and Health Services,Head of Adults,Third Party Payments,470101,Purchase of Care,02/08/2023,4165343-I-23-9798829,"54,154.38",RAYSON HOMES LTD.
Adult and Health Services,Head of Adults,Third Party Payments,470101,Purchase of Care,02/08/2023,4165344-I-23-9799059,"40,232.91",RAYSON HOMES LTD.
Children and Young Peoples Services,Head of Childrens Social Care,Third Party Payments,425040,Rendered by Voluntary Organisations,02/08/2023,4165345-PIG_169313,"39,159.63",REACH OUT CARE LTD.
Children and Young Peoples Services,Head of Childrens Social Care,Third Party Payments,425040,Rendered by Voluntary Organisations,02/08/2023,4165345-PIG_169351,"63,244.52",REACH OUT CARE LTD.
Adult and Health Services,Head of Adults,Third Party Payments,473101,Purchase of Care,02/08/2023,4165346-I-23-9798575,"28,711.22",REAL CARE LTD.
Adult and Health Services,Head of Adults,Third Party Payments,474101,Purchase of Care,02/08/2023,4165349-I-23-9799091,"16,475.98",RENAL HEALTH LTD.
Children and Young Peoples Services,Head of Childrens Social Care,Third Party Payments,425021,Rendered by Voluntary Organisations,02/08/2023,4165350-PIG_169273,"36,019.76",RESILIENCE NORTH EAST LTD.
Adult and Health Services,Head of Adults,Third Party Payments,470101,Purchase of Care,02/08/2023,4165351-I-23-9798921,"18,676.44",RESOLVE (CARE NORTHERN) LTD..
Adult and Health Services,Head of Adults,Third Party Payments,470101,Purchase of Care,02/08/2023,4165352-I-23-9799044,"4,334.88",RESOLVE (CARE NORTHERN) LTD..
Adult and Health Services,Head of Adults,Third Party Payments,470101,Purchase of Care,02/08/2023,4165356-I-23-9799069,"1,462.88",RICHMOND FELLOWSHIP.
Adult and Health Services,Head of Adults,Third Party Payments,478101,Purchase of Care,02/08/2023,4165357-I-23-9798642,"17,534.72",RICHMOND FELLOWSHIP.
Children and Young Peoples Services,Head of Childrens Social Care,Third Party Payments,425021,Rendered by Voluntary Organisations,02/08/2023,4165358-PIG_169272,"22,530.00",RIGHT-TRAK LTD.
Adult and Health Services,Head of Adults,Third Party Payments,470101,Purchase of Care,02/08/2023,4165360-I-23-9799046,"2,897.32",RIVERSIDE HOUSE PROPCO LTD.
Adult and Health Services,Head of Adults,Third Party Payments,478101,Purchase of Care,02/08/2023,4165364-I-23-9798498,"1,337.00",ROC SOLID LTD.
Children and Young Peoples Services,Head of Childrens Social Care,Third Party Payments,440038,Other third party payments E440,02/08/2023,4165364-PIG_168646,"3,602.36",ROC SOLID LTD.
Adult and Health Services,Head of Adults,Third Party Payments,470101,Purchase of Care,02/08/2023,4165366-I-23-9799083,"6,218.44",ROSEBERRY CARE CENTRES (ENGLAND) LTD.
Adult and Health Services,Head of Adults,Third Party Payments,470101,Purchase of Care,02/08/2023,4165367-I-23-9798944,"109,694.40",ROSEBERRY CARE CENTRES GB LTD.
Adult and Health Services,Head of Adults,Third Party Payments,474101,Purchase of Care,02/08/2023,4165368-I-23-9799055,"2,441.44",ROSEBERRY CARE CENTRES GB LTD.
Adult and Health Services,Head of Adults,Third Party Payments,470101,Purchase of Care,02/08/2023,4165370-I-23-9798970,"17,935.67",ROSEMOUNT TRUST.
Adult and Health Services,Head of Adults,Third Party Payments,470101,Purchase of Care,02/08/2023,4165373-I-23-8095897,"1,975.68",RUNWOOD HOMES LTD.
Adult and Health Services,Head of Adults,Third Party Payments,470101,Purchase of Care,02/08/2023,4165373-I-23-9798976,"2,866.64",RUNWOOD HOMES LTD.
Dedicated Schools Grant BG0015,DSG High Needs Block,Third Party Payments,425005,Rendered by Voluntary Organisations,02/08/2023,4165374-PIG_170000,"18,339.92",RUSKIN MILL TRUST T/A CLERVAUX GARDEN SCHOOL.
Adult and Health Services,Head of Adults,Third Party Payments,470101,Purchase of Care,02/08/2023,4165379-I-23-9798832,"6,024.88",SAINT JOHN OF GOD HOSPITALLER SERVICES.
Adult and Health Services,Head of Adults,Third Party Payments,470101,Purchase of Care,02/08/2023,4165385-I-23-9798939,"3,585.54",SANCTUARY CARE (ENGLAND) LTD.
Adult and Health Services,Head of Adults,Third Party Payments,474101,Purchase of Care,02/08/2023,4165386-I-23-9798844,"17,637.72",SANCTUARY CARE (ENGLAND) LTD.
Adult and Health Services,Head of Adults,Third Party Payments,474101,Purchase of Care,02/08/2023,4165387-I-23-9798819,"161,799.77",SANCTUARY CARE (ENGLAND) LTD.
Adult and Health Services,Head of Adults,Third Party Payments,470101,Purchase of Care,02/08/2023,4165388-I-23-9799016,"105,424.14",SANCTUARY CARE (ENGLAND) LTD.
Adult and Health Services,Head of Adults,Third Party Payments,474101,Purchase of Care,02/08/2023,4165389-I-23-9798816,"172,687.14",SANCTUARY CARE (ENGLAND) LTD.
Adult and Health Services,Head of Adults,Third Party Payments,474101,Purchase of Care,02/08/2023,4165390-I-23-9799065,"134,031.49",SANCTUARY CARE (ENGLAND) LTD.
Adult and Health Services,Head of Adults,Third Party Payments,478101,Purchase of Care,02/08/2023,4165391-I-23-9798645,"1,764.00",SANCTUARY HOME CARE LTD.
Adult and Health Services,Head of Adults,Third Party Payments,478101,Purchase of Care,02/08/2023,4165392-I-23-9798771,"2,050.80",SANCTUARY HOME CARE LTD.
Adult and Health Services,Head of Adults,Third Party Payments,474101,Purchase of Care,02/08/2023,4165397-I-23-9799105,"115,974.76",SEAHAM CARE LTD.
Adult and Health Services,Head of Adults,Third Party Payments,470101,Purchase of Care,02/08/2023,4165398-I-23-9798908,"90,769.24",SEAHAM CARE LTD.
Adult and Health Services,Head of Adults,Third Party Payments,472101,Purchase of Care,02/08/2023,4165399-I-23-9798648,"37,527.44",SECOND TO NONE CARE LTD.
Adult and Health Services,Head of Adults,Third Party Payments,470101,Purchase of Care,02/08/2023,4165400-I-23-9798972,"1,259.16",SELF (NORTH EAST) LTD.
Adult and Health Services,Head of Adults,Third Party Payments,470101,Purchase of Care,02/08/2023,4165400-I-23-9799077,"31,483.76",SELF (NORTH EAST) LTD.
Adult and Health Services,Head of Adults,Third Party Payments,474101,Purchase of Care,02/08/2023,4165401-I-23-9798958,"4,096.00",SEYMOUR HOUSE HARTLEPOOL LTD.
Adult and Health Services,Head of Adults,Third Party Payments,473101,Purchase of Care,02/08/2023,4165405-I-23-9798775,"15,176.84",SHAW TRUST GARDEN PROJECT.*
Adult and Health Services,Head of Adults,Third Party Payments,472101,Purchase of Care,02/08/2023,4165407-I-23-9798592,"49,756.32",SHEENA MILES CARE SERVICES LTD.
Children and Young Peoples Services,Head of Childrens Social Care,Third Party Payments,440062,Other third party payments E440,02/08/2023,4165407-PIG_168617,"3,080.00",SHEENA MILES CARE SERVICES LTD.
Children and Young Peoples Services,Head of Childrens Social Care,Third Party Payments,486020,Service level agreements E486,02/08/2023,4165407-PIG_169390,"3,832.12",SHEENA MILES CARE SERVICES LTD.
Adult and Health Services,Head of Adults,Third Party Payments,470101,Purchase of Care,02/08/2023,4165409-I-23-9799060,"73,385.58",SHERBURN HOUSE CHARITY.
Children and Young Peoples Services,Head of Childrens Social Care,Third Party Payments,425040,Rendered by Voluntary Organisations,02/08/2023,4165410-PIG_168628,"6,328.62",SHINING STARS FOSTERING SERVICES.
Children and Young Peoples Services,Head of Childrens Social Care,Third Party Payments,440038,Other third party payments E440,02/08/2023,4165413-PIG_168647,"3,598.56",SILVER BIRCH CARE LTD.
Adult and Health Services,Head of Adults,Third Party Payments,470101,Purchase of Care,02/08/2023,4165417-I-23-9799071,"5,231.00",SLW LTD.
Adult and Health Services,Head of Adults,Third Party Payments,470101,Purchase of Care,02/08/2023,4165418-I-23-9798917,"15,399.64",SOLEHAWK LTD T/A CRAIGIELEA CARE HOME.
Adult and Health Services,Head of Adults,Third Party Payments,478101,Purchase of Care,02/08/2023,4165421-I-23-9798593,"5,154.96",SOVEREIGN CARE (NORTH EAST) LTD.
Adult and Health Services,Head of Adults,Third Party Payments,478101,Purchase of Care,02/08/2023,4165422-I-23-9798801,"6,892.32",SOVEREIGN CARE (NORTH EAST) LTD.
Adult and Health Services,Head of Adults,Third Party Payments,470101,Purchase of Care,02/08/2023,4165422-I-23-9799109,"37,965.68",SOVEREIGN CARE (NORTH EAST) LTD.
Adult and Health Services,Head of Adults,Third Party Payments,470101,Purchase of Care,02/08/2023,4165423-I-23-9799004,"11,546.68",SPECIALITY CARE (REHAB) LTD.
Adult and Health Services,Head of Adults,Third Party Payments,472101,Purchase of Care,02/08/2023,4165424-I-23-9798694,"1,093.56",SPECTRUM COMMUNITY HEALTH.
Adult and Health Services,Head of Adults,Third Party Payments,478101,Purchase of Care,02/08/2023,4165425-I-23-9798663,"11,039.88",SPRINGFIELD HOMECARE SERVICES LTD.
Adult and Health Services,Head of Adults,Third Party Payments,474101,Purchase of Care,02/08/2023,4165426-I-23-9799042,"3,423.12",SPYNIE CARE HOME.
Adult and Health Services,Head of Adults,Third Party Payments,470101,Purchase of Care,02/08/2023,4165427-I-23-9798919,"81,266.48",ST ANDREWS MPS LTD.
Adult and Health Services,Head of Adults,Third Party Payments,472101,Purchase of Care,02/08/2023,4165428-4781391,642.80,ST ANNES COMMUNITY SERVICES.
Adult and Health Services,Head of Adults,Third Party Payments,478101,Purchase of Care,02/08/2023,4165428-I-23-9798481,"17,343.68",ST ANNES COMMUNITY SERVICES.
Adult and Health Services,Head of Adults,Third Party Payments,478101,Purchase of Care,02/08/2023,4165428-I-23-9798615,"11,854.08",ST ANNES COMMUNITY SERVICES.
Adult and Health Services,Head of Adults,Third Party Payments,478101,Purchase of Care,02/08/2023,4165428-I-23-9798621,"11,854.08",ST ANNES COMMUNITY SERVICES.
Adult and Health Services,Head of Adults,Third Party Payments,478101,Purchase of Care,02/08/2023,4165428-I-23-9798622,"5,676.56",ST ANNES COMMUNITY SERVICES.
Adult and Health Services,Head of Adults,Third Party Payments,478101,Purchase of Care,02/08/2023,4165428-I-23-9798659,"17,781.12",ST ANNES COMMUNITY SERVICES.
Adult and Health Services,Head of Adults,Third Party Payments,478101,Purchase of Care,02/08/2023,4165428-I-23-9798680,"10,314.24",ST ANNES COMMUNITY SERVICES.
Adult and Health Services,Head of Adults,Third Party Payments,478101,Purchase of Care,02/08/2023,4165428-I-23-9798709,"5,676.56",ST ANNES COMMUNITY SERVICES.
Adult and Health Services,Head of Adults,Third Party Payments,478101,Purchase of Care,02/08/2023,4165428-I-23-9798739,"11,854.08",ST ANNES COMMUNITY SERVICES.
Adult and Health Services,Head of Adults,Third Party Payments,478101,Purchase of Care,02/08/2023,4165428-I-23-9798741,"11,854.08",ST ANNES COMMUNITY SERVICES.
Adult and Health Services,Head of Adults,Third Party Payments,478101,Purchase of Care,02/08/2023,4165428-I-23-9798762,"5,308.80",ST ANNES COMMUNITY SERVICES.
Adult and Health Services,Head of Adults,Third Party Payments,478101,Purchase of Care,02/08/2023,4165428-I-23-9798788,"16,183.68",ST ANNES COMMUNITY SERVICES.
Adult and Health Services,Head of Adults,Third Party Payments,478101,Purchase of Care,02/08/2023,4165428-I-23-9798802,"10,883.04",ST ANNES COMMUNITY SERVICES.
Adult and Health Services,Head of Adults,Third Party Payments,470101,Purchase of Care,02/08/2023,4165429-I-23-9799038,"2,899.16",ST CUTHBERTS CARE.
Adult and Health Services,Central/Other,Third Party Payments,474101,Purchase of Care,02/08/2023,4165430-I-23-9798821,878.84,ST CUTHBERTS CARE.
Children and Young Peoples Services,Head of Childrens Social Care,Third Party Payments,425021,Rendered by Voluntary Organisations,02/08/2023,4165431-PIG_169275,"38,900.12",ST CUTHBERTS CARE.
Children and Young Peoples Services,Head of Childrens Social Care,Third Party Payments,425044,Rendered by Voluntary Organisations,02/08/2023,4165432-PIG_168618,"1,576.12",ST CUTHBERTS CARE.
Adult and Health Services,Head of Adults,Third Party Payments,470101,Purchase of Care,02/08/2023,4165433-I-23-9799053,"5,586.68",ST MARKS HOME LTD.
Adult and Health Services,Head of Adults,Third Party Payments,470101,Purchase of Care,02/08/2023,4165434-I-23-9799036,"2,440.00",ST MARTIN`S CARE LTD.
Adult and Health Services,Head of Adults,Third Party Payments,470101,Purchase of Care,02/08/2023,4165435-I-23-9798886,"3,121.52",ST MARTIN`S CARE LTD.
Adult and Health Services,Head of Adults,Third Party Payments,474101,Purchase of Care,02/08/2023,4165436-I-23-9799002,"2,848.00",ST MARTIN`S CARE LTD.
Adult and Health Services,Head of Adults,Third Party Payments,470101,Purchase of Care,02/08/2023,4165437-I-23-9799058,"133,744.27",ST PHILIPS CARE LTD.
Adult and Health Services,Head of Adults,Third Party Payments,470101,Purchase of Care,02/08/2023,4165438-I-23-9798864,"94,047.77",ST PHILIPS CARE LTD.
Adult and Health Services,Head of Adults,Third Party Payments,474101,Purchase of Care,02/08/2023,4165441-I-23-9798837,"3,037.52",STAINTON LODGE CARE CENTRE.
Adult and Health Services,Head of Adults,Third Party Payments,472101,Purchase of Care,02/08/2023,4165452-I-23-9798534,928.00,SUNDERLAND HOME CARE ASSOCIATES 2020 LTD.
Adult and Health Services,Head of Adults,Third Party Payments,474101,Purchase of Care,02/08/2023,4165453-I-23-9798918,"61,886.28",SUNNY OKUKPOLOR HUMPHREYS.
Adult and Health Services,Head of Adults,Third Party Payments,478101,Purchase of Care,02/08/2023,4165454-I-23-9798599,"8,488.40",SUNNYSIDE HOUSE LTD T/A SUNNYSIDE HOME CARE.
Adult and Health Services,Head of Adults,Third Party Payments,472101,Purchase of Care,02/08/2023,4165455-I-22-5968308-1/8/23,606.32,SUPPORTIVE SRC LTD.
Adult and Health Services,Head of Adults,Third Party Payments,472101,Purchase of Care,02/08/2023,4165455-I-23-8095603-1/8/23,"5,591.55",SUPPORTIVE SRC LTD.
Adult and Health Services,Head of Adults,Third Party Payments,472101,Purchase of Care,02/08/2023,4165455-I-23-9798686,"151,344.37",SUPPORTIVE SRC LTD.
Adult and Health Services,Head of Adults,Third Party Payments,470101,Purchase of Care,02/08/2023,4165465-I-23-9799000,"17,688.48",SWANTON CARE & COMMUNITY (AUTISM NORTH) LTD.
Adult and Health Services,Head of Adults,Third Party Payments,470101,Purchase of Care,02/08/2023,4165466-I-23-9798885,"34,815.91",SWANTON CARE & COMMUNITY (AUTISM NORTH) LTD.
Adult and Health Services,Head of Adults,Third Party Payments,470101,Purchase of Care,02/08/2023,4165467-I-23-9798937,"7,626.32",SWANTON CARE & COMMUNITY (AUTISM NORTH) LTD.
Adult and Health Services,Head of Adults,Third Party Payments,470101,Purchase of Care,02/08/2023,4165468-I-23-9799061,"7,263.80",SWANTON CARE & COMMUNITY (AUTISM NORTH) LTD.
Adult and Health Services,Head of Adults,Third Party Payments,470101,Purchase of Care,02/08/2023,4165469-I-23-9798927,"5,467.08",SWANTON CARE & COMMUNITY (AUTISM NORTH) LTD.
Adult and Health Services,Head of Adults,Third Party Payments,470101,Purchase of Care,02/08/2023,4165470-I-23-9798950,"8,222.04",SWANTON CARE & COMMUNITY (AUTISM NORTH) LTD.
Adult and Health Services,Head of Adults,Third Party Payments,470101,Purchase of Care,02/08/2023,4165471-I-23-9799112,"29,930.80",SWANTON CARE & COMMUNITY (AUTISM NORTH) LTD.
Children and Young Peoples Services,Head of Childrens Social Care,Third Party Payments,425040,Rendered by Voluntary Organisations,02/08/2023,4165473-PIG_169352,"20,324.92",SWIIS FOSTER CARE LTD.
Children and Young Peoples Services,Head of Childrens Social Care,Third Party Payments,425040,Rendered by Voluntary Organisations,02/08/2023,4165473-PIG_169359,"4,749.11",SWIIS FOSTER CARE LTD.
Adult and Health Services,Head of Adults,Third Party Payments,474101,Purchase of Care,02/08/2023,4165475-I-23-9799088,"113,858.26",TAMARIS HEALTHCARE (ENGLAND) LTD.
Adult and Health Services,Head of Adults,Third Party Payments,474101,Purchase of Care,02/08/2023,4165476-I-23-9798982,"1,902.96",TAMARIS HEALTHCARE (ENGLAND) LTD.
Adult and Health Services,Head of Adults,Third Party Payments,470101,Purchase of Care,02/08/2023,4165477-I-23-9798923,"2,580.40",TAMARIS HEALTHCARE (ENGLAND) LTD.
Adult and Health Services,Head of Adults,Third Party Payments,474101,Purchase of Care,02/08/2023,4165478-I-23-9799090,"63,247.86",TAMARIS HEALTHCARE (ENGLAND) LTD.
Adult and Health Services,Head of Adults,Third Party Payments,474101,Purchase of Care,02/08/2023,4165479-I-23-9798870,"118,303.08",TAMARIS HEALTHCARE (ENGLAND) LTD.
Adult and Health Services,Central/Other,Third Party Payments,474101,Purchase of Care,02/08/2023,4165480-I-23-9798875,"24,802.43",TAMARIS HEALTHCARE (ENGLAND) LTD.
Adult and Health Services,Head of Adults,Third Party Payments,474101,Purchase of Care,02/08/2023,4165481-I-23-9798860,"114,688.23",TAMARIS HEALTHCARE (ENGLAND) LTD.
Children and Young Peoples Services,Head of Childrens Social Care,Third Party Payments,425040,Rendered by Voluntary Organisations,02/08/2023,4165483-PIG_169317,"46,643.12",TEAM FOSTERING.
Children and Young Peoples Services,Head of Childrens Social Care,Third Party Payments,425040,Rendered by Voluntary Organisations,02/08/2023,4165483-PIG_169358,"27,716.70",TEAM FOSTERING.
Children and Young Peoples Services,Head of Childrens Social Care,Third Party Payments,440038,Other third party payments E440,02/08/2023,4165486-PIG_168639,"16,612.88",THE CYRENIANS LTD T/A CHANGING LIVES.
Adult and Health Services,Commissioning inc Supporting People,Third Party Payments,441001,Supporting People E441,02/08/2023,4165487-4448715,"19,284.04",THE CYRENIANS LTD T/A CHANGING LIVES.
Adult and Health Services,Head of Adults,Third Party Payments,470101,Purchase of Care,02/08/2023,4165488-I-23-9798934,"35,767.06",THE FIELDS CARE HOME.
Children and Young Peoples Services,Head of Childrens Social Care,Third Party Payments,425040,Rendered by Voluntary Organisations,02/08/2023,4165489-PIG_169312,"25,969.84",THE FOSTERING COMPANY NORTH EAST LTD.
Children and Young Peoples Services,Head of Childrens Social Care,Third Party Payments,425040,Rendered by Voluntary Organisations,02/08/2023,4165489-PIG_169353,"3,092.72",THE FOSTERING COMPANY NORTH EAST LTD.
Dedicated Schools Grant BG0015,DSG High Needs Block,Third Party Payments,425005,Rendered by Voluntary Organisations,02/08/2023,4165490-PIG_169299,"6,263.18",THE GFC SCHOOL LTD.
Adult and Health Services,Head of Adults,Third Party Payments,470101,Purchase of Care,02/08/2023,4165491-I-23-9798862,"125,606.63",THE HAWTHORNS LODGE LTD.
Adult and Health Services,Head of Adults,Third Party Payments,473101,Purchase of Care,02/08/2023,4165492-I-23-9798623,"3,320.39",THE HOSPITAL OF GOD AT GREATHAM.
Adult and Health Services,Head of Adults,Third Party Payments,472101,Purchase of Care,02/08/2023,4165493-I-23-9798765,"18,829.75",THE HUMAN SUPPORT GROUP LTD.
Adult and Health Services,Head of Adults,Third Party Payments,478101,Purchase of Care,02/08/2023,4165494-I-23-9798774,"25,120.20",THE INTEGRATION TRUST LTD.
Adult and Health Services,Head of Adults,Third Party Payments,470101,Purchase of Care,02/08/2023,4165495-I-23-9798965,"3,121.56",THE LAURELS CARE SERVICES LTD.
Adult and Health Services,Head of Adults,Third Party Payments,470101,Purchase of Care,02/08/2023,4165496-I-23-9798845,"21,179.85",THE ORDER OF THE GOOD & PERPETUAL SUCCOUR.
Adult and Health Services,Head of Adults,Third Party Payments,470101,Purchase of Care,02/08/2023,4165497-I-23-9649630,"5,404.46",THE PERCY HEDLEY FOUNDATION.
Adult and Health Services,Head of Adults,Third Party Payments,470101,Purchase of Care,02/08/2023,4165497-I-23-9798727,"1,016.76",THE PERCY HEDLEY FOUNDATION.
Adult and Health Services,Head of Adults,Third Party Payments,470101,Purchase of Care,02/08/2023,4165497-I-23-9799037,"23,107.32",THE PERCY HEDLEY FOUNDATION.
Adult and Health Services,Head of Adults,Third Party Payments,470101,Purchase of Care,02/08/2023,4165498-I-23-9799049,"2,850.56",THE SALVATION ARMY T/A VILLA ADASTRA CARE HOME.
Adult and Health Services,Head of Adults,Third Party Payments,474101,Purchase of Care,02/08/2023,4165499-I-23-9798825,"72,657.60",THE VILLAGE CARE HOME.
Adult and Health Services,Head of Adults,Third Party Payments,473101,Purchase of Care,02/08/2023,4165500-I-23-9798725,"1,978.28",THE WIDER WORLD PROJECT.
Adult and Health Services,Head of Adults,Third Party Payments,478101,Purchase of Care,02/08/2023,4165501-I-23-9798617,"32,774.57",THERA NORTH TRADING LTD.
Adult and Health Services,Head of Adults,Third Party Payments,478101,Purchase of Care,02/08/2023,4165501-I-23-9798769,"11,780.16",THERA NORTH TRADING LTD.
Adult and Health Services,Commissioning inc Supporting People,Third Party Payments,441001,Supporting People E441,02/08/2023,4165503-4449241,"27,442.72",THIRTEEN HOUSING GROUP LTD.
Adult and Health Services,Head of Adults,Third Party Payments,473101,Purchase of Care,02/08/2023,4165514-I-23-9798501,"40,630.25",THOMPSON & HOWE LTD.
Adult and Health Services,Head of Adults,Third Party Payments,473101,Purchase of Care,02/08/2023,4165514-I-23-9798530,"18,882.82",THOMPSON & HOWE LTD.
Adult and Health Services,Head of Adults,Third Party Payments,473101,Purchase of Care,02/08/2023,4165514-I-23-9798573,"12,314.14",THOMPSON & HOWE LTD.
Adult and Health Services,Head of Adults,Third Party Payments,473101,Purchase of Care,02/08/2023,4165514-I-23-9798589,"45,513.17",THOMPSON & HOWE LTD.
Adult and Health Services,Head of Adults,Third Party Payments,473101,Purchase of Care,02/08/2023,4165514-I-23-9798735,"35,504.54",THOMPSON & HOWE LTD.
Adult and Health Services,Head of Adults,Third Party Payments,473101,Purchase of Care,02/08/2023,4165514-I-23-9798745,"36,932.77",THOMPSON & HOWE LTD.
Adult and Health Services,Head of Adults,Third Party Payments,473101,Purchase of Care,02/08/2023,4165514-I-23-9798754,"25,460.74",THOMPSON & HOWE LTD.
Adult and Health Services,Head of Adults,Third Party Payments,473101,Purchase of Care,02/08/2023,4165514-I-23-9798781,"45,264.11",THOMPSON & HOWE LTD.
Adult and Health Services,Head of Adults,Third Party Payments,473101,Purchase of Care,02/08/2023,4165516-I-23-9798572,"2,208.16",TIN ARTS LTD.
Adult and Health Services,Head of Adults,Third Party Payments,470101,Purchase of Care,02/08/2023,4165517-I-23-9799064,"6,434.73",TL CARE LTD.
Adult and Health Services,Head of Adults,Third Party Payments,472101,Purchase of Care,02/08/2023,4165518-I-23-9094606-1/8/23,"2,981.25",TLC COMMUNITY SERVICES.
Adult and Health Services,Head of Adults,Third Party Payments,472101,Purchase of Care,02/08/2023,4165518-I-23-9798808,"13,383.90",TLC COMMUNITY SERVICES.
Adult and Health Services,Head of Adults,Third Party Payments,470101,Purchase of Care,02/08/2023,4165519-I-23-9798838,"88,373.09",TRIMS GYM LTD.
Adult and Health Services,Head of Adults,Third Party Payments,470101,Purchase of Care,02/08/2023,4165521-I-23-9799080,"7,982.24",TRUST CARE MANAGEMENT LTD.
Adult and Health Services,Head of Adults,Third Party Payments,478101,Purchase of Care,02/08/2023,4165522-I-23-9798764,"1,604.96",TURNAROUND HOMES (3 TO 13).
Adult and Health Services,Head of Adults,Third Party Payments,470101,Purchase of Care,02/08/2023,4165523-I-23-9799113,"3,136.00",ULTIMATE CARE LTD.
Adult and Health Services,Head of Adults,Third Party Payments,478101,Purchase of Care,02/08/2023,4165524-I-22-4482721,"12,722.00",UNITED RESPONSE.
Adult and Health Services,Head of Adults,Third Party Payments,478101,Purchase of Care,02/08/2023,4165524-I-22-6061422,"12,862.64",UNITED RESPONSE.
Adult and Health Services,Head of Adults,Third Party Payments,478101,Purchase of Care,02/08/2023,4165524-I-22-6061597,"13,461.56",UNITED RESPONSE.
Adult and Health Services,Head of Adults,Third Party Payments,478101,Purchase of Care,02/08/2023,4165524-I-23-9094455,"14,352.65",UNITED RESPONSE.
Adult and Health Services,Head of Adults,Third Party Payments,478101,Purchase of Care,02/08/2023,4165524-I-23-9339976,"1,557.73",UNITED RESPONSE.
Adult and Health Services,Head of Adults,Third Party Payments,478101,Purchase of Care,02/08/2023,4165524-I-23-9340154,"14,649.68",UNITED RESPONSE.
Adult and Health Services,Head of Adults,Third Party Payments,470101,Purchase of Care,02/08/2023,4165526-I-23-9798652,530.80,VALDIGARTH RESIDENTIAL CARE HOME.
Adult and Health Services,Head of Adults,Third Party Payments,470101,Purchase of Care,02/08/2023,4165526-I-23-9798967,"22,747.04",VALDIGARTH RESIDENTIAL CARE HOME.
Adult and Health Services,Head of Adults,Third Party Payments,474101,Purchase of Care,02/08/2023,4165531-I-23-9798989,"9,048.00",VICTORIA HOUSE.
Adult and Health Services,Head of Adults,Third Party Payments,472101,Purchase of Care,02/08/2023,4165533-I-23-9798558,"21,266.08",VILLAGE CARE LTD.
Children and Young Peoples Services,Head of Childrens Social Care,Third Party Payments,425021,Rendered by Voluntary Organisations,02/08/2023,4165534-PIG_169276,"50,644.88",VITA NOVA NE LTD.
Adult and Health Services,Head of Adults,Third Party Payments,473101,Purchase of Care,02/08/2023,4165535-I-23-9798467,"7,067.24",VOIDSERVICES LTD.
Adult and Health Services,Head of Adults,Third Party Payments,470101,Purchase of Care,02/08/2023,4165536-I-23-9798891,"5,915.68",VOYAGE 1 LTD.
Adult and Health Services,Head of Adults,Third Party Payments,478101,Purchase of Care,02/08/2023,4165537-I-23-9798624,"31,136.41",VOYAGE 1 LTD.
Adult and Health Services,Head of Adults,Third Party Payments,478101,Purchase of Care,02/08/2023,4165537-I-23-9798662,"10,981.60",VOYAGE 1 LTD.
Adult and Health Services,Head of Adults,Third Party Payments,470101,Purchase of Care,02/08/2023,4165537-I-23-9799040,"11,234.80",VOYAGE 1 LTD.
Adult and Health Services,Head of Adults,Third Party Payments,470101,Purchase of Care,02/08/2023,4165538-I-23-9799114,"27,133.04",VOYAGE 1 LTD.
Adult and Health Services,Head of Adults,Third Party Payments,470101,Purchase of Care,02/08/2023,4165539-I-23-9799082,"8,449.60",VOYAGE 1 LTD.
Adult and Health Services,Head of Adults,Third Party Payments,470101,Purchase of Care,02/08/2023,4165540-I-23-9799021,"13,529.88",VOYAGE 1 LTD.
Adult and Health Services,Head of Adults,Third Party Payments,470101,Purchase of Care,02/08/2023,4165541-I-23-9799045,"4,057.06",WATERLOO HOUSE RESIDENTIAL CARE HOME LTD.
Children and Young Peoples Services,Head of Childrens Social Care,Third Party Payments,425021,Rendered by Voluntary Organisations,02/08/2023,4165542-PIG_169290,"38,000.00",WE CARE BESPOKE LTD T/A TYNE ROAD CHILDREN`S HOME.
Children and Young Peoples Services,Head of Childrens Social Care,Third Party Payments,486020,Service level agreements E486,02/08/2023,4165543-PIG_169984,"17,069.37",WE CARE RECRUITMENT SOLUTIONS LTD.
Adult and Health Services,Head of Adults,Third Party Payments,473101,Purchase of Care,02/08/2023,4165544-I-23-9798625,"18,909.90",WEAR 1 CARE LTD.
Adult and Health Services,Head of Adults,Third Party Payments,473101,Purchase of Care,02/08/2023,4165545-I-23-9798578,"1,375.38",WEAR VALLEY ANGLING CIC.
Adult and Health Services,Commissioning inc Supporting People,Third Party Payments,441001,Supporting People E441,02/08/2023,4165546-4618830,"9,568.80",WEAR VALLEY WOMENS AID LTD.
Adult and Health Services,Head of Adults,Third Party Payments,470101,Purchase of Care,02/08/2023,4165547-I-23-9799012,"2,942.60",WELLBURN CARE HOMES LTD.
Adult and Health Services,Head of Adults,Third Party Payments,470101,Purchase of Care,02/08/2023,4165548-I-23-9798914,"41,886.37",WEST HOUSE CARE HOME LTD.
Adult and Health Services,Head of Adults,Third Party Payments,470101,Purchase of Care,02/08/2023,4165549-I-23-9798925,"132,821.14",WEST LODGE CARE HOMES LTD.
Adult and Health Services,Head of Adults,Third Party Payments,470101,Purchase of Care,02/08/2023,4165552-I-23-9798871,"112,011.28",WILLIAMS & SPENCELEY LTD.
Children and Young Peoples Services,Head of Childrens Social Care,Third Party Payments,425021,Rendered by Voluntary Organisations,02/08/2023,4165553-PIG_169277,"16,449.00",WITHERSLACK GROUP LTD T/A ASHBROOKE SCHOOL.
Dedicated Schools Grant BG0015,DSG High Needs Block,Third Party Payments,425005,Rendered by Voluntary Organisations,02/08/2023,4165553-PIG_169304,"77,512.23",WITHERSLACK GROUP LTD T/A ASHBROOKE SCHOOL.
Dedicated Schools Grant BG0015,DSG High Needs Block,Third Party Payments,425005,Rendered by Voluntary Organisations,02/08/2023,4165554-PIG_169300,"26,799.20",WITHERSLACK GROUP LTD T/A HARTWELL SCHOOL.
Children and Young Peoples Services,Head of Childrens Social Care,Third Party Payments,425021,Rendered by Voluntary Organisations,02/08/2023,4165555-PIG_169278,"30,439.84",WITHERSLACK GROUP LTD.
Children and Young Peoples Services,Head of Childrens Social Care,Third Party Payments,425021,Rendered by Voluntary Organisations,02/08/2023,4165555-PIG_169279,"18,101.00",WITHERSLACK GROUP LTD.
Children and Young Peoples Services,Head of Childrens Social Care,Third Party Payments,425021,Rendered by Voluntary Organisations,02/08/2023,4165555-PIG_169280,"20,645.68",WITHERSLACK GROUP LTD.
Children and Young Peoples Services,Head of Childrens Social Care,Third Party Payments,425021,Rendered by Voluntary Organisations,02/08/2023,4165555-PIG_169281,"20,360.08",WITHERSLACK GROUP LTD.
Dedicated Schools Grant BG0015,DSG High Needs Block,Third Party Payments,425005,Rendered by Voluntary Organisations,02/08/2023,4165555-PIG_169301,"11,096.60",WITHERSLACK GROUP LTD.
Children and Young Peoples Services,Head of Childrens Social Care,Third Party Payments,425023,Rendered by Voluntary Organisations,02/08/2023,4165555-PIG_169302,"13,493.24",WITHERSLACK GROUP LTD.
Children and Young Peoples Services,Head of Childrens Social Care,Third Party Payments,425023,Rendered by Voluntary Organisations,02/08/2023,4165555-PIG_169305,"7,164.68",WITHERSLACK GROUP LTD.
Adult and Health Services,Head of Adults,Third Party Payments,473101,Purchase of Care,02/08/2023,4165556-I-23-9798522,"8,412.00",WOODCRAFT FOR LANDSCAPES CIC.
Adult and Health Services,Head of Adults,Third Party Payments,474101,Purchase of Care,02/08/2023,4165557-I-23-9799115,"3,328.40",WYVIS HOUSE CARE HOME LTD.
Children and Young Peoples Services,Head of Childrens Social Care,Third Party Payments,440038,Other third party payments E440,02/08/2023,4165558-PIG_169314,"53,600.00",YMCA WEARSIDE LTD.
Dedicated Schools Grant BG0015,DSG High Needs Block,Third Party Payments,425005,Rendered by Voluntary Organisations,02/08/2023,4165559-PIG_169995,"7,165.08",YOUNG FOUNDATIONS LTD.
Children and Young Peoples Services,Head of Childrens Social Care,Third Party Payments,425021,Rendered by Voluntary Organisations,02/08/2023,4165560-PIG_169282,"13,323.75",YOUNG FOUNDATIONS LTD.
Adult and Health Services,Head of Adults,Third Party Payments,478101,Purchase of Care,02/08/2023,4165561-I-23-9798489,"9,390.24",YS SERVICES LTD T/A EMBRACING CARE.
Adult and Health Services,Head of Adults,Third Party Payments,478101,Purchase of Care,02/08/2023,4165561-I-23-9798490,"21,067.36",YS SERVICES LTD T/A EMBRACING CARE.
Adult and Health Services,Head of Adults,Third Party Payments,478101,Purchase of Care,02/08/2023,4165561-I-23-9798491,"14,047.20",YS SERVICES LTD T/A EMBRACING CARE.
Adult and Health Services,Head of Adults,Third Party Payments,478101,Purchase of Care,02/08/2023,4165561-I-23-9798492,"12,106.80",YS SERVICES LTD T/A EMBRACING CARE.
Adult and Health Services,Head of Adults,Third Party Payments,478101,Purchase of Care,02/08/2023,4165561-I-23-9798540,"11,190.24",YS SERVICES LTD T/A EMBRACING CARE.
Adult and Health Services,Head of Adults,Third Party Payments,478101,Purchase of Care,02/08/2023,4165561-I-23-9798541,"9,777.68",YS SERVICES LTD T/A EMBRACING CARE.
Adult and Health Services,Head of Adults,Third Party Payments,478101,Purchase of Care,02/08/2023,4165561-I-23-9798542,"11,296.08",YS SERVICES LTD T/A EMBRACING CARE.
Adult and Health Services,Head of Adults,Third Party Payments,478101,Purchase of Care,02/08/2023,4165561-I-23-9798543,"5,883.36",YS SERVICES LTD T/A EMBRACING CARE.
Adult and Health Services,Head of Adults,Third Party Payments,478101,Purchase of Care,02/08/2023,4165561-I-23-9798544,"10,871.36",YS SERVICES LTD T/A EMBRACING CARE.
Adult and Health Services,Head of Adults,Third Party Payments,478101,Purchase of Care,02/08/2023,4165561-I-23-9798545,"11,260.80",YS SERVICES LTD T/A EMBRACING CARE.
Adult and Health Services,Head of Adults,Third Party Payments,478101,Purchase of Care,02/08/2023,4165561-I-23-9798546,"8,498.29",YS SERVICES LTD T/A EMBRACING CARE.
Adult and Health Services,Head of Adults,Third Party Payments,478101,Purchase of Care,02/08/2023,4165561-I-23-9798583,"11,543.00",YS SERVICES LTD T/A EMBRACING CARE.
Adult and Health Services,Head of Adults,Third Party Payments,478101,Purchase of Care,02/08/2023,4165561-I-23-9798630,"14,681.60",YS SERVICES LTD T/A EMBRACING CARE.
Adult and Health Services,Head of Adults,Third Party Payments,478101,Purchase of Care,02/08/2023,4165561-I-23-9798631,"13,160.80",YS SERVICES LTD T/A EMBRACING CARE.
Adult and Health Services,Head of Adults,Third Party Payments,478101,Purchase of Care,02/08/2023,4165561-I-23-9798632,"11,815.02",YS SERVICES LTD T/A EMBRACING CARE.
Adult and Health Services,Head of Adults,Third Party Payments,478101,Purchase of Care,02/08/2023,4165561-I-23-9798633,"11,648.16",YS SERVICES LTD T/A EMBRACING CARE.
Adult and Health Services,Head of Adults,Third Party Payments,478101,Purchase of Care,02/08/2023,4165561-I-23-9798634,"11,940.48",YS SERVICES LTD T/A EMBRACING CARE.
Adult and Health Services,Head of Adults,Third Party Payments,478101,Purchase of Care,02/08/2023,4165561-I-23-9798635,"8,759.94",YS SERVICES LTD T/A EMBRACING CARE.
Adult and Health Services,Head of Adults,Third Party Payments,478101,Purchase of Care,02/08/2023,4165561-I-23-9798670,"11,365.28",YS SERVICES LTD T/A EMBRACING CARE.
Adult and Health Services,Head of Adults,Third Party Payments,478101,Purchase of Care,02/08/2023,4165561-I-23-9798671,"2,945.88",YS SERVICES LTD T/A EMBRACING CARE.
Adult and Health Services,Head of Adults,Third Party Payments,478101,Purchase of Care,02/08/2023,4165561-I-23-9798672,"7,747.80",YS SERVICES LTD T/A EMBRACING CARE.
Adult and Health Services,Head of Adults,Third Party Payments,478101,Purchase of Care,02/08/2023,4165561-I-23-9798673,"11,471.04",YS SERVICES LTD T/A EMBRACING CARE.
Adult and Health Services,Head of Adults,Third Party Payments,478101,Purchase of Care,02/08/2023,4165561-I-23-9798674,"10,605.48",YS SERVICES LTD T/A EMBRACING CARE.
Adult and Health Services,Head of Adults,Third Party Payments,478101,Purchase of Care,02/08/2023,4165561-I-23-9798717,"13,518.72",YS SERVICES LTD T/A EMBRACING CARE.
Adult and Health Services,Head of Adults,Third Party Payments,478101,Purchase of Care,02/08/2023,4165561-I-23-9798718,"28,616.09",YS SERVICES LTD T/A EMBRACING CARE.
Adult and Health Services,Head of Adults,Third Party Payments,478101,Purchase of Care,02/08/2023,4165561-I-23-9798719,"12,564.72",YS SERVICES LTD T/A EMBRACING CARE.
Adult and Health Services,Head of Adults,Third Party Payments,478101,Purchase of Care,02/08/2023,4165561-I-23-9798749,"2,540.16",YS SERVICES LTD T/A EMBRACING CARE.
Adult and Health Services,Head of Adults,Third Party Payments,478101,Purchase of Care,02/08/2023,4165561-I-23-9798750,"10,696.32",YS SERVICES LTD T/A EMBRACING CARE.
Adult and Health Services,Head of Adults,Third Party Payments,478101,Purchase of Care,02/08/2023,4165561-I-23-9798751,"28,954.28",YS SERVICES LTD T/A EMBRACING CARE.
Adult and Health Services,Head of Adults,Third Party Payments,478101,Purchase of Care,02/08/2023,4165561-I-23-9798752,"9,390.24",YS SERVICES LTD T/A EMBRACING CARE.
Adult and Health Services,Head of Adults,Third Party Payments,478101,Purchase of Care,02/08/2023,4165561-I-23-9798753,"9,940.28",YS SERVICES LTD T/A EMBRACING CARE.
Adult and Health Services,Head of Adults,Third Party Payments,478101,Purchase of Care,02/08/2023,4165561-I-23-9798794,"9,072.72",YS SERVICES LTD T/A EMBRACING CARE.
Adult and Health Services,Head of Adults,Third Party Payments,478101,Purchase of Care,02/08/2023,4165561-I-23-9798795,"12,036.96",YS SERVICES LTD T/A EMBRACING CARE.
Children and Young Peoples Services,Head of Childrens Social Care,Third Party Payments,425020,Rendered by Voluntary Organisations,02/08/2023,4165562-PIG_169326,"1,445.00",ZOE PLACE TRUST.
Dedicated Schools Grant BG0015,DSG Schools Block,Supplies and Services,384199,Miscellaneous Expenses,02/08/2023,4165570-INV-22152,"2,105.00",AE SPORTS COACHING LTD.
Neighbourhoods and Climate Change,Community Protection,Supplies and Services,338027,Services,02/08/2023,4165571-28532392,962.00,AECOM LTD.
Neighbourhoods and Climate Change,Highways,Supplies and Services,304221,Equipment and Materials,02/08/2023,4165572-34806411,"2,156.20",AGGREGATE INDUSTRIES UK LTD.
Chief Executives Office,Communications Management,Supplies and Services,336005,Advertising E336,02/08/2023,4165574-81596,520.00,ALLWAG PROMOTIONS LTD.
Regeneration Economy and Growth,Transport and Contracted Services,Third Party Payments,460151,Contract Payments,02/08/2023,4165581-SC2302074,"3,040.22",ATG ACCESS LTD.
Children and Young Peoples Services,Head of Education and Skills,Central Support and Other Recharges,615208,Support Services,02/08/2023,4165588-RES-07-2023-393,866.89,BISHOP HOGARTH CATHOLIC EDUCATION TRUST.
Regeneration Economy and Growth,Corporate Property and Land,Fees,901002,Consultants fees 901002,02/08/2023,4165591-SIN044790,"160,300.69",BLOOM PROCUREMENT SERVICES LTD (FORMERLY NEPRO LTD).
Neighbourhoods and Climate Change,Highways,Supplies and Services,338027,Services,02/08/2023,4165594-52729,"2,371.00",BRIDGEWAY CONSULTING LTD.
Children and Young Peoples Services,Head of Early Help Inclusion & Vulnerable Children.,Third Party Payments,440999,Other third party payments E440,02/08/2023,4165600-043712,"16,749.40",CACI LTD.
Regeneration Economy and Growth,Culture Sport and Tourism,Premises,120037,Energy Costs,02/08/2023,4165601-90072831,"1,275.20",CALOR GAS LTD.
Regeneration Economy and Growth,Culture Sport and Tourism,Supplies and Services,304259,Equipment and Materials,02/08/2023,4165602-435479,"2,389.40",CARRS BILLINGTON AGRICULTURE.
Regeneration Economy and Growth,Corporate Property and Land,Third Party Payments,430100,Rendered by Private Contractors,02/08/2023,4165604-11494,693.00,CATHEDRAL LOCK & SAFE SERVICES LTD.
Regeneration Economy and Growth,Corporate Property and Land,Third Party Payments,430100,Rendered by Private Contractors,02/08/2023,4165606-781,"2,923.57",CEILINGS DIRECT LTD.
Regeneration Economy and Growth,Corporate Property and Land,Premises,145052,Cleaning and Domestic Supplies,02/08/2023,4165613-CC144215,720.00,CITY CLEAN NORTHERN LTD.
Resources BK0010,Transactional & Customer Services,Supplies and Services,342051,Computers and Communications,02/08/2023,4165614-C/RB278775,"8,500.00",CIVICA UK LTD.
Children and Young Peoples Services,Head of Early Help Inclusion & Vulnerable Children.,Supplies and Services,304259,Equipment and Materials,02/08/2023,4165618-IN535080,930.00,CONNEVANS LTD.
Regeneration Economy and Growth,Business Durham,Premises,120021,Energy Costs,02/08/2023,4165622-17690566,"1,206.52",CORONA ENERGY RETAIL 2 LTD.
Regeneration Economy and Growth,Planning & Housing,Supplies and Services,308011,Furniture,02/08/2023,4165625-REG0090,"1,634.00",COUNTY DURHAM FURNITURE HELP SCHEME (CDFHS).
Regeneration Economy and Growth,Corporate Property and Land,Supplies and Services,384199,Miscellaneous Expenses,02/08/2023,4165632-64024850,"4,735.00",DESCO (DESIGN & CONSULTANCY) LTD.
Neighbourhoods and Climate Change,Community Protection,Supplies and Services,338099,Services,02/08/2023,4165639-HIREJUNE23,"1,365.00",DURHAM ST NICHOLAS PCC.
Regeneration Economy and Growth,Corporate Property and Land,Supplies and Services,304221,Equipment and Materials,02/08/2023,4165645-059-321771,890.50,EDMUNDSON ELECTRICAL LTD.
Regeneration Economy and Growth,Corporate Property and Land,Supplies and Services,304221,Equipment and Materials,02/08/2023,4165645-059-321789,"1,068.40",EDMUNDSON ELECTRICAL LTD.
Neighbourhoods and Climate Change,Environmental Services,Supplies and Services,338066,Services,02/08/2023,4165651-INV-24-0264,"4,000.00",EXPERIENCE COMMUNITY CIC.
Children and Young Peoples Services,Head of Childrens Social Care,Supplies and Services,338044,Services,02/08/2023,4165655-103512,598.20,FORENSIC TESTING SERVICE LTD.
Children and Young Peoples Services,Head of Childrens Social Care,Supplies and Services,338044,Services,02/08/2023,4165655-103516,"1,156.20",FORENSIC TESTING SERVICE LTD.
Regeneration Economy and Growth,Corporate Property and Land,Employees,080025,Agency Staff,02/08/2023,4165660-2473240,"163,056.05",GEOMETRIC RESULTS INTERNATIONAL.
Adult and Health Services,Head of Adults,Supplies and Services,338089,Services,02/08/2023,4165667-INV-047571,"4,000.00",GREY MATTER LTD.
Regeneration Economy and Growth,Culture Sport and Tourism,Supplies and Services,304259,Equipment and Materials,02/08/2023,4165668-INV-5577,579.83,GYM TECH NORTH EAST.
Children and Young Peoples Services,Head of Education and Skills,Supplies and Services,384199,Miscellaneous Expenses,02/08/2023,4165670-DURDW100723,"1,056.00",HANDCRAFTED PROJECTS.
Neighbourhoods and Climate Change,Highways,Third Party Payments,430100,Rendered by Private Contractors,02/08/2023,4165675-3539,"8,214.00",HIGHWAY CONSTRUCTION SERVICES LTD.
Neighbourhoods and Climate Change,Highways,Third Party Payments,430100,Rendered by Private Contractors,02/08/2023,4165675-3540,"11,520.00",HIGHWAY CONSTRUCTION SERVICES LTD.
Regeneration Economy and Growth,Culture Sport and Tourism,Supplies and Services,338047,Services,02/08/2023,4165676-004926,700.00,HILARITY BITES COMEDY CLUB.
Regeneration Economy and Growth,Business Durham,Premises,106080,Centrally Controlled Rep and Maint,02/08/2023,4165678-7081032902,"5,840.53",HONEYWELL NOVAR SYSTEMS LTD.
Regeneration Economy and Growth,Corporate Property and Land,Premises,106080,Centrally Controlled Rep and Maint,02/08/2023,4165678-7081032903,"2,396.82",HONEYWELL NOVAR SYSTEMS LTD.
Children and Young Peoples Services,Head of Early Help Inclusion & Vulnerable Children.,Premises,106080,Centrally Controlled Rep and Maint,02/08/2023,4165678-7081035228,"6,355.18",HONEYWELL NOVAR SYSTEMS LTD.
Neighbourhoods and Climate Change,Environmental Services,Supplies and Services,384199,Miscellaneous Expenses,02/08/2023,4165682-1099/DUCC3949,"5,070.00",IMAGEMAKERS DESIGN & CONSULTANCY LTD.
Resources BK0010,HR & Employee Services,Supplies and Services,384199,Miscellaneous Expenses,02/08/2023,4165683-78415975,"2,750.00",INDEED IRELAND OPERATIONS LTD.
Resources BK0010,Digital Services,Stock A926,926900,Stock in hand-Inventory system,02/08/2023,4165684-2100652964,"8,800.32",INSIGHT DIRECT (UK) LTD.
Neighbourhoods and Climate Change,Highways,Construction work A908,908105,Construction work,02/08/2023,4165685-INS2646,"1,950.00",INSPECTORATE LTD T/A ROCH NDT SERVICES.
Neighbourhoods and Climate Change,Highways,Third Party Payments,430100,Rendered by Private Contractors,02/08/2023,4165691-28063,"1,148.06",JACK COUPE & SONS LTD T/A COUPE LINE.
Regeneration Economy and Growth,Corporate Property and Land,Supplies and Services,304221,Equipment and Materials,02/08/2023,4165700-0213/00954379,842.65,JT DOVE LTD.
Regeneration Economy and Growth,Corporate Property and Land,Supplies and Services,304221,Equipment and Materials,02/08/2023,4165700-0213/00954380,"5,154.17",JT DOVE LTD.
Regeneration Economy and Growth,Corporate Property and Land,Supplies and Services,304221,Equipment and Materials,02/08/2023,4165700-0213/00954381,"8,189.12",JT DOVE LTD.
Children and Young Peoples Services,Head of Childrens Social Care,Third Party Payments,486020,Service level agreements E486,02/08/2023,4165711-2463,653.00,LEADER RECRUITMENT GROUP LTD T/A LEADER EDUCATION LTD.
Regeneration Economy and Growth,Corporate Property and Land,Supplies and Services,304221,Equipment and Materials,02/08/2023,4165713-105268,"1,220.00",LEISURETEQ LTD.
Neighbourhoods and Climate Change,Highways,Supplies and Services,304221,Equipment and Materials,02/08/2023,4165715-CINV091041,705.28,LIMELIGHT SIGNS LTD.
Neighbourhoods and Climate Change,Highways,Supplies and Services,304221,Equipment and Materials,02/08/2023,4165724-Z001647172,"4,298.50",MARSHALLS MONO LTD.
Adult and Health Services,Head of Adults,Third Party Payments,478151,Purchase of Care,02/08/2023,4165729-47,"2,000.00",MOORLANDS HOLDINGS (NE) LTD.
Regeneration Economy and Growth,Culture Sport and Tourism,Supplies and Services,384199,Miscellaneous Expenses,02/08/2023,4165731-030,"5,000.00",MR WILSON`S SECOND LINERS LTD.
Adult and Health Services,Commissioning inc Supporting People,Third Party Payments,440999,Other third party payments E440,02/08/2023,4165738-60078,"3,428.01",NATIONAL YOUTH ADVOCACY SERVICE.
Regeneration Economy and Growth,Corporate Property and Land,Third Party Payments,430100,Rendered by Private Contractors,02/08/2023,4165752-11979-85,880.35,OPUS BUILDING SERVICES LTD.
Regeneration Economy and Growth,Corporate Property and Land,Third Party Payments,430100,Rendered by Private Contractors,02/08/2023,4165752-11979-86,"3,324.36",OPUS BUILDING SERVICES LTD.
Regeneration Economy and Growth,Corporate Property and Land,Supplies and Services,304221,Equipment and Materials,02/08/2023,4165752-11979-87,"1,346.18",OPUS BUILDING SERVICES LTD.
Regeneration Economy and Growth,Corporate Property and Land,Third Party Payments,430100,Rendered by Private Contractors,02/08/2023,4165752-11979-88,"1,139.62",OPUS BUILDING SERVICES LTD.
Regeneration Economy and Growth,Corporate Property and Land,Third Party Payments,430100,Rendered by Private Contractors,02/08/2023,4165752-11979-90,"1,108.12",OPUS BUILDING SERVICES LTD.
Regeneration Economy and Growth,Corporate Property and Land,Third Party Payments,430100,Rendered by Private Contractors,02/08/2023,4165752-11979-91,"1,108.12",OPUS BUILDING SERVICES LTD.
Regeneration Economy and Growth,Corporate Property and Land,Third Party Payments,430100,Rendered by Private Contractors,02/08/2023,4165752-11979-92,"1,158.07",OPUS BUILDING SERVICES LTD.
Regeneration Economy and Growth,Corporate Property and Land,Third Party Payments,430100,Rendered by Private Contractors,02/08/2023,4165752-11979-93,934.20,OPUS BUILDING SERVICES LTD.
Regeneration Economy and Growth,Corporate Property and Land,Third Party Payments,430100,Rendered by Private Contractors,02/08/2023,4165752-11979-94,"1,104.52",OPUS BUILDING SERVICES LTD.
Neighbourhoods and Climate Change,Highways,Stock A926,926900,Stock in hand-Inventory system,02/08/2023,4165757-XL304430,"1,818.40",PARK ELECTRICAL DISTRIBUTORS LTD.
Adult and Health Services,Public Health CC0450,Third Party Payments,460803,Contract Payments,02/08/2023,4165758-58860763B,"18,375.00",PARK RETAIL LTD T/A LOVE2SHOP.
Adult and Health Services,Public Health CC0450,Third Party Payments,460803,Contract Payments,02/08/2023,4165758-58860763C,"18,375.00",PARK RETAIL LTD T/A LOVE2SHOP.
Resources BK0010,Digital Services,Supplies and Services,342033,Computers and Communications,02/08/2023,4165763-OP/I974873,"1,015.93",PHOENIX SOFTWARE LTD.
Chief Executives Office,Communications Management,Supplies and Services,332029,Printing Stationery and Gen Off Exps,02/08/2023,4165768-719168,591.00,POTTS PRINTERS LTD.
Children and Young Peoples Services,Head of Education and Skills,Third Party Payments,410037,Rendered by Other Local Authorities,02/08/2023,4165772-51728634,"1,052.10",PROTOCOL EDUCATION LTD.*
Children and Young Peoples Services,Head of Education and Skills,Third Party Payments,410037,Rendered by Other Local Authorities,02/08/2023,4165772-51765783,"1,052.10",PROTOCOL EDUCATION LTD.*
Children and Young Peoples Services,Head of Education and Skills,Third Party Payments,410037,Rendered by Other Local Authorities,02/08/2023,4165772-51775375,"1,052.10",PROTOCOL EDUCATION LTD.*
Children and Young Peoples Services,Head of Education and Skills,Third Party Payments,410037,Rendered by Other Local Authorities,02/08/2023,4165772-51780359,"1,134.15",PROTOCOL EDUCATION LTD.*
Children and Young Peoples Services,Head of Education and Skills,Third Party Payments,410037,Rendered by Other Local Authorities,02/08/2023,4165772-51782688,680.49,PROTOCOL EDUCATION LTD.*
Children and Young Peoples Services,Head of Education and Skills,Third Party Payments,410037,Rendered by Other Local Authorities,02/08/2023,4165772-51784953,907.32,PROTOCOL EDUCATION LTD.*
Children and Young Peoples Services,Head of Education and Skills,Third Party Payments,410037,Rendered by Other Local Authorities,02/08/2023,4165772-51787287,"1,134.15",PROTOCOL EDUCATION LTD.*
Children and Young Peoples Services,Head of Education and Skills,Third Party Payments,410037,Rendered by Other Local Authorities,02/08/2023,4165772-51789708,"1,134.15",PROTOCOL EDUCATION LTD.*
Children and Young Peoples Services,Head of Education and Skills,Third Party Payments,410037,Rendered by Other Local Authorities,02/08/2023,4165772-51792274,"1,134.15",PROTOCOL EDUCATION LTD.*
Children and Young Peoples Services,Head of Education and Skills,Third Party Payments,410037,Rendered by Other Local Authorities,02/08/2023,4165772-51794569,"1,134.15",PROTOCOL EDUCATION LTD.*
Children and Young Peoples Services,Head of Education and Skills,Third Party Payments,410037,Rendered by Other Local Authorities,02/08/2023,4165772-51796972,"1,134.15",PROTOCOL EDUCATION LTD.*
Children and Young Peoples Services,Head of Education and Skills,Third Party Payments,410037,Rendered by Other Local Authorities,02/08/2023,4165772-51799272,"1,134.15",PROTOCOL EDUCATION LTD.*
Regeneration Economy and Growth,Corporate Property and Land,Supplies and Services,304221,Equipment and Materials,02/08/2023,4165803-1033113,"15,519.23",T CROSSLING & CO LTD.
Neighbourhoods and Climate Change,Highways,Supplies and Services,304221,Equipment and Materials,02/08/2023,4165805-9047192746,525.04,TARMAC TRADING LTD.
Children and Young Peoples Services,Head of Early Help Inclusion & Vulnerable Children.,Employees,080025,Agency Staff,02/08/2023,4165806-0000521405,"1,153.60",TEACHERACTIVE LTD.
Adult and Health Services,Public Health CC0450,Supplies and Services,338094,Services,02/08/2023,4165809-SI-0000331,520.00,THE GREENHOUSE COMPANY (GROUNDWORK) LTD.
Neighbourhoods and Climate Change,Highways,Stock A926,926900,Stock in hand-Inventory system,02/08/2023,4165811-NSIN00096031,"3,466.60",THOMAS OWEN & SONS (NEWCASTLE) LTD.
Resources BK0010,Legal & Democratic Services,Supplies and Services,338042,Services,02/08/2023,4165816-305732/INVRSH154,720.00,TRINITY CHAMBERS.
Neighbourhoods and Climate Change,Highways,Supplies and Services,304221,Equipment and Materials,02/08/2023,4165817-248915,770.39,TYNEDALE ROADSTONE LTD.
Neighbourhoods and Climate Change,Highways,Supplies and Services,304221,Equipment and Materials,02/08/2023,4165817-248916,"2,253.45",TYNEDALE ROADSTONE LTD.
Neighbourhoods and Climate Change,Environmental Services,Premises,120037,Energy Costs,02/08/2023,4165826-1192622,656.28,YOUR NRG LTD.
Neighbourhoods and Climate Change,Highways,Stock A926,926900,Stock in hand-Inventory system,02/08/2023,4165826-1192722,605.79,YOUR NRG LTD.
Regeneration Economy and Growth,Culture Sport and Tourism,Supplies and Services,384199,Miscellaneous Expenses,03/08/2023,4165892-INV-20230705,"1,200.00",REDACTED - PAYMENT TO INDIVIDUAL
Regeneration Economy and Growth,Culture Sport and Tourism,Supplies and Services,384199,Miscellaneous Expenses,03/08/2023,4165998-89,847.50,REDACTED - PAYMENT TO INDIVIDUAL
Regeneration Economy and Growth,Culture Sport and Tourism,Supplies and Services,384199,Miscellaneous Expenses,03/08/2023,4166096-0000022,"1,000.00",REDACTED - PAYMENT TO INDIVIDUAL
Children and Young Peoples Services,Head of Education and Skills,Third Party Payments,430100,Rendered by Private Contractors,03/08/2023,4165999-MOBIE0072023,"1,800.00",MINISTRY OF BUILDING INNOVATION T/A MOBIE.
Children and Young Peoples Services,Head of Education and Skills,Transport,230009,Contract Hire,03/08/2023,4165844-11-7384,"1,326.99",REDACTED - PAYMENT TO INDIVIDUAL
Adult and Health Services,Head of Adults,Transport,230005,Contract Hire,03/08/2023,4165844-11-DW138,672.00,REDACTED - PAYMENT TO INDIVIDUAL
Dedicated Schools Grant BG0015,DSG High Needs Block,Transport,230011,Contract Hire,03/08/2023,4165844-11-JUL23,"1,010.32",REDACTED - PAYMENT TO INDIVIDUAL
Children and Young Peoples Services,Head of Education and Skills,Transport,230007,Contract Hire,03/08/2023,4165875-47775,"2,399.70",REDACTED - PAYMENT TO INDIVIDUAL
Children and Young Peoples Services,Head of Education and Skills,Transport,230007,Contract Hire,03/08/2023,4165875-47776,"2,712.75",REDACTED - PAYMENT TO INDIVIDUAL
Children and Young Peoples Services,Head of Education and Skills,Transport,230003,Contract Hire,03/08/2023,4165875-47777,"2,511.15",REDACTED - PAYMENT TO INDIVIDUAL
Children and Young Peoples Services,Head of Education and Skills,Transport,230003,Contract Hire,03/08/2023,4165875-47778,"2,535.00",REDACTED - PAYMENT TO INDIVIDUAL
Children and Young Peoples Services,Head of Education and Skills,Transport,230007,Contract Hire,03/08/2023,4165875-47779,"4,374.45",REDACTED - PAYMENT TO INDIVIDUAL
Children and Young Peoples Services,Head of Education and Skills,Transport,230003,Contract Hire,03/08/2023,4165875-47780,"2,639.55",REDACTED - PAYMENT TO INDIVIDUAL
Children and Young Peoples Services,Head of Education and Skills,Transport,230010,Contract Hire,03/08/2023,4165939-WOOD012,"3,046.99",REDACTED - PAYMENT TO INDIVIDUAL
Regeneration Economy and Growth,Culture Sport and Tourism,Supplies and Services,338047,Services,03/08/2023,4165953-1023,933.33,REDACTED - PAYMENT TO INDIVIDUAL
Regeneration Economy and Growth,Corporate Property and Land,Third Party Payments,430100,Rendered by Private Contractors,03/08/2023,4165966-100568,"14,945.29",REDACTED - PAYMENT TO INDIVIDUAL
Adult and Health Services,Head of Adults,Transport,230005,Contract Hire,03/08/2023,4165967-305,"1,135.00",REDACTED - PAYMENT TO INDIVIDUAL
Children and Young Peoples Services,Head of Education and Skills,Transport,230007,Contract Hire,03/08/2023,4165967-306,715.40,REDACTED - PAYMENT TO INDIVIDUAL
Children and Young Peoples Services,Head of Education and Skills,Transport,230007,Contract Hire,03/08/2023,4165980-012-JUL23,960.00,REDACTED - PAYMENT TO INDIVIDUAL
Children and Young Peoples Services,Head of Education and Skills,Transport,230008,Contract Hire,03/08/2023,4165985-0120,"3,435.00",REDACTED - PAYMENT TO INDIVIDUAL
Children and Young Peoples Services,Head of Education and Skills,Transport,230008,Contract Hire,03/08/2023,4165985-0121,"2,064.82",REDACTED - PAYMENT TO INDIVIDUAL
Children and Young Peoples Services,Head of Education and Skills,Transport,230006,Contract Hire,03/08/2023,4165995-070723,809.60,REDACTED - PAYMENT TO INDIVIDUAL
Children and Young Peoples Services,Head of Education and Skills,Transport,230006,Contract Hire,03/08/2023,4165995-200723,"1,348.00",REDACTED - PAYMENT TO INDIVIDUAL
Children and Young Peoples Services,Head of Education and Skills,Transport,230008,Contract Hire,03/08/2023,4165997-INV283,"1,650.00",REDACTED - PAYMENT TO INDIVIDUAL
Children and Young Peoples Services,Head of Education and Skills,Transport,230034,Contract Hire,03/08/2023,4166006-4538-08,"1,680.00",REDACTED - PAYMENT TO INDIVIDUAL
Children and Young Peoples Services,Head of Education and Skills,Transport,230010,Contract Hire,03/08/2023,4166006-BL003-11,"1,083.64",REDACTED - PAYMENT TO INDIVIDUAL
Children and Young Peoples Services,Head of Education and Skills,Transport,230010,Contract Hire,03/08/2023,4166006-BL043-11,"1,398.08",REDACTED - PAYMENT TO INDIVIDUAL
Adult and Health Services,Head of Adults,Transport,230005,Contract Hire,03/08/2023,4166006-DM226-15,974.39,REDACTED - PAYMENT TO INDIVIDUAL
Children and Young Peoples Services,Head of Education and Skills,Transport,230007,Contract Hire,03/08/2023,4166007-ESH0723,"1,119.90",REDACTED - PAYMENT TO INDIVIDUAL
Children and Young Peoples Services,Head of Education and Skills,Transport,230006,Contract Hire,03/08/2023,4166007-HOUGH0723,699.22,REDACTED - PAYMENT TO INDIVIDUAL
Children and Young Peoples Services,Head of Education and Skills,Transport,230035,Contract Hire,03/08/2023,4166008-215557,"1,528.02",REDACTED - PAYMENT TO INDIVIDUAL
Children and Young Peoples Services,Head of Education and Skills,Transport,230007,Contract Hire,03/08/2023,4166008-215558,"1,756.80",REDACTED - PAYMENT TO INDIVIDUAL
Children and Young Peoples Services,Head of Education and Skills,Transport,230009,Contract Hire,03/08/2023,4166008-215559,783.00,REDACTED - PAYMENT TO INDIVIDUAL
Children and Young Peoples Services,Head of Education and Skills,Transport,230008,Contract Hire,03/08/2023,4166008-215561,"2,044.00",REDACTED - PAYMENT TO INDIVIDUAL
Children and Young Peoples Services,Head of Education and Skills,Transport,230008,Contract Hire,03/08/2023,4166008-215562,"2,310.00",REDACTED - PAYMENT TO INDIVIDUAL
Regeneration Economy and Growth,Culture Sport and Tourism,Supplies and Services,324117,Provisions E324,03/08/2023,4166009-34BA,574.50,REDACTED - PAYMENT TO INDIVIDUAL
Children and Young Peoples Services,Head of Education and Skills,Transport,230007,Contract Hire,03/08/2023,4166039-1154JUL23,819.75,REDACTED - PAYMENT TO INDIVIDUAL
Children and Young Peoples Services,Head of Education and Skills,Transport,230010,Contract Hire,03/08/2023,4166039-B047JUL23,"2,525.10",REDACTED - PAYMENT TO INDIVIDUAL
Children and Young Peoples Services,Head of Education and Skills,Transport,230006,Contract Hire,03/08/2023,4166039-F254JUL23,"1,161.00",REDACTED - PAYMENT TO INDIVIDUAL
Children and Young Peoples Services,Head of Education and Skills,Transport,230007,Contract Hire,03/08/2023,4166039-L002JUL23,832.00,REDACTED - PAYMENT TO INDIVIDUAL
Children and Young Peoples Services,Head of Education and Skills,Transport,230034,Contract Hire,03/08/2023,4166056-002-1888,"1,722.84",REDACTED - PAYMENT TO INDIVIDUAL
Children and Young Peoples Services,Head of Education and Skills,Transport,230007,Contract Hire,03/08/2023,4166081-5290JUL23,"1,047.90",REDACTED - PAYMENT TO INDIVIDUAL
Children and Young Peoples Services,Head of Education and Skills,Transport,230006,Contract Hire,03/08/2023,4166082-F121JUL23,"1,174.10",REDACTED - PAYMENT TO INDIVIDUAL
Adult and Health Services,Head of Adults,Third Party Payments,472101,Purchase of Care,03/08/2023,4165930-2084774H,983.55,GUINNESS CARE.
Neighbourhoods and Climate Change,Environmental Services,Third Party Payments,430100,Rendered by Private Contractors,03/08/2023,4165840-3371,"1,375.00",AJ GUTHRIE & SON.
Regeneration Economy and Growth,Culture Sport and Tourism,Construction work A908,908105,Construction work,03/08/2023,4165842-178720,"3,487.00",ALBANY OFFICE EQUIPMENT (WHOLESALE) LTD.
Neighbourhoods and Climate Change,Highways,Supplies and Services,304221,Equipment and Materials,03/08/2023,4165843-6107,"1,993.00",ALL TRAFFIC PRODUCTS LTD.
Regeneration Economy and Growth,Culture Sport and Tourism,Supplies and Services,312013,Newspapers books and periodicals E312,03/08/2023,4165848-6910736,669.17,ASKEWS & HOLTS LIBRARY SERVICES LTD.
Regeneration Economy and Growth,Culture Sport and Tourism,Supplies and Services,312013,Newspapers books and periodicals E312,03/08/2023,4165848-6911780,632.05,ASKEWS & HOLTS LIBRARY SERVICES LTD.
Adult and Health Services,Head of Adults,Third Party Payments,478151,Purchase of Care,03/08/2023,4165849-D720004552,"4,732.28",AUTISM CARE UK (4) LTD.
Adult and Health Services,Head of Adults,Third Party Payments,478151,Purchase of Care,03/08/2023,4165849-D720004579,"4,732.28",AUTISM CARE UK (4) LTD.
Regeneration Economy and Growth,Corporate Property and Land,Premises,145009,Cleaning and Domestic Supplies,03/08/2023,4165855-143C33413,"1,016.86",BIFFA WASTE SERVICES LTD.
Children and Young Peoples Services,Head of Education and Skills,Transport,230010,Contract Hire,03/08/2023,4165856-INV-745,"2,375.27",BILL SCOTT TAXIS LTD.
Children and Young Peoples Services,Head of Education and Skills,Transport,230007,Contract Hire,03/08/2023,4165856-INV-746,945.88,BILL SCOTT TAXIS LTD.
Children and Young Peoples Services,Head of Education and Skills,Transport,230034,Contract Hire,03/08/2023,4165859-INV02917,"1,613.00",BLUELINE SOUTH INCORPORATING NAVIGATION TAXIS T/A BLUELINE TAXIS.
Children and Young Peoples Services,Head of Education and Skills,Transport,230003,Contract Hire,03/08/2023,4165860-3425JUL23,"2,576.23",BOBS TAXIS.
Children and Young Peoples Services,Head of Education and Skills,Transport,230007,Contract Hire,03/08/2023,4165860-4517JUL23,"1,235.80",BOBS TAXIS.
Children and Young Peoples Services,Head of Education and Skills,Transport,230007,Contract Hire,03/08/2023,4165862-002-JUL23,"1,120.00",BOWBURN TAXIS.
Children and Young Peoples Services,Head of Education and Skills,Transport,230008,Contract Hire,03/08/2023,4165864-BZ00469,851.06,BREZ`S TAXIS.
Children and Young Peoples Services,Head of Education and Skills,Transport,230008,Contract Hire,03/08/2023,4165864-BZ00470,"1,519.98",BREZ`S TAXIS.
Neighbourhoods and Climate Change,Highways,Supplies and Services,304358,Equipment and Materials,03/08/2023,4165872-1928,"4,597.80",CG SIMPSON & SON.
Children and Young Peoples Services,Head of Education and Skills,Transport,230035,Contract Hire,03/08/2023,4165873-087,"1,400.00",CHANNER`S CABS.
Regeneration Economy and Growth,Business Durham,Premises,120021,Energy Costs,03/08/2023,4165885-17688026,"1,272.58",CORONA ENERGY RETAIL 2 LTD.
Regeneration Economy and Growth,Business Durham,Premises,120021,Energy Costs,03/08/2023,4165885-17688591,789.09,CORONA ENERGY RETAIL 2 LTD.
Children and Young Peoples Services,Head of Education and Skills,Transport,230007,Contract Hire,03/08/2023,4165887-116297,"3,396.48",CROFT BUSINESS SERVICES LTD T/A CROFT TRAVEL.
Children and Young Peoples Services,Head of Education and Skills,Transport,230006,Contract Hire,03/08/2023,4165887-116298,"2,824.80",CROFT BUSINESS SERVICES LTD T/A CROFT TRAVEL.
Children and Young Peoples Services,Head of Education and Skills,Transport,230008,Contract Hire,03/08/2023,4165887-116300,"2,514.96",CROFT BUSINESS SERVICES LTD T/A CROFT TRAVEL.
Adult and Health Services,Head of Adults,Transport,230005,Contract Hire,03/08/2023,4165887-116302,985.92,CROFT BUSINESS SERVICES LTD T/A CROFT TRAVEL.
Children and Young Peoples Services,Head of Education and Skills,Transport,230006,Contract Hire,03/08/2023,4165887-116303,707.80,CROFT BUSINESS SERVICES LTD T/A CROFT TRAVEL.
Children and Young Peoples Services,Head of Education and Skills,Transport,230008,Contract Hire,03/08/2023,4165887-116305,"2,708.55",CROFT BUSINESS SERVICES LTD T/A CROFT TRAVEL.
Children and Young Peoples Services,Head of Education and Skills,Transport,230008,Contract Hire,03/08/2023,4165887-116306,"2,489.61",CROFT BUSINESS SERVICES LTD T/A CROFT TRAVEL.
Children and Young Peoples Services,Head of Education and Skills,Transport,230008,Contract Hire,03/08/2023,4165887-116308,"2,790.38",CROFT BUSINESS SERVICES LTD T/A CROFT TRAVEL.
Children and Young Peoples Services,Head of Education and Skills,Transport,230008,Contract Hire,03/08/2023,4165887-116311,"1,527.12",CROFT BUSINESS SERVICES LTD T/A CROFT TRAVEL.
Children and Young Peoples Services,Head of Education and Skills,Transport,230010,Contract Hire,03/08/2023,4165887-116312,"1,036.62",CROFT BUSINESS SERVICES LTD T/A CROFT TRAVEL.
Neighbourhoods and Climate Change,Environmental Services,Third Party Payments,430115,Rendered by Private Contractors,03/08/2023,4165890-104962,974.56,D&F ASSOCIATES LTD.
Neighbourhoods and Climate Change,Environmental Services,Transport,230005,Contract Hire,03/08/2023,4165905-13001736968,503.44,ENTERPRISE FLEX-E-RENT T/A BURNT TREE GROUP LTD.
Neighbourhoods and Climate Change,Environmental Services,Transport,230005,Contract Hire,03/08/2023,4165905-8201426,554.40,ENTERPRISE FLEX-E-RENT T/A BURNT TREE GROUP LTD.
Neighbourhoods and Climate Change,Environmental Services,Transport,230005,Contract Hire,03/08/2023,4165905-8201432,554.40,ENTERPRISE FLEX-E-RENT T/A BURNT TREE GROUP LTD.
Neighbourhoods and Climate Change,Highways,Premises,120009,Energy Costs,03/08/2023,4165906-KI-839CBF59-0009,"1,176.72",EON NEXT ENERGY LTD.*
Regeneration Economy and Growth,Business Durham,Supplies and Services,338027,Services,03/08/2023,4165909-24884,"15,320.00",EXCELPOINT LTD.
Regeneration Economy and Growth,Business Durham,Supplies and Services,338066,Services,03/08/2023,4165909-PJ/HC/250523,"24,000.00",EXCELPOINT LTD.
Neighbourhoods and Climate Change,Highways,Stock A926,926900,Stock in hand-Inventory system,03/08/2023,4165911-146765,"11,423.30",FABRIKAT (NOTTINGHAM) LTD.
Neighbourhoods and Climate Change,Environmental Services,Third Party Payments,430120,Rendered by Private Contractors,03/08/2023,4165913-CTIN06725243,786.00,FINNING (UK) LTD.
Neighbourhoods and Climate Change,Highways,Supplies and Services,304357,Equipment and Materials,03/08/2023,4165919-DCCQUERY110922,668.50,GAP GROUP LTD.
Children and Young Peoples Services,Head of Education and Skills,Transport,230007,Contract Hire,03/08/2023,4165920-24893,"4,221.75",GARNETTS LTD (COACHES).
Children and Young Peoples Services,Head of Education and Skills,Transport,230007,Contract Hire,03/08/2023,4165920-24894,"3,877.16",GARNETTS LTD (COACHES).
Children and Young Peoples Services,Head of Education and Skills,Transport,230007,Contract Hire,03/08/2023,4165920-24895-3007,"2,209.76",GARNETTS LTD (COACHES).
Children and Young Peoples Services,Head of Education and Skills,Transport,230007,Contract Hire,03/08/2023,4165920-24895-3315,"2,075.36",GARNETTS LTD (COACHES).
Children and Young Peoples Services,Head of Education and Skills,Transport,230007,Contract Hire,03/08/2023,4165920-24895-3435,"2,807.00",GARNETTS LTD (COACHES).
Children and Young Peoples Services,Head of Education and Skills,Transport,230007,Contract Hire,03/08/2023,4165920-24896-4034,"2,075.36",GARNETTS LTD (COACHES).
Children and Young Peoples Services,Head of Education and Skills,Transport,230007,Contract Hire,03/08/2023,4165920-24896-4035,"2,192.96",GARNETTS LTD (COACHES).
Children and Young Peoples Services,Head of Education and Skills,Transport,230007,Contract Hire,03/08/2023,4165920-24896-4037,"4,332.86",GARNETTS LTD (COACHES).
Children and Young Peoples Services,Head of Education and Skills,Transport,230007,Contract Hire,03/08/2023,4165920-24896-4038,"2,463.58",GARNETTS LTD (COACHES).
Children and Young Peoples Services,Head of Education and Skills,Transport,230003,Contract Hire,03/08/2023,4165920-24897-3020,"2,278.78",GARNETTS LTD (COACHES).
Children and Young Peoples Services,Head of Education and Skills,Transport,230003,Contract Hire,03/08/2023,4165920-24897-3024,"1,883.14",GARNETTS LTD (COACHES).
Children and Young Peoples Services,Head of Education and Skills,Transport,230007,Contract Hire,03/08/2023,4165920-24897-3027,"2,009.70",GARNETTS LTD (COACHES).
Children and Young Peoples Services,Head of Education and Skills,Transport,230003,Contract Hire,03/08/2023,4165920-24897-3028,"2,199.54",GARNETTS LTD (COACHES).
Children and Young Peoples Services,Head of Education and Skills,Transport,230007,Contract Hire,03/08/2023,4165920-24897-3029,"2,262.96",GARNETTS LTD (COACHES).
Children and Young Peoples Services,Head of Education and Skills,Transport,230007,Contract Hire,03/08/2023,4165920-24897-3199,"2,152.08",GARNETTS LTD (COACHES).
Children and Young Peoples Services,Head of Education and Skills,Transport,230007,Contract Hire,03/08/2023,4165920-24898,"11,134.05",GARNETTS LTD (COACHES).
Children and Young Peoples Services,Head of Education and Skills,Transport,230003,Contract Hire,03/08/2023,4165920-24899-3301,"2,226.00",GARNETTS LTD (COACHES).
Children and Young Peoples Services,Head of Education and Skills,Transport,230003,Contract Hire,03/08/2023,4165920-24899-3302,"2,506.00",GARNETTS LTD (COACHES).
Children and Young Peoples Services,Head of Education and Skills,Transport,230003,Contract Hire,03/08/2023,4165920-24899-3303,"2,506.00",GARNETTS LTD (COACHES).
Children and Young Peoples Services,Head of Education and Skills,Transport,230003,Contract Hire,03/08/2023,4165920-24900-3003,"3,346.00",GARNETTS LTD (COACHES).
Children and Young Peoples Services,Head of Education and Skills,Transport,230003,Contract Hire,03/08/2023,4165920-24900-3004,"3,228.26",GARNETTS LTD (COACHES).
Children and Young Peoples Services,Head of Education and Skills,Transport,230003,Contract Hire,03/08/2023,4165920-24900-3005,"4,715.76",GARNETTS LTD (COACHES).
Children and Young Peoples Services,Head of Education and Skills,Transport,230003,Contract Hire,03/08/2023,4165920-24900-3008,"2,674.28",GARNETTS LTD (COACHES).
Children and Young Peoples Services,Head of Education and Skills,Transport,230007,Contract Hire,03/08/2023,4165920-24900-3203,"3,147.76",GARNETTS LTD (COACHES).
Children and Young Peoples Services,Head of Education and Skills,Transport,230003,Contract Hire,03/08/2023,4165920-24900-3223,"3,766.00",GARNETTS LTD (COACHES).
Children and Young Peoples Services,Head of Education and Skills,Transport,230003,Contract Hire,03/08/2023,4165920-24900-3262,"2,959.18",GARNETTS LTD (COACHES).
Children and Young Peoples Services,Head of Education and Skills,Transport,230003,Contract Hire,03/08/2023,4165920-24900-3333,"2,658.60",GARNETTS LTD (COACHES).
Children and Young Peoples Services,Head of Education and Skills,Transport,230008,Contract Hire,03/08/2023,4165920-24901,"2,725.95",GARNETTS LTD (COACHES).
Children and Young Peoples Services,Head of Education and Skills,Transport,230007,Contract Hire,03/08/2023,4165920-24902,"2,526.30",GARNETTS LTD (COACHES).
Children and Young Peoples Services,Head of Education and Skills,Transport,230008,Contract Hire,03/08/2023,4165920-24923,"3,548.05",GARNETTS LTD (COACHES).
Regeneration Economy and Growth,Culture Sport and Tourism,Supplies and Services,332029,Printing Stationery and Gen Off Exps,03/08/2023,4165924-INV-5554,"2,051.15",GLASSFIBRE FLAGPOLES LTD T/A HARRISON EDS.
Children and Young Peoples Services,Head of Childrens Social Care,Third Party Payments,425028,Rendered by Voluntary Organisations,03/08/2023,4165925-FF001,"2,210.00",GO THE DISTANCE (GTD) CIC.
Neighbourhoods and Climate Change,Highways,Supplies and Services,304221,Equipment and Materials,03/08/2023,4165934-IN116243,"4,401.00",HILL & SMITH LTD.
Children and Young Peoples Services,Head of Education and Skills,Transport,230007,Contract Hire,03/08/2023,4165935-23421-3042,"3,836.40",HODGSONS COACH OPERATORS LTD.
Children and Young Peoples Services,Head of Education and Skills,Transport,230007,Contract Hire,03/08/2023,4165935-23421-3044,"3,622.20",HODGSONS COACH OPERATORS LTD.
Children and Young Peoples Services,Head of Education and Skills,Transport,230007,Contract Hire,03/08/2023,4165935-23422-3047,"4,519.60",HODGSONS COACH OPERATORS LTD.
Children and Young Peoples Services,Head of Education and Skills,Transport,230003,Contract Hire,03/08/2023,4165935-23423,"5,345.00",HODGSONS COACH OPERATORS LTD.
Children and Young Peoples Services,Head of Education and Skills,Transport,230007,Contract Hire,03/08/2023,4165935-23424,"4,517.40",HODGSONS COACH OPERATORS LTD.
Children and Young Peoples Services,Head of Education and Skills,Transport,230007,Contract Hire,03/08/2023,4165935-23425,"2,314.80",HODGSONS COACH OPERATORS LTD.
Children and Young Peoples Services,Head of Education and Skills,Transport,230007,Contract Hire,03/08/2023,4165935-23426,"3,094.80",HODGSONS COACH OPERATORS LTD.
Children and Young Peoples Services,Head of Education and Skills,Transport,230007,Contract Hire,03/08/2023,4165935-23428,"1,054.69",HODGSONS COACH OPERATORS LTD.
Children and Young Peoples Services,Head of Education and Skills,Transport,230007,Contract Hire,03/08/2023,4165935-23429,745.60,HODGSONS COACH OPERATORS LTD.
Children and Young Peoples Services,Head of Education and Skills,Transport,230007,Contract Hire,03/08/2023,4165935-23430,"2,509.40",HODGSONS COACH OPERATORS LTD.
Children and Young Peoples Services,Head of Education and Skills,Transport,230007,Contract Hire,03/08/2023,4165935-23431,"1,390.00",HODGSONS COACH OPERATORS LTD.
Children and Young Peoples Services,Head of Education and Skills,Transport,230007,Contract Hire,03/08/2023,4165935-23432,"1,106.00",HODGSONS COACH OPERATORS LTD.
Children and Young Peoples Services,Head of Education and Skills,Transport,230003,Contract Hire,03/08/2023,4165935-23433,"3,190.00",HODGSONS COACH OPERATORS LTD.
Children and Young Peoples Services,Head of Education and Skills,Transport,230007,Contract Hire,03/08/2023,4165935-23434,"1,877.00",HODGSONS COACH OPERATORS LTD.
Children and Young Peoples Services,Head of Education and Skills,Transport,230007,Contract Hire,03/08/2023,4165935-23435,"1,200.40",HODGSONS COACH OPERATORS LTD.
Children and Young Peoples Services,Head of Education and Skills,Transport,230007,Contract Hire,03/08/2023,4165935-23436,"1,196.40",HODGSONS COACH OPERATORS LTD.
Children and Young Peoples Services,Head of Education and Skills,Transport,230007,Contract Hire,03/08/2023,4165935-23446-3042,"2,877.30",HODGSONS COACH OPERATORS LTD.
Children and Young Peoples Services,Head of Education and Skills,Transport,230007,Contract Hire,03/08/2023,4165935-23446-3044,"2,716.65",HODGSONS COACH OPERATORS LTD.
Children and Young Peoples Services,Head of Education and Skills,Transport,230007,Contract Hire,03/08/2023,4165935-23447,"3,389.85",HODGSONS COACH OPERATORS LTD.
Children and Young Peoples Services,Head of Education and Skills,Transport,230003,Contract Hire,03/08/2023,4165935-23448,"4,008.75",HODGSONS COACH OPERATORS LTD.
Children and Young Peoples Services,Head of Education and Skills,Transport,230007,Contract Hire,03/08/2023,4165935-23449,"3,388.05",HODGSONS COACH OPERATORS LTD.
Children and Young Peoples Services,Head of Education and Skills,Transport,230007,Contract Hire,03/08/2023,4165935-23450,"1,736.10",HODGSONS COACH OPERATORS LTD.
Children and Young Peoples Services,Head of Education and Skills,Transport,230007,Contract Hire,03/08/2023,4165935-23451,"2,321.10",HODGSONS COACH OPERATORS LTD.
Children and Young Peoples Services,Head of Education and Skills,Transport,230007,Contract Hire,03/08/2023,4165935-23453,832.65,HODGSONS COACH OPERATORS LTD.
Children and Young Peoples Services,Head of Education and Skills,Transport,230007,Contract Hire,03/08/2023,4165935-23454,559.20,HODGSONS COACH OPERATORS LTD.
Children and Young Peoples Services,Head of Education and Skills,Transport,230007,Contract Hire,03/08/2023,4165935-23455,"1,882.05",HODGSONS COACH OPERATORS LTD.
Children and Young Peoples Services,Head of Education and Skills,Transport,230007,Contract Hire,03/08/2023,4165935-23456,"1,042.50",HODGSONS COACH OPERATORS LTD.
Children and Young Peoples Services,Head of Education and Skills,Transport,230007,Contract Hire,03/08/2023,4165935-23457,774.20,HODGSONS COACH OPERATORS LTD.
Children and Young Peoples Services,Head of Education and Skills,Transport,230003,Contract Hire,03/08/2023,4165935-23458,"2,233.00",HODGSONS COACH OPERATORS LTD.
Children and Young Peoples Services,Head of Education and Skills,Transport,230007,Contract Hire,03/08/2023,4165935-23459,"1,407.75",HODGSONS COACH OPERATORS LTD.
Children and Young Peoples Services,Head of Education and Skills,Transport,230007,Contract Hire,03/08/2023,4165935-23460,900.30,HODGSONS COACH OPERATORS LTD.
Children and Young Peoples Services,Head of Education and Skills,Transport,230007,Contract Hire,03/08/2023,4165935-23461,897.30,HODGSONS COACH OPERATORS LTD.
Neighbourhoods and Climate Change,Highways,Supplies and Services,304221,Equipment and Materials,03/08/2023,4165940-400049823,"12,413.51",ICL UK SALES LTD (CLEVELAND POTASH LTD).
Neighbourhoods and Climate Change,Environmental Services,Supplies and Services,384199,Miscellaneous Expenses,03/08/2023,4165941-1100/DUCC3949,"1,166.67",IMAGEMAKERS DESIGN & CONSULTANCY LTD.
Resources BK0010,Digital Services,Stock A926,926900,Stock in hand-Inventory system,03/08/2023,4165945-2100653895,"1,746.84",INSIGHT DIRECT (UK) LTD.
Resources BK0010,Digital Services,Stock A926,926900,Stock in hand-Inventory system,03/08/2023,4165945-2100653896,582.28,INSIGHT DIRECT (UK) LTD.
Resources BK0010,Digital Services,Stock A926,926900,Stock in hand-Inventory system,03/08/2023,4165945-2100653897,"4,658.24",INSIGHT DIRECT (UK) LTD.
Neighbourhoods and Climate Change,Highways,Supplies and Services,304221,Equipment and Materials,03/08/2023,4165946-34644,625.20,INTERPLAN SIGN SYSTEMS LTD.
Regeneration Economy and Growth,Corporate Property and Land,Cap Exp on Grants & Other Financial Assistance (REFCUS),918501,Exp assets not owned by authority,03/08/2023,4165947-4748A,"2,782.50",IS CONSULTANCY UK LTD.
Neighbourhoods and Climate Change,Highways,Supplies and Services,304358,Equipment and Materials,03/08/2023,4165950-0556/2023,"5,189.50",J & JG GILL & SONS LTD.
Neighbourhoods and Climate Change,Highways,Supplies and Services,304358,Equipment and Materials,03/08/2023,4165952-5306843,832.63,JA GILSON (AGRICULTURAL CONTRACTORS) LTD.
Neighbourhoods and Climate Change,Highways,Supplies and Services,304358,Equipment and Materials,03/08/2023,4165952-5306854,"1,891.75",JA GILSON (AGRICULTURAL CONTRACTORS) LTD.
Neighbourhoods and Climate Change,Highways,Supplies and Services,304358,Equipment and Materials,03/08/2023,4165952-5306860,"1,852.62",JA GILSON (AGRICULTURAL CONTRACTORS) LTD.
Regeneration Economy and Growth,Culture Sport and Tourism,Supplies and Services,338047,Services,03/08/2023,4165955-JN/8633,648.99,JANET PLATER MANAGEMENT LTD.
Neighbourhoods and Climate Change,Highways,Supplies and Services,304358,Equipment and Materials,03/08/2023,4165964-SI-810,570.00,JOHN DOBSON PLANT HIRE LTD.
Regeneration Economy and Growth,Culture Sport and Tourism,Supplies and Services,304259,Equipment and Materials,03/08/2023,4165968-185974,569.65,JP LENNARD LTD.
Neighbourhoods and Climate Change,Highways,Stock A926,926900,Stock in hand-Inventory system,03/08/2023,4165970-0113/00048847,920.00,JT DOVE LTD.
Neighbourhoods and Climate Change,Environmental Services,Stock A926,926900,Stock in hand-Inventory system,03/08/2023,4165977-SI02-0401364,817.72,KILLGERM CHEMICALS LTD.
Neighbourhoods and Climate Change,Environmental Services,Supplies and Services,304999,Equipment and Materials,03/08/2023,4165977-SI02-0401365,507.40,KILLGERM CHEMICALS LTD.
Chief Executives Office,Communications Management,Supplies and Services,332029,Printing Stationery and Gen Off Exps,03/08/2023,4165978-INV-1110,"1,470.00",KOLORSPRAY LTD.
Children and Young Peoples Services,Head of Childrens Social Care,Supplies and Services,338044,Services,03/08/2023,4165986-296882,"1,113.00",LEXTOX.
Neighbourhoods and Climate Change,Highways,Supplies and Services,304358,Equipment and Materials,03/08/2023,4165989-MS4356,"1,219.50",M SPENCE SURFACING LTD.
Neighbourhoods and Climate Change,Highways,Supplies and Services,304358,Equipment and Materials,03/08/2023,4165989-MS4357,540.00,M SPENCE SURFACING LTD.
Neighbourhoods and Climate Change,Highways,Supplies and Services,304358,Equipment and Materials,03/08/2023,4165989-MS4361,900.00,M SPENCE SURFACING LTD.
Neighbourhoods and Climate Change,Highways,Supplies and Services,304358,Equipment and Materials,03/08/2023,4165989-MS4362,"1,579.50",M SPENCE SURFACING LTD.
Neighbourhoods and Climate Change,Highways,Supplies and Services,304358,Equipment and Materials,03/08/2023,4165989-MS4397,522.00,M SPENCE SURFACING LTD.
Neighbourhoods and Climate Change,Highways,Supplies and Services,304358,Equipment and Materials,03/08/2023,4165989-MS4399,859.50,M SPENCE SURFACING LTD.
Neighbourhoods and Climate Change,Highways,Supplies and Services,304358,Equipment and Materials,03/08/2023,4165989-MS4409,720.00,M SPENCE SURFACING LTD.
Children and Young Peoples Services,Head of Education and Skills,Transport,230007,Contract Hire,03/08/2023,4165991-6409,"2,678.92",MAKEPEACE MOTORS.
Neighbourhoods and Climate Change,Highways,Third Party Payments,430100,Rendered by Private Contractors,03/08/2023,4165991-6410,870.00,MAKEPEACE MOTORS.
Neighbourhoods and Climate Change,Highways,Supplies and Services,304221,Equipment and Materials,03/08/2023,4165991-6411,"3,660.00",MAKEPEACE MOTORS.
Neighbourhoods and Climate Change,Highways,Third Party Payments,410037,Rendered by Other Local Authorities,03/08/2023,4165991-6412,"3,032.00",MAKEPEACE MOTORS.
Neighbourhoods and Climate Change,Highways,Third Party Payments,410037,Rendered by Other Local Authorities,03/08/2023,4165991-6413,"1,474.00",MAKEPEACE MOTORS.
Neighbourhoods and Climate Change,Highways,Stock A926,926900,Stock in hand-Inventory system,03/08/2023,4165992-0000208267,"1,394.69",MALLATITE MINOR STRUCTURES & PRODUCTS LTD.
Children and Young Peoples Services,Head of Education and Skills,Transport,230007,Contract Hire,03/08/2023,4165994-INV07/2023-01,943.04,MARK & JOHN CHISHOLM T/A (CHEVRON).
Children and Young Peoples Services,Head of Education and Skills,Transport,230007,Contract Hire,03/08/2023,4165994-INV07/2023-02,912.24,MARK & JOHN CHISHOLM T/A (CHEVRON).
Children and Young Peoples Services,Head of Education and Skills,Transport,230007,Contract Hire,03/08/2023,4165994-INV07/2023-03,588.00,MARK & JOHN CHISHOLM T/A (CHEVRON).
Children and Young Peoples Services,Head of Education and Skills,Transport,230007,Contract Hire,03/08/2023,4165994-INV07/2023-04,"1,720.88",MARK & JOHN CHISHOLM T/A (CHEVRON).
Children and Young Peoples Services,Head of Education and Skills,Transport,230008,Contract Hire,03/08/2023,4165994-INV07/2023-07,"1,403.50",MARK & JOHN CHISHOLM T/A (CHEVRON).
Children and Young Peoples Services,Head of Education and Skills,Transport,230008,Contract Hire,03/08/2023,4165994-INV07/2023-09,"3,244.64",MARK & JOHN CHISHOLM T/A (CHEVRON).
Children and Young Peoples Services,Head of Education and Skills,Transport,230008,Contract Hire,03/08/2023,4165994-INV07/2023-15,"2,006.48",MARK & JOHN CHISHOLM T/A (CHEVRON).
Children and Young Peoples Services,Head of Education and Skills,Transport,230008,Contract Hire,03/08/2023,4165994-INV07/2023-16,"2,030.56",MARK & JOHN CHISHOLM T/A (CHEVRON).
Children and Young Peoples Services,Head of Education and Skills,Transport,230008,Contract Hire,03/08/2023,4165994-INV07/2023-17,"2,409.44",MARK & JOHN CHISHOLM T/A (CHEVRON).
Children and Young Peoples Services,Head of Education and Skills,Transport,230008,Contract Hire,03/08/2023,4165994-INV07/2023-18,"2,594.40",MARK & JOHN CHISHOLM T/A (CHEVRON).
Children and Young Peoples Services,Head of Education and Skills,Transport,230008,Contract Hire,03/08/2023,4165994-INV07/2023-19,"2,160.80",MARK & JOHN CHISHOLM T/A (CHEVRON).
Children and Young Peoples Services,Head of Education and Skills,Transport,230008,Contract Hire,03/08/2023,4165994-INV07/2023-21,"3,186.15",MARK & JOHN CHISHOLM T/A (CHEVRON).
Children and Young Peoples Services,Head of Education and Skills,Transport,230008,Contract Hire,03/08/2023,4165994-INV07/2023-22,"3,215.65",MARK & JOHN CHISHOLM T/A (CHEVRON).
Children and Young Peoples Services,Head of Education and Skills,Transport,230008,Contract Hire,03/08/2023,4165994-INV07/2023-23,"2,215.80",MARK & JOHN CHISHOLM T/A (CHEVRON).
Children and Young Peoples Services,Head of Education and Skills,Transport,230008,Contract Hire,03/08/2023,4165994-INV07/2023-24,"2,189.25",MARK & JOHN CHISHOLM T/A (CHEVRON).
Children and Young Peoples Services,Head of Education and Skills,Transport,230008,Contract Hire,03/08/2023,4165994-INV07/2023-25,"2,078.55",MARK & JOHN CHISHOLM T/A (CHEVRON).
Children and Young Peoples Services,Head of Education and Skills,Transport,230008,Contract Hire,03/08/2023,4165994-INV07/2023-26,"3,931.20",MARK & JOHN CHISHOLM T/A (CHEVRON).
Children and Young Peoples Services,Head of Education and Skills,Transport,230008,Contract Hire,03/08/2023,4165994-INV07/2023-27,"2,820.00",MARK & JOHN CHISHOLM T/A (CHEVRON).
Children and Young Peoples Services,Head of Education and Skills,Transport,230008,Contract Hire,03/08/2023,4165994-INV07/2023-29,"3,440.10",MARK & JOHN CHISHOLM T/A (CHEVRON).
Children and Young Peoples Services,Head of Education and Skills,Transport,230006,Contract Hire,03/08/2023,4165994-INV07/2023-30,"1,377.84",MARK & JOHN CHISHOLM T/A (CHEVRON).
Children and Young Peoples Services,Head of Education and Skills,Transport,230008,Contract Hire,03/08/2023,4165994-INV07/2023-36,"2,744.80",MARK & JOHN CHISHOLM T/A (CHEVRON).
Regeneration Economy and Growth,Transport and Contracted Services,Supplies and Services,372009,Subscriptions E372,03/08/2023,4166003-1715,"1,098.00",MODESHIFT.
Regeneration Economy and Growth,Corporate Property and Land,Third Party Payments,430100,Rendered by Private Contractors,03/08/2023,4166013-44794,"2,995.00",NE & C WINDOWS & DOORS LTD.
Regeneration Economy and Growth,Corporate Property and Land,Third Party Payments,430100,Rendered by Private Contractors,03/08/2023,4166013-44795,"2,195.00",NE & C WINDOWS & DOORS LTD.
Regeneration Economy and Growth,Corporate Property and Land,Third Party Payments,430100,Rendered by Private Contractors,03/08/2023,4166013-44801,565.00,NE & C WINDOWS & DOORS LTD.
Regeneration Economy and Growth,Corporate Property and Land,Third Party Payments,430100,Rendered by Private Contractors,03/08/2023,4166013-44802,"2,107.20",NE & C WINDOWS & DOORS LTD.
Regeneration Economy and Growth,Corporate Property and Land,Third Party Payments,430100,Rendered by Private Contractors,03/08/2023,4166013-44818,530.24,NE & C WINDOWS & DOORS LTD.
Regeneration Economy and Growth,Corporate Property and Land,Third Party Payments,430100,Rendered by Private Contractors,03/08/2023,4166013-44863,"4,026.99",NE & C WINDOWS & DOORS LTD.
Neighbourhoods and Climate Change,Environmental Services,Supplies and Services,384700,Miscellaneous Expenses,03/08/2023,4166014-RES-08-2023-039,"14,706.00",NENTHEAD MINES CONSERVATION SOCIETY.
Neighbourhoods and Climate Change,Environmental Services,Supplies and Services,384606,Miscellaneous Expenses,03/08/2023,4166017-1800011781020,"1,050.00",NEWCASTLE UPON TYNE CITY COUNCIL.
Neighbourhoods and Climate Change,Highways,Other expenses A914,914002,Capital - Advertisments,03/08/2023,4166018-43140125,693.33,NEWSQUEST (YORKSHIRE & NORTH EAST) LTD.
Neighbourhoods and Climate Change,Highways,Fees,901004,Capital - Detailed Design,03/08/2023,4166018-43140408,"3,326.50",NEWSQUEST (YORKSHIRE & NORTH EAST) LTD.
Resources BK0010,Digital Services,Supplies and Services,342033,Computers and Communications,03/08/2023,4166020-CI005512,506.66,NOMINET UK.
Children and Young Peoples Services,Head of Early Help Inclusion & Vulnerable Children.,Third Party Payments,410037,Rendered by Other Local Authorities,03/08/2023,4166021-41892,"2,952.00",NOMS AGENCY.
Children and Young Peoples Services,Head of Early Help Inclusion & Vulnerable Children.,Third Party Payments,410037,Rendered by Other Local Authorities,03/08/2023,4166021-41893,"3,280.00",NOMS AGENCY.
Children and Young Peoples Services,Head of Early Help Inclusion & Vulnerable Children.,Third Party Payments,410037,Rendered by Other Local Authorities,03/08/2023,4166021-41903,"2,624.00",NOMS AGENCY.
Neighbourhoods and Climate Change,Highways,Third Party Payments,430100,Rendered by Private Contractors,03/08/2023,4166022-NPSL1951,"2,022.06",NORDIC PRODUCTS & SERVICES LTD.
Regeneration Economy and Growth,Corporate Property and Land,Supplies and Services,304221,Equipment and Materials,03/08/2023,4166027-27205265,970.36,NORTHUMBRIAN WATER LTD.
Neighbourhoods and Climate Change,Community Protection,Supplies and Services,384199,Miscellaneous Expenses,03/08/2023,4166034-INV-000114,"1,750.00",ORCUMA LTD.
Children and Young Peoples Services,Head of Education and Skills,Transport,230007,Contract Hire,03/08/2023,4166040-1000JUL23,"1,050.00",PETER`S TAXIS.
Children and Young Peoples Services,Head of Education and Skills,Transport,230034,Contract Hire,03/08/2023,4166040-3422JUL23,847.80,PETER`S TAXIS.
Children and Young Peoples Services,Head of Education and Skills,Transport,230035,Contract Hire,03/08/2023,4166040-3482JUL23,"1,369.80",PETER`S TAXIS.
Children and Young Peoples Services,Head of Education and Skills,Transport,230003,Contract Hire,03/08/2023,4166040-3501JUL23,"1,200.00",PETER`S TAXIS.
Children and Young Peoples Services,Head of Education and Skills,Transport,230007,Contract Hire,03/08/2023,4166040-5294JUL23,"1,416.60",PETER`S TAXIS.
Neighbourhoods and Climate Change,Highways,Third Party Payments,430100,Rendered by Private Contractors,03/08/2023,4166043-6539C,573.36,PINKNEY BUILDING CONTRACTORS LTD.
Neighbourhoods and Climate Change,Highways,Third Party Payments,430100,Rendered by Private Contractors,03/08/2023,4166043-6543,"4,145.93",PINKNEY BUILDING CONTRACTORS LTD.
Neighbourhoods and Climate Change,Highways,Third Party Payments,430100,Rendered by Private Contractors,03/08/2023,4166043-6544,"7,303.54",PINKNEY BUILDING CONTRACTORS LTD.
Neighbourhoods and Climate Change,Highways,Third Party Payments,430100,Rendered by Private Contractors,03/08/2023,4166043-6547,"2,092.10",PINKNEY BUILDING CONTRACTORS LTD.
Neighbourhoods and Climate Change,Highways,Third Party Payments,430100,Rendered by Private Contractors,03/08/2023,4166043-6548,"6,673.22",PINKNEY BUILDING CONTRACTORS LTD.
Neighbourhoods and Climate Change,Highways,Third Party Payments,430100,Rendered by Private Contractors,03/08/2023,4166043-6551,"4,158.68",PINKNEY BUILDING CONTRACTORS LTD.
Neighbourhoods and Climate Change,Highways,Third Party Payments,430100,Rendered by Private Contractors,03/08/2023,4166043-6552,"8,303.84",PINKNEY BUILDING CONTRACTORS LTD.
Adult and Health Services,Public Health CC0450,Third Party Payments,460803,Contract Payments,03/08/2023,4166045-18422/18,"5,462.92",PIONEERING CARE PARTNERSHIP.
Neighbourhoods and Climate Change,Environmental Services,Premises,115125,Repairs to Grounds,03/08/2023,4166046-TEE21468,603.75,PIRTEK CLEVELAND.
Neighbourhoods and Climate Change,Highways,Third Party Payments,430100,Rendered by Private Contractors,03/08/2023,4166049-178849,"54,068.75",PREMIER TRAFFIC MANAGEMENT LTD.
Neighbourhoods and Climate Change,Highways,Supplies and Services,304358,Equipment and Materials,03/08/2023,4166070-3712,"1,147.25",S & R LANDSCAPES.
Neighbourhoods and Climate Change,Highways,Supplies and Services,304358,Equipment and Materials,03/08/2023,4166070-3713,"1,046.75",S & R LANDSCAPES.
Neighbourhoods and Climate Change,Highways,Supplies and Services,304358,Equipment and Materials,03/08/2023,4166070-3714,"1,274.40",S & R LANDSCAPES.
Neighbourhoods and Climate Change,Highways,Supplies and Services,304358,Equipment and Materials,03/08/2023,4166070-3715,999.00,S & R LANDSCAPES.
Neighbourhoods and Climate Change,Highways,Supplies and Services,304358,Equipment and Materials,03/08/2023,4166070-3716,"1,039.50",S & R LANDSCAPES.
Regeneration Economy and Growth,Corporate Property and Land,Supplies and Services,304358,Equipment and Materials,03/08/2023,4166070-3717,920.00,S & R LANDSCAPES.
Neighbourhoods and Climate Change,Highways,Supplies and Services,304358,Equipment and Materials,03/08/2023,4166070-3718,"1,530.50",S & R LANDSCAPES.
Neighbourhoods and Climate Change,Highways,Supplies and Services,304358,Equipment and Materials,03/08/2023,4166070-3719,"1,501.20",S & R LANDSCAPES.
Neighbourhoods and Climate Change,Highways,Supplies and Services,304358,Equipment and Materials,03/08/2023,4166070-3720,"1,244.25",S & R LANDSCAPES.
Neighbourhoods and Climate Change,Highways,Supplies and Services,304358,Equipment and Materials,03/08/2023,4166070-3721,999.00,S & R LANDSCAPES.
Neighbourhoods and Climate Change,Highways,Supplies and Services,304358,Equipment and Materials,03/08/2023,4166070-3722,"1,147.25",S & R LANDSCAPES.
Neighbourhoods and Climate Change,Highways,Supplies and Services,304358,Equipment and Materials,03/08/2023,4166070-3723,"1,274.40",S & R LANDSCAPES.
Neighbourhoods and Climate Change,Highways,Supplies and Services,304358,Equipment and Materials,03/08/2023,4166070-3724,"1,530.50",S & R LANDSCAPES.
Neighbourhoods and Climate Change,Highways,Supplies and Services,304358,Equipment and Materials,03/08/2023,4166070-3725,"1,349.20",S & R LANDSCAPES.
Neighbourhoods and Climate Change,Highways,Supplies and Services,304358,Equipment and Materials,03/08/2023,4166070-3726,"1,147.25",S & R LANDSCAPES.
Neighbourhoods and Climate Change,Highways,Supplies and Services,304358,Equipment and Materials,03/08/2023,4166070-3727,999.00,S & R LANDSCAPES.
Neighbourhoods and Climate Change,Highways,Supplies and Services,304358,Equipment and Materials,03/08/2023,4166070-3728,"1,287.00",S & R LANDSCAPES.
Neighbourhoods and Climate Change,Highways,Supplies and Services,304358,Equipment and Materials,03/08/2023,4166070-3729,"1,530.50",S & R LANDSCAPES.
Neighbourhoods and Climate Change,Highways,Supplies and Services,304358,Equipment and Materials,03/08/2023,4166070-3730,"1,275.50",S & R LANDSCAPES.
Neighbourhoods and Climate Change,Highways,Supplies and Services,304358,Equipment and Materials,03/08/2023,4166070-3731,636.00,S & R LANDSCAPES.
Neighbourhoods and Climate Change,Highways,Supplies and Services,304358,Equipment and Materials,03/08/2023,4166070-3732,"1,039.50",S & R LANDSCAPES.
Neighbourhoods and Climate Change,Highways,Supplies and Services,304358,Equipment and Materials,03/08/2023,4166070-3734,934.50,S & R LANDSCAPES.
Neighbourhoods and Climate Change,Highways,Supplies and Services,304358,Equipment and Materials,03/08/2023,4166070-3735,"1,288.40",S & R LANDSCAPES.
Regeneration Economy and Growth,Corporate Property and Land,Supplies and Services,304358,Equipment and Materials,03/08/2023,4166070-3737,897.00,S & R LANDSCAPES.
Regeneration Economy and Growth,Corporate Property and Land,Supplies and Services,304358,Equipment and Materials,03/08/2023,4166070-3747,"1,012.00",S & R LANDSCAPES.
